{"text_format":"1","workbook":"xlsx","n_sheets":4,"sheets":["Leseordnung Herrenjahr","Vorlage Kalender","Heiligenjahr","Pascal"],"not_rendered":{"charts":0,"images":0,"macros":1,"external_links":0,"defined_names":4,"comments":0,"pivot_tables":0},"unopened":[],"bounds":{"document_bytes":16777216,"sheet_cells":100000,"rows_first":2000,"rows_last":500,"rows_between":2000,"halvings":0,"cell_chars":16384,"cell_head_chars":4096},"cells_cut":0,"cells_raw":0,"read":"whole","date_system":"1900"}

{"sheet":"Leseordnung Herrenjahr","index":0,"n_rows":389,"n_cols":66,"rows_kept":389,"cut":false,"hidden":true,"merged":[]}
[null,null,"Lesejahr A",null,null,"Lesejahr B",null,null,"Lesejahr C",null,null,null,"Lesejahr I","Lesejahr II","Lesejahr I und II"]
["GOK 59","Sonntag","Lesung 1","Lesung 2","Evangelium","Lesung 1","Lesung 2","Evangelium","Lesung 1","Lesung 2","Evangelium",null,"Lesung","Lesung","Evangelium",null,"Wochentag","Nr.","Zeit","A Les 1 Buch","A Les 1 Kap","A Les 1 Vers","A Les 2 Buch","A Les 2 Kap","A Les 2 Vers","A Ev Buch","A Ev Kap","A Ev Vers","A Ev Kurz","A Zusatz",null,"B Les 1 Buch","B Les 1 Kap","B Les 1 Vers","B Les 2 Buch","B Les 2 Kap","B Les 2 Vers","B Ev Buch","B Ev Kap","B Ev Vers","B Ev Kurz","B Zusatz",null,"C Les 1 Buch","C Les 1 Kap","C Les 1 Vers","C Les 2 Buch","C Les 2 Kap","C Les 2 Vers","C Ev Buch","C Ev Kap","C Ev Vers","C Ev Kurz","C Zusatz",null,"I Les Buch","I Les Kap","I Les Vers","II Les Buch","II Les Kap","II Les Vers","Ev Buch","Ev Kap","Ev Vers","Ev Kurz","Zusatz"]
[6,{"$f":"IF(R3<>\"\",R3&\". \"&S3,S3)","v":"1. Sonntag im Jahreskreis"},{"$f":"T3&\" \"&U3&\",\"&V3","v":"Jes 42,5a.1-4.6-7"},{"$f":"W3&\" \"&X3&\",\"&Y3","v":"Apg 10,34-38"},{"$f":"Z3&\" \"&AA3&\",\"&AB3","v":"Mt 3,13-17"},{"$f":"AF3&\" \"&AG3&\",\"&AH3","v":"Jes 55,1-11"},{"$f":"AI3&\" \"&AJ3&\",\"&AK3","v":"1 Joh 5,1-9"},{"$f":"AL3&\" \"&AM3&\",\"&AN3","v":"Mk 1,7-11"},{"$f":"AR3&\" \"&AS3&\",\"&AT3","v":"Jes 40,1-5.9-11"},{"$f":"AU3&\" \"&AV3&\",\"&AW3","v":"Tit 2,11-14; 3,4-7"},{"$f":"AX3&\" \"&AY3&\",\"&AZ3","v":"Lk 3,15-16.21-22"},null,{"$f":"BD3&\" \"&BE3&\",\"&BF3","v":" ,"},{"$f":"BG3&\" \"&BH3&\",\"&BI3","v":" ,"},{"$f":"BJ3&\" \"&BK3&\",\"&BL3","v":" ,"},1,"Sonntag",1,"Sonntag im Jahreskreis","Jes",42,"5a.1-4.6-7","Apg",10,"34-38","Mt",3,"13-17",null,null,null,"Jes",55,"1-11","1 Joh",5,"1-9","Mk",1,"7-11",null,null,null,"Jes",40,"1-5.9-11","Tit",2,"11-14; 3,4-7","Lk",3,"15-16.21-22"]
[13,{"$f":"IF(R4<>\"\",Q4&\" der \"&R4&\". \"&S4,S4)","v":"Montag der 1. Woche im Jahreskreis"}," ,"," ,"," ,"," ,"," ,"," ,"," ,"," ,"," ,",null,"Hebr 1,1-6","1 Sam 1,1-8","Mk 1,14-20",2,"Montag",1,"Woche im Jahreskreis",null,null,null,null,null,null,null,null,null,null,null,null,null,null,null,null,null,null,null,null,null,null,null,null,null,null,null,null,null,null,null,null,null,null,null,null,"Hebr",1,"1-6","1 Sam",1,"1-8","Mk",1,"14-20"]
[13,"Dienstag der 1. Woche im Jahreskreis"," ,"," ,"," ,"," ,"," ,"," ,"," ,"," ,"," ,",null,"Hebr 2,5-12","1 Sam 1,9-20","Mk 1,21-28",3,"Dienstag",1,"Woche im Jahreskreis",null,null,null,null,null,null,null,null,null,null,null,null,null,null,null,null,null,null,null,null,null,null,null,null,null,null,null,null,null,null,null,null,null,null,null,null,"Hebr",2,"5-12","1 Sam",1,"9-20","Mk",1,"21-28"]
[13,"Mittwoch der 1. Woche im Jahreskreis"," ,"," ,"," ,"," ,"," ,"," ,"," ,"," ,"," ,",null,"Hebr 2,11-12.13c-18","1 Sam 3,1-10.19-20","Mk 1,29-39",4,"Mittwoch",1,"Woche im Jahreskreis",null,null,null,null,null,null,null,null,null,null,null,null,null,null,null,null,null,null,null,null,null,null,null,null,null,null,null,null,null,null,null,null,null,null,null,null,"Hebr",2,"11-12.13c-18","1 Sam",3,"1-10.19-20","Mk",1,"29-39"]
[13,"Donnerstag der 1. Woche im Jahreskreis"," ,"," ,"," ,"," ,"," ,"," ,"," ,"," ,"," ,",null,"Hebr 3,7-14","1 Sam 4,1b-11","Mk 1,40-45",5,"Donnerstag",1,"Woche im Jahreskreis",null,null,null,null,null,null,null,null,null,null,null,null,null,null,null,null,null,null,null,null,null,null,null,null,null,null,null,null,null,null,null,null,null,null,null,null,"Hebr",3,"7-14","1 Sam",4,"1b-11","Mk",1,"40-45"]
[13,"Freitag der 1. Woche im Jahreskreis"," ,"," ,"," ,"," ,"," ,"," ,"," ,"," ,"," ,",null,"Hebr 4,1-5.11","1 Sam 8,4-7.10-22a","Mk 2,1-12",6,"Freitag",1,"Woche im Jahreskreis",null,null,null,null,null,null,null,null,null,null,null,null,null,null,null,null,null,null,null,null,null,null,null,null,null,null,null,null,null,null,null,null,null,null,null,null,"Hebr",4,"1-5.11","1 Sam",8,"4-7.10-22a","Mk",2,"1-12"]
[13,"Samstag der 1. Woche im Jahreskreis"," ,"," ,"," ,"," ,"," ,"," ,"," ,"," ,"," ,",null,"Hebr 4,12-16","1 Sam 9,1-4.17-19; 10,1","Mk 2,13-17",7,"Samstag",1,"Woche im Jahreskreis",null,null,null,null,null,null,null,null,null,null,null,null,null,null,null,null,null,null,null,null,null,null,null,null,null,null,null,null,null,null,null,null,null,null,null,null,"Hebr",4,"12-16","1 Sam",9,"1-4.17-19; 10,1","Mk",2,"13-17"]
[6,{"$f":"IF(R10<>\"\",R10&\". \"&S10,S10)","v":"2. Sonntag im Jahreskreis"},"Jes 49,3.5-6","1 Kor 1,1-3","Joh 1,29-34","1 Sam 3,3b-10.19","1 Kor 6,13c-15a.17-20","Joh 1,35-42","Jes 62,1-5","1 Kor 12,4-11","Joh 2,1-11",null," ,"," ,"," ,",1,"Sonntag",2,"Sonntag im Jahreskreis","Jes",49,"3.5-6","1 Kor",1,"1-3","Joh",1,"29-34",null,null,null,"1 Sam",3,"3b-10.19","1 Kor",6,"13c-15a.17-20","Joh",1,"35-42",null,null,null,"Jes",62,"1-5","1 Kor",12,"4-11","Joh",2,"1-11"]
[13,{"$f":"IF(R11<>\"\",Q11&\" der \"&R11&\". \"&S11,S11)","v":"Montag der 2. Woche im Jahreskreis"}," ,"," ,"," ,"," ,"," ,"," ,"," ,"," ,"," ,",null,"Hebr 5,1-10","1 Sam 15,16-23","Mk 2,18-22",2,"Montag",2,"Woche im Jahreskreis",null,null,null,null,null,null,null,null,null,null,null,null,null,null,null,null,null,null,null,null,null,null,null,null,null,null,null,null,null,null,null,null,null,null,null,null,"Hebr",5,"1-10","1 Sam",15,"16-23","Mk",2,"18-22"]
[13,"Dienstag der 2. Woche im Jahreskreis"," ,"," ,"," ,"," ,"," ,"," ,"," ,"," ,"," ,",null,"Hebr 6,10-20","1 Sam 16,1-13","Mk 2,23-28",3,"Dienstag",2,"Woche im Jahreskreis",null,null,null,null,null,null,null,null,null,null,null,null,null,null,null,null,null,null,null,null,null,null,null,null,null,null,null,null,null,null,null,null,null,null,null,null,"Hebr",6,"10-20","1 Sam",16,"1-13","Mk",2,"23-28"]
[13,"Mittwoch der 2. Woche im Jahreskreis"," ,"," ,"," ,"," ,"," ,"," ,"," ,"," ,"," ,",null,"Hebr 7,1-3.15-17","1 Sam 17,32-33.37.40-51","Mk 3,1-6",4,"Mittwoch",2,"Woche im Jahreskreis",null,null,null,null,null,null,null,null,null,null,null,null,null,null,null,null,null,null,null,null,null,null,null,null,null,null,null,null,null,null,null,null,null,null,null,null,"Hebr",7,"1-3.15-17","1 Sam",17,"32-33.37.40-51","Mk",3,"1-6"]
[13,"Donnerstag der 2. Woche im Jahreskreis"," ,"," ,"," ,"," ,"," ,"," ,"," ,"," ,"," ,",null,"Hebr 7,25 – 8,6","1 Sam 18,6-9; 19, 1-7","Mk 3,7-12",5,"Donnerstag",2,"Woche im Jahreskreis",null,null,null,null,null,null,null,null,null,null,null,null,null,null,null,null,null,null,null,null,null,null,null,null,null,null,null,null,null,null,null,null,null,null,null,null,"Hebr",7,"25 – 8,6","1 Sam",18,"6-9; 19, 1-7","Mk",3,"7-12"]
[13,"Freitag der 2. Woche im Jahreskreis"," ,"," ,"," ,"," ,"," ,"," ,"," ,"," ,"," ,",null,"Hebr 8,6-13","1 Sam 24,3-21","Mk 3,13-19",6,"Freitag",2,"Woche im Jahreskreis",null,null,null,null,null,null,null,null,null,null,null,null,null,null,null,null,null,null,null,null,null,null,null,null,null,null,null,null,null,null,null,null,null,null,null,null,"Hebr",8,"6-13","1 Sam",24,"3-21","Mk",3,"13-19"]
[13,"Samstag der 2. Woche im Jahreskreis"," ,"," ,"," ,"," ,"," ,"," ,"," ,"," ,"," ,",null,"Hebr 9,2-3.11-14","2 Sam 1,1-4.11-12.17.19.23-27","Mk 3,20-21",7,"Samstag",2,"Woche im Jahreskreis",null,null,null,null,null,null,null,null,null,null,null,null,null,null,null,null,null,null,null,null,null,null,null,null,null,null,null,null,null,null,null,null,null,null,null,null,"Hebr",9,"2-3.11-14","2 Sam",1,"1-4.11-12.17.19.23-27","Mk",3,"20-21"]
[6,{"$f":"IF(R17<>\"\",R17&\". \"&S17,S17)","v":"3. Sonntag im Jahreskreis"},"Jes 8,23b - 9,3","1 Kor 1,10-13.17","Mt 4,12-23","Jona 3,1-5.10","1 Kor 7,29-31","Mk 1,14-20","Neh 8,2-4a.5-6.8-10","1 Kor 12,12-31a","Lk 1,1-4; 4,14-21",null," ,"," ,"," ,",1,"Sonntag",3,"Sonntag im Jahreskreis","Jes",8,"23b - 9,3","1 Kor",1,"10-13.17","Mt",4,"12-23","4,12-17",null,null,"Jona",3,"1-5.10","1 Kor",7,"29-31","Mk",1,"14-20",null,null,null,"Neh",8,"2-4a.5-6.8-10","1 Kor",12,"12-31a","Lk",1,"1-4; 4,14-21"]
[13,{"$f":"IF(R18<>\"\",Q18&\" der \"&R18&\". \"&S18,S18)","v":"Montag der 3. Woche im Jahreskreis"}," ,"," ,"," ,"," ,"," ,"," ,"," ,"," ,"," ,",null,"Hebr 9,15.24-28","2 Sam 5,1-7.10","Mk 3,22-30",2,"Montag",3,"Woche im Jahreskreis",null,null,null,null,null,null,null,null,null,null,null,null,null,null,null,null,null,null,null,null,null,null,null,null,null,null,null,null,null,null,null,null,null,null,null,null,"Hebr",9,"15.24-28","2 Sam",5,"1-7.10","Mk",3,"22-30"]
[13,"Dienstag der 3. Woche im Jahreskreis"," ,"," ,"," ,"," ,"," ,"," ,"," ,"," ,"," ,",null,"Hebr 10,1-10","2 Sam 6,12b-15.17-19","Mk 3,31-35",3,"Dienstag",3,"Woche im Jahreskreis",null,null,null,null,null,null,null,null,null,null,null,null,null,null,null,null,null,null,null,null,null,null,null,null,null,null,null,null,null,null,null,null,null,null,null,null,"Hebr",10,"1-10","2 Sam",6,"12b-15.17-19","Mk",3,"31-35"]
[13,"Mittwoch der 3. Woche im Jahreskreis"," ,"," ,"," ,"," ,"," ,"," ,"," ,"," ,"," ,",null,"Hebr 10,11-18","2 Sam 7,4-17","Mk 4,1-20",4,"Mittwoch",3,"Woche im Jahreskreis",null,null,null,null,null,null,null,null,null,null,null,null,null,null,null,null,null,null,null,null,null,null,null,null,null,null,null,null,null,null,null,null,null,null,null,null,"Hebr",10,"11-18","2 Sam",7,"4-17","Mk",4,"1-20"]
[13,"Donnerstag der 3. Woche im Jahreskreis"," ,"," ,"," ,"," ,"," ,"," ,"," ,"," ,"," ,",null,"Hebr 10,19-25","2 Sam 7,18-19.24-29","Mk 4,21-25",5,"Donnerstag",3,"Woche im Jahreskreis",null,null,null,null,null,null,null,null,null,null,null,null,null,null,null,null,null,null,null,null,null,null,null,null,null,null,null,null,null,null,null,null,null,null,null,null,"Hebr",10,"19-25","2 Sam",7,"18-19.24-29","Mk",4,"21-25"]
[13,"Freitag der 3. Woche im Jahreskreis"," ,"," ,"," ,"," ,"," ,"," ,"," ,"," ,"," ,",null,"Hebr 10,32-39","2 Sam 11,1-4a.c.5-10a.13-17","Mk 4,26-34",6,"Freitag",3,"Woche im Jahreskreis",null,null,null,null,null,null,null,null,null,null,null,null,null,null,null,null,null,null,null,null,null,null,null,null,null,null,null,null,null,null,null,null,null,null,null,null,"Hebr",10,"32-39","2 Sam",11,"1-4a.c.5-10a.13-17","Mk",4,"26-34"]
[13,"Samstag der 3. Woche im Jahreskreis"," ,"," ,"," ,"," ,"," ,"," ,"," ,"," ,"," ,",null,"Hebr 11,1-2.8-19","2 Sam 12,1-7a.10-17","Mk 4,35-41",7,"Samstag",3,"Woche im Jahreskreis",null,null,null,null,null,null,null,null,null,null,null,null,null,null,null,null,null,null,null,null,null,null,null,null,null,null,null,null,null,null,null,null,null,null,null,null,"Hebr",11,"1-2.8-19","2 Sam",12,"1-7a.10-17","Mk",4,"35-41"]
[6,{"$f":"IF(R24<>\"\",R24&\". \"&S24,S24)","v":"4. Sonntag im Jahreskreis"},"Zef 2,3; 3,12-13","1 Kor 1,26-31","Mt 5,1-12a","Dtn 18,15-20","1 Kor 7,32-35","Mk 1,21-28","Jer 1,4-5.17-19","1 Kor 12,31 – 13,13","Lk 4,21-30",null," ,"," ,"," ,",1,"Sonntag",4,"Sonntag im Jahreskreis","Zef",2,"3; 3,12-13","1 Kor",1,"26-31","Mt",5,"1-12a",null,null,null,"Dtn",18,"15-20","1 Kor",7,"32-35","Mk",1,"21-28",null,null,null,"Jer",1,"4-5.17-19","1 Kor",12,"31 – 13,13","Lk",4,"21-30"]
[13,{"$f":"IF(R25<>\"\",Q25&\" der \"&R25&\". \"&S25,S25)","v":"Montag der 4. Woche im Jahreskreis"}," ,"," ,"," ,"," ,"," ,"," ,"," ,"," ,"," ,",null,"Hebr 11,32-40","2 Sam 15,13-14.30; 16,5-13a","Mk 5,1-20",2,"Montag",4,"Woche im Jahreskreis",null,null,null,null,null,null,null,null,null,null,null,null,null,null,null,null,null,null,null,null,null,null,null,null,null,null,null,null,null,null,null,null,null,null,null,null,"Hebr",11,"32-40","2 Sam",15,"13-14.30; 16,5-13a","Mk",5,"1-20"]
[13,"Dienstag der 4. Woche im Jahreskreis"," ,"," ,"," ,"," ,"," ,"," ,"," ,"," ,"," ,",null,"Hebr 12,1-4","2 Sam 18,6.9-10.14b.24-25a.30 – 19,3","Mk 5,21-43",3,"Dienstag",4,"Woche im Jahreskreis",null,null,null,null,null,null,null,null,null,null,null,null,null,null,null,null,null,null,null,null,null,null,null,null,null,null,null,null,null,null,null,null,null,null,null,null,"Hebr",12,"1-4","2 Sam",18,"6.9-10.14b.24-25a.30 – 19,3","Mk",5,"21-43"]
[13,"Mittwoch der 4. Woche im Jahreskreis"," ,"," ,"," ,"," ,"," ,"," ,"," ,"," ,"," ,",null,"Hebr 12,4-7.11-15","2 Sam 24,2.9-17","Mk 6,1b-6",4,"Mittwoch",4,"Woche im Jahreskreis",null,null,null,null,null,null,null,null,null,null,null,null,null,null,null,null,null,null,null,null,null,null,null,null,null,null,null,null,null,null,null,null,null,null,null,null,"Hebr",12,"4-7.11-15","2 Sam",24,"2.9-17","Mk",6,"1b-6"]
[13,"Donnerstag der 4. Woche im Jahreskreis"," ,"," ,"," ,"," ,"," ,"," ,"," ,"," ,"," ,",null,"Hebr 12,18-19.21-24","1 Kön 2,1-4.10-12","Mk 6,7-13",5,"Donnerstag",4,"Woche im Jahreskreis",null,null,null,null,null,null,null,null,null,null,null,null,null,null,null,null,null,null,null,null,null,null,null,null,null,null,null,null,null,null,null,null,null,null,null,null,"Hebr",12,"18-19.21-24","1 Kön",2,"1-4.10-12","Mk",6,"7-13"]
[13,"Freitag der 4. Woche im Jahreskreis"," ,"," ,"," ,"," ,"," ,"," ,"," ,"," ,"," ,",null,"Hebr 13,1-8","Sir 47,2-11","Mk 6,14-29",6,"Freitag",4,"Woche im Jahreskreis",null,null,null,null,null,null,null,null,null,null,null,null,null,null,null,null,null,null,null,null,null,null,null,null,null,null,null,null,null,null,null,null,null,null,null,null,"Hebr",13,"1-8","Sir",47,"2-11","Mk",6,"14-29"]
[13,"Samstag der 4. Woche im Jahreskreis"," ,"," ,"," ,"," ,"," ,"," ,"," ,"," ,"," ,",null,"Hebr 13,15-17.20-21","1 Kön 3,4-13","Mk 6,30-34",7,"Samstag",4,"Woche im Jahreskreis",null,null,null,null,null,null,null,null,null,null,null,null,null,null,null,null,null,null,null,null,null,null,null,null,null,null,null,null,null,null,null,null,null,null,null,null,"Hebr",13,"15-17.20-21","1 Kön",3,"4-13","Mk",6,"30-34"]
[6,{"$f":"IF(R31<>\"\",R31&\". \"&S31,S31)","v":"5. Sonntag im Jahreskreis"},"Jes 58,7-10","1 Kor 2,1-5","Mt 5,13-16","Ijob 7,1-4.6-7","1 Kor 9,16-19.22-23","Mk 1,29-39","Jes 6,1-2a.3-8","1 Kor 15,1-11","Lk 5,1-11",null," ,"," ,"," ,",1,"Sonntag",5,"Sonntag im Jahreskreis","Jes",58,"7-10","1 Kor",2,"1-5","Mt",5,"13-16",null,null,null,"Ijob",7,"1-4.6-7","1 Kor",9,"16-19.22-23","Mk",1,"29-39",null,null,null,"Jes",6,"1-2a.3-8","1 Kor",15,"1-11","Lk",5,"1-11"]
[13,{"$f":"IF(R32<>\"\",Q32&\" der \"&R32&\". \"&S32,S32)","v":"Montag der 5. Woche im Jahreskreis"}," ,"," ,"," ,"," ,"," ,"," ,"," ,"," ,"," ,",null,"Gen 1,1-19","1 Kön 8,1-7.9-13","Mk 6,53-56",2,"Montag",5,"Woche im Jahreskreis",null,null,null,null,null,null,null,null,null,null,null,null,null,null,null,null,null,null,null,null,null,null,null,null,null,null,null,null,null,null,null,null,null,null,null,null,"Gen",1,"1-19","1 Kön",8,"1-7.9-13","Mk",6,"53-56"]
[13,"Dienstag der 5. Woche im Jahreskreis"," ,"," ,"," ,"," ,"," ,"," ,"," ,"," ,"," ,",null,"Gen 1,20 – 2,4a","1 Kön 8,22-23.27-30","Mk 7,1-13",3,"Dienstag",5,"Woche im Jahreskreis",null,null,null,null,null,null,null,null,null,null,null,null,null,null,null,null,null,null,null,null,null,null,null,null,null,null,null,null,null,null,null,null,null,null,null,null,"Gen",1,"20 – 2,4a","1 Kön",8,"22-23.27-30","Mk",7,"1-13"]
[13,"Mittwoch der 5. Woche im Jahreskreis"," ,"," ,"," ,"," ,"," ,"," ,"," ,"," ,"," ,",null,"Gen 2,4b-9.15-17","1 Kön 10,1-10","Mk 7,14-23",4,"Mittwoch",5,"Woche im Jahreskreis",null,null,null,null,null,null,null,null,null,null,null,null,null,null,null,null,null,null,null,null,null,null,null,null,null,null,null,null,null,null,null,null,null,null,null,null,"Gen",2,"4b-9.15-17","1 Kön",10,"1-10","Mk",7,"14-23"]
[13,"Donnerstag der 5. Woche im Jahreskreis"," ,"," ,"," ,"," ,"," ,"," ,"," ,"," ,"," ,",null,"Gen 2,18-25","1 Kön 11,4-13","Mk 7,24-30",5,"Donnerstag",5,"Woche im Jahreskreis",null,null,null,null,null,null,null,null,null,null,null,null,null,null,null,null,null,null,null,null,null,null,null,null,null,null,null,null,null,null,null,null,null,null,null,null,"Gen",2,"18-25","1 Kön",11,"4-13","Mk",7,"24-30"]
[13,"Freitag der 5. Woche im Jahreskreis"," ,"," ,"," ,"," ,"," ,"," ,"," ,"," ,"," ,",null,"Gen 3,1-8","1 Kön 11,29-32; 12,19","Mk 7,31-37",6,"Freitag",5,"Woche im Jahreskreis",null,null,null,null,null,null,null,null,null,null,null,null,null,null,null,null,null,null,null,null,null,null,null,null,null,null,null,null,null,null,null,null,null,null,null,null,"Gen",3,"1-8","1 Kön",11,"29-32; 12,19","Mk",7,"31-37"]
[13,"Samstag der 5. Woche im Jahreskreis"," ,"," ,"," ,"," ,"," ,"," ,"," ,"," ,"," ,",null,"Gen 3,9-24","1 Kön 12,26-32; 13,33-34","Mk 8,1-10",7,"Samstag",5,"Woche im Jahreskreis",null,null,null,null,null,null,null,null,null,null,null,null,null,null,null,null,null,null,null,null,null,null,null,null,null,null,null,null,null,null,null,null,null,null,null,null,"Gen",3,"9-24","1 Kön",12,"26-32; 13,33-34","Mk",8,"1-10"]
[6,{"$f":"IF(R38<>\"\",R38&\". \"&S38,S38)","v":"6. Sonntag im Jahreskreis"},"Sir 15,15-20 (16-21)","1 Kor 2,6-10","Mt 5,17-37","Lev 13,1-2.43ac.44ab.45-46","1 Kor 10,31 – 11,1","Mk 1,40-45","Jes 17,5-8","1 Kor 15,12.16-20","Lk 6,17.20-26",null," ,"," ,"," ,",1,"Sonntag",6,"Sonntag im Jahreskreis","Sir",15,"15-20 (16-21)","1 Kor",2,"6-10","Mt",5,"17-37","5,20-22a.27-28.33-34a.37",null,null,"Lev",13,"1-2.43ac.44ab.45-46","1 Kor",10,"31 – 11,1","Mk",1,"40-45",null,null,null,"Jes",17,"5-8","1 Kor",15,"12.16-20","Lk",6,"17.20-26"]
[13,{"$f":"IF(R39<>\"\",Q39&\" der \"&R39&\". \"&S39,S39)","v":"Montag der 6. Woche im Jahreskreis"}," ,"," ,"," ,"," ,"," ,"," ,"," ,"," ,"," ,",null,"Gen 4,1-15.25","Jak 1,1-11","Mk 8,11-13",2,"Montag",6,"Woche im Jahreskreis",null,null,null,null,null,null,null,null,null,null,null,null,null,null,null,null,null,null,null,null,null,null,null,null,null,null,null,null,null,null,null,null,null,null,null,null,"Gen",4,"1-15.25","Jak",1,"1-11","Mk",8,"11-13"]
[13,"Dienstag der 6. Woche im Jahreskreis"," ,"," ,"," ,"," ,"," ,"," ,"," ,"," ,"," ,",null,"Gen 6,5-8; 7,1-5.10","Jak 1,12-18","Mk 8,14-21",3,"Dienstag",6,"Woche im Jahreskreis",null,null,null,null,null,null,null,null,null,null,null,null,null,null,null,null,null,null,null,null,null,null,null,null,null,null,null,null,null,null,null,null,null,null,null,null,"Gen",6,"5-8; 7,1-5.10","Jak",1,"12-18","Mk",8,"14-21"]
[13,"Mittwoch der 6. Woche im Jahreskreis"," ,"," ,"," ,"," ,"," ,"," ,"," ,"," ,"," ,",null,"Gen 8,6-13.15-16a.18a.20-22","Jak 1,19-27","Mk 8,22-26",4,"Mittwoch",6,"Woche im Jahreskreis",null,null,null,null,null,null,null,null,null,null,null,null,null,null,null,null,null,null,null,null,null,null,null,null,null,null,null,null,null,null,null,null,null,null,null,null,"Gen",8,"6-13.15-16a.18a.20-22","Jak",1,"19-27","Mk",8,"22-26"]
[13,"Donnerstag der 6. Woche im Jahreskreis"," ,"," ,"," ,"," ,"," ,"," ,"," ,"," ,"," ,",null,"Gen 9,1-13","Jak 2,1-9","Mk 8,27-33",5,"Donnerstag",6,"Woche im Jahreskreis",null,null,null,null,null,null,null,null,null,null,null,null,null,null,null,null,null,null,null,null,null,null,null,null,null,null,null,null,null,null,null,null,null,null,null,null,"Gen",9,"1-13","Jak",2,"1-9","Mk",8,"27-33"]
[13,"Freitag der 6. Woche im Jahreskreis"," ,"," ,"," ,"," ,"," ,"," ,"," ,"," ,"," ,",null,"Gen 11,1-9","Jak 2,14-24.26","Mk 8,34 – 9,1",6,"Freitag",6,"Woche im Jahreskreis",null,null,null,null,null,null,null,null,null,null,null,null,null,null,null,null,null,null,null,null,null,null,null,null,null,null,null,null,null,null,null,null,null,null,null,null,"Gen",11,"1-9","Jak",2,"14-24.26","Mk",8,"34 – 9,1"]
[13,"Samstag der 6. Woche im Jahreskreis"," ,"," ,"," ,"," ,"," ,"," ,"," ,"," ,"," ,",null,"Hebr 11,1-7","Jak 3,1-10","Mk 9,2-13",7,"Samstag",6,"Woche im Jahreskreis",null,null,null,null,null,null,null,null,null,null,null,null,null,null,null,null,null,null,null,null,null,null,null,null,null,null,null,null,null,null,null,null,null,null,null,null,"Hebr",11,"1-7","Jak",3,"1-10","Mk",9,"2-13"]
[6,{"$f":"IF(R45<>\"\",R45&\". \"&S45,S45)","v":"7. Sonntag im Jahreskreis"},"Lev 19,1-2.17-18","1 Kor 3,16-23","Mt 5,34-48","Jes 43,18-19.21-22.24b-25","2 Kor 1,18-22","Mk 2,1-12","1 Sam 26,2.7-9.12-13.22-23","1 Kor 15,45-49","Lk 6,27-38",null," ,"," ,"," ,",1,"Sonntag",7,"Sonntag im Jahreskreis","Lev",19,"1-2.17-18","1 Kor",3,"16-23","Mt",5,"34-48",null,null,null,"Jes",43,"18-19.21-22.24b-25","2 Kor",1,"18-22","Mk",2,"1-12",null,null,null,"1 Sam",26,"2.7-9.12-13.22-23","1 Kor",15,"45-49","Lk",6,"27-38"]
[13,{"$f":"IF(R46<>\"\",Q46&\" der \"&R46&\". \"&S46,S46)","v":"Montag der 7. Woche im Jahreskreis"}," ,"," ,"," ,"," ,"," ,"," ,"," ,"," ,"," ,",null,"Sir 1,1-10","Jak 3,13-18","Mk 9,14-29",2,"Montag",7,"Woche im Jahreskreis",null,null,null,null,null,null,null,null,null,null,null,null,null,null,null,null,null,null,null,null,null,null,null,null,null,null,null,null,null,null,null,null,null,null,null,null,"Sir",1,"1-10","Jak",3,"13-18","Mk",9,"14-29"]
[13,"Dienstag der 7. Woche im Jahreskreis"," ,"," ,"," ,"," ,"," ,"," ,"," ,"," ,"," ,",null,"Sir 2,1-11","Jak 4,1-10","Mk 9,30-37",3,"Dienstag",7,"Woche im Jahreskreis",null,null,null,null,null,null,null,null,null,null,null,null,null,null,null,null,null,null,null,null,null,null,null,null,null,null,null,null,null,null,null,null,null,null,null,null,"Sir",2,"1-11","Jak",4,"1-10","Mk",9,"30-37"]
[13,"Mittwoch der 7. Woche im Jahreskreis"," ,"," ,"," ,"," ,"," ,"," ,"," ,"," ,"," ,",null,"Sir 4,11-19","Jak 4,13-17","Mk 9,38-40",4,"Mittwoch",7,"Woche im Jahreskreis",null,null,null,null,null,null,null,null,null,null,null,null,null,null,null,null,null,null,null,null,null,null,null,null,null,null,null,null,null,null,null,null,null,null,null,null,"Sir",4,"11-19","Jak",4,"13-17","Mk",9,"38-40"]
[13,"Donnerstag der 7. Woche im Jahreskreis"," ,"," ,"," ,"," ,"," ,"," ,"," ,"," ,"," ,",null,"Sir 5,1-8","Jak 5,1-6","Mk 9,41-50",5,"Donnerstag",7,"Woche im Jahreskreis",null,null,null,null,null,null,null,null,null,null,null,null,null,null,null,null,null,null,null,null,null,null,null,null,null,null,null,null,null,null,null,null,null,null,null,null,"Sir",5,"1-8","Jak",5,"1-6","Mk",9,"41-50"]
[13,"Freitag der 7. Woche im Jahreskreis"," ,"," ,"," ,"," ,"," ,"," ,"," ,"," ,"," ,",null,"Sir 6,5-17","Jak 5,9-12","Mk 10,1-12",6,"Freitag",7,"Woche im Jahreskreis",null,null,null,null,null,null,null,null,null,null,null,null,null,null,null,null,null,null,null,null,null,null,null,null,null,null,null,null,null,null,null,null,null,null,null,null,"Sir",6,"5-17","Jak",5,"9-12","Mk",10,"1-12"]
[13,"Samstag der 7. Woche im Jahreskreis"," ,"," ,"," ,"," ,"," ,"," ,"," ,"," ,"," ,",null,"Sir 17,1-4.6-15","Jak 5,13-20","Mk 10,13-16",7,"Samstag",7,"Woche im Jahreskreis",null,null,null,null,null,null,null,null,null,null,null,null,null,null,null,null,null,null,null,null,null,null,null,null,null,null,null,null,null,null,null,null,null,null,null,null,"Sir",17,"1-4.6-15","Jak",5,"13-20","Mk",10,"13-16"]
[6,{"$f":"IF(R52<>\"\",R52&\". \"&S52,S52)","v":"8. Sonntag im Jahreskreis"},"Jes 49,14-15","1 Kor 4,1-5","Mt 6,24-34","Hos 2,16b.17b.21-22","2 Kor 3,1b-6","Mk 2,18-22","Sir 27,4-7 (5-8)","1 Kor 15,54-58","Lk 6,39-45",null," ,"," ,"," ,",1,"Sonntag",8,"Sonntag im Jahreskreis","Jes",49,"14-15","1 Kor",4,"1-5","Mt",6,"24-34",null,null,null,"Hos",2,"16b.17b.21-22","2 Kor",3,"1b-6","Mk",2,"18-22",null,null,null,"Sir",27,"4-7 (5-8)","1 Kor",15,"54-58","Lk",6,"39-45"]
[13,{"$f":"IF(R53<>\"\",Q53&\" der \"&R53&\". \"&S53,S53)","v":"Montag der 8. Woche im Jahreskreis"}," ,"," ,"," ,"," ,"," ,"," ,"," ,"," ,"," ,",null,"Sir 17,24-29","1 Petr 1,3-9","Mk 10,17-27",2,"Montag",8,"Woche im Jahreskreis",null,null,null,null,null,null,null,null,null,null,null,null,null,null,null,null,null,null,null,null,null,null,null,null,null,null,null,null,null,null,null,null,null,null,null,null,"Sir",17,"24-29","1 Petr",1,"3-9","Mk",10,"17-27"]
[13,"Dienstag der 8. Woche im Jahreskreis"," ,"," ,"," ,"," ,"," ,"," ,"," ,"," ,"," ,",null,"Sir 35,1-15","1 Petr 1,10-16","Mk 10,28-31",3,"Dienstag",8,"Woche im Jahreskreis",null,null,null,null,null,null,null,null,null,null,null,null,null,null,null,null,null,null,null,null,null,null,null,null,null,null,null,null,null,null,null,null,null,null,null,null,"Sir",35,"1-15","1 Petr",1,"10-16","Mk",10,"28-31"]
[13,"Mittwoch der 8. Woche im Jahreskreis"," ,"," ,"," ,"," ,"," ,"," ,"," ,"," ,"," ,",null,"Sir 36,1-2.5-6.13.16-22","1 Petr 1,18-25","Mk 10,32-45",4,"Mittwoch",8,"Woche im Jahreskreis",null,null,null,null,null,null,null,null,null,null,null,null,null,null,null,null,null,null,null,null,null,null,null,null,null,null,null,null,null,null,null,null,null,null,null,null,"Sir",36,"1-2.5-6.13.16-22","1 Petr",1,"18-25","Mk",10,"32-45"]
[13,"Donnerstag der 8. Woche im Jahreskreis"," ,"," ,"," ,"," ,"," ,"," ,"," ,"," ,"," ,",null,"Sir 42,15-25","1 Petr 2,2-5.9-12","Mk 10,46-52",5,"Donnerstag",8,"Woche im Jahreskreis",null,null,null,null,null,null,null,null,null,null,null,null,null,null,null,null,null,null,null,null,null,null,null,null,null,null,null,null,null,null,null,null,null,null,null,null,"Sir",42,"15-25","1 Petr",2,"2-5.9-12","Mk",10,"46-52"]
[13,"Freitag der 8. Woche im Jahreskreis"," ,"," ,"," ,"," ,"," ,"," ,"," ,"," ,"," ,",null,"Sir 44,1.9-13","1 Petr 4,7-13","Mk 11,11-25",6,"Freitag",8,"Woche im Jahreskreis",null,null,null,null,null,null,null,null,null,null,null,null,null,null,null,null,null,null,null,null,null,null,null,null,null,null,null,null,null,null,null,null,null,null,null,null,"Sir",44,"1.9-13","1 Petr",4,"7-13","Mk",11,"11-25"]
[13,"Samstag der 8. Woche im Jahreskreis"," ,"," ,"," ,"," ,"," ,"," ,"," ,"," ,"," ,",null,"Sir 51,12c-20","Jud ,17.20b-25","Mk 11,27-33",7,"Samstag",8,"Woche im Jahreskreis",null,null,null,null,null,null,null,null,null,null,null,null,null,null,null,null,null,null,null,null,null,null,null,null,null,null,null,null,null,null,null,null,null,null,null,null,"Sir",51,"12c-20","Jud",null,"17.20b-25","Mk",11,"27-33"]
[6,{"$f":"IF(R59<>\"\",R59&\". \"&S59,S59)","v":"9. Sonntag im Jahreskreis"},"Dtn 11,18.26-28.32","Röm 3,21-25a.28","Mt 7,21-27","Dtn 5,12-15","2 Kor 4,6-11","Mk 2,23 – 3,6","1 Kön 8,41-43","Gal 1,1-2.6-10","Lk 7,1-10",null," ,"," ,"," ,",1,"Sonntag",9,"Sonntag im Jahreskreis","Dtn",11,"18.26-28.32","Röm",3,"21-25a.28","Mt",7,"21-27",null,null,null,"Dtn",5,"12-15","2 Kor",4,"6-11","Mk",2,"23 – 3,6","2,23-28",null,null,"1 Kön",8,"41-43","Gal",1,"1-2.6-10","Lk",7,"1-10"]
[13,{"$f":"IF(R60<>\"\",Q60&\" der \"&R60&\". \"&S60,S60)","v":"Montag der 9. Woche im Jahreskreis"}," ,"," ,"," ,"," ,"," ,"," ,"," ,"," ,"," ,",null,"Tob 1,3; 2,1b-8","2 Petr 1,2-7","Mk 12,1-12",2,"Montag",9,"Woche im Jahreskreis",null,null,null,null,null,null,null,null,null,null,null,null,null,null,null,null,null,null,null,null,null,null,null,null,null,null,null,null,null,null,null,null,null,null,null,null,"Tob",1,"3; 2,1b-8","2 Petr",1,"2-7","Mk",12,"1-12"]
[13,"Dienstag der 9. Woche im Jahreskreis"," ,"," ,"," ,"," ,"," ,"," ,"," ,"," ,"," ,",null,"Tob 2,9-14","2 Petr 2,12-15a.17-18","Mk 12,13-17",3,"Dienstag",9,"Woche im Jahreskreis",null,null,null,null,null,null,null,null,null,null,null,null,null,null,null,null,null,null,null,null,null,null,null,null,null,null,null,null,null,null,null,null,null,null,null,null,"Tob",2,"9-14","2 Petr",2,"12-15a.17-18","Mk",12,"13-17"]
[13,"Mittwoch der 9. Woche im Jahreskreis"," ,"," ,"," ,"," ,"," ,"," ,"," ,"," ,"," ,",null,"Tob 3,1-11a.16-17a","2 Tim 1,1-3.6-12","Mk 12,18-27",4,"Mittwoch",9,"Woche im Jahreskreis",null,null,null,null,null,null,null,null,null,null,null,null,null,null,null,null,null,null,null,null,null,null,null,null,null,null,null,null,null,null,null,null,null,null,null,null,"Tob",3,"1-11a.16-17a","2 Tim",1,"1-3.6-12","Mk",12,"18-27"]
[13,"Donnerstag der 9. Woche im Jahreskreis"," ,"," ,"," ,"," ,"," ,"," ,"," ,"," ,"," ,",null,"Tob 6,10-11; 7,1.8; 8,4-9","2 Tim 2,8-15","Mk 12,28b-34",5,"Donnerstag",9,"Woche im Jahreskreis",null,null,null,null,null,null,null,null,null,null,null,null,null,null,null,null,null,null,null,null,null,null,null,null,null,null,null,null,null,null,null,null,null,null,null,null,"Tob",6,"10-11; 7,1.8; 8,4-9","2 Tim",2,"8-15","Mk",12,"28b-34"]
[13,"Freitag der 9. Woche im Jahreskreis"," ,"," ,"," ,"," ,"," ,"," ,"," ,"," ,"," ,",null,"Tob 11,5-17","2 Tim 3,10-17","Mk 12,35-37",6,"Freitag",9,"Woche im Jahreskreis",null,null,null,null,null,null,null,null,null,null,null,null,null,null,null,null,null,null,null,null,null,null,null,null,null,null,null,null,null,null,null,null,null,null,null,null,"Tob",11,"5-17","2 Tim",3,"10-17","Mk",12,"35-37"]
[13,"Samstag der 9. Woche im Jahreskreis"," ,"," ,"," ,"," ,"," ,"," ,"," ,"," ,"," ,",null,"Tob 12,1.5-15.20","2 Tim 4,1-8","Mk 12,38-44",7,"Samstag",9,"Woche im Jahreskreis",null,null,null,null,null,null,null,null,null,null,null,null,null,null,null,null,null,null,null,null,null,null,null,null,null,null,null,null,null,null,null,null,null,null,null,null,"Tob",12,"1.5-15.20","2 Tim",4,"1-8","Mk",12,"38-44"]
[6,{"$f":"IF(R66<>\"\",R66&\". \"&S66,S66)","v":"10. Sonntag im Jahreskreis"},"Hos 6,3-6","Röm 4,18-25","Mt 9,9-13","Gen 3,9-15","2 Kor 4,13 – 5,1","Mk 3,20-35","1 Kön 17,17-24","Gal 1,11-19","Lk 7,11-17",null," ,"," ,"," ,",1,"Sonntag",10,"Sonntag im Jahreskreis","Hos",6,"3-6","Röm",4,"18-25","Mt",9,"9-13",null,null,null,"Gen",3,"9-15","2 Kor",4,"13 – 5,1","Mk",3,"20-35",null,null,null,"1 Kön",17,"17-24","Gal",1,"11-19","Lk",7,"11-17"]
[13,{"$f":"IF(R67<>\"\",Q67&\" der \"&R67&\". \"&S67,S67)","v":"Montag der 10. Woche im Jahreskreis"},{"$f":"T67&\" \"&U67&\",\"&V67","v":" ,"},{"$f":"W67&\" \"&X67&\",\"&Y67","v":" ,"},{"$f":"Z67&\" \"&AA67&\",\"&AB67","v":" ,"},{"$f":"AF67&\" \"&AG67&\",\"&AH67","v":" ,"},{"$f":"AI67&\" \"&AJ67&\",\"&AK67","v":" ,"},{"$f":"AL67&\" \"&AM67&\",\"&AN67","v":" ,"},{"$f":"AR67&\" \"&AS67&\",\"&AT67","v":" ,"},{"$f":"AU67&\" \"&AV67&\",\"&AW67","v":" ,"},{"$f":"AX67&\" \"&AY67&\",\"&AZ67","v":" ,"},null,{"$f":"BD67&\" \"&BE67&\",\"&BF67","v":"2 Kor 1,1-7"},{"$f":"BG67&\" \"&BH67&\",\"&BI67","v":"1 Kön 17,1-6"},{"$f":"BJ67&\" \"&BK67&\",\"&BL67","v":"Mt 5,1-12"},2,"Montag",10,"Woche im Jahreskreis",null,null,null,null,null,null,null,null,null,null,null,null,null,null,null,null,null,null,null,null,null,null,null,null,null,null,null,null,null,null,null,null,null,null,null,null,"2 Kor",1,"1-7","1 Kön",17,"1-6","Mt",5,"1-12"]
[13,"Dienstag der 10. Woche im Jahreskreis"," ,"," ,"," ,"," ,"," ,"," ,"," ,"," ,"," ,",null,"2 Kor 1,18-22","1 Kön 17,7-16","Mt 5,13-16",3,"Dienstag",10,"Woche im Jahreskreis",null,null,null,null,null,null,null,null,null,null,null,null,null,null,null,null,null,null,null,null,null,null,null,null,null,null,null,null,null,null,null,null,null,null,null,null,"2 Kor",1,"18-22","1 Kön",17,"7-16","Mt",5,"13-16"]
[13,"Mittwoch der 10. Woche im Jahreskreis"," ,"," ,"," ,"," ,"," ,"," ,"," ,"," ,"," ,",null,"2 Kor 3,4-11","1 Kön 18,20-39","Mt 5,17-19",4,"Mittwoch",10,"Woche im Jahreskreis",null,null,null,null,null,null,null,null,null,null,null,null,null,null,null,null,null,null,null,null,null,null,null,null,null,null,null,null,null,null,null,null,null,null,null,null,"2 Kor",3,"4-11","1 Kön",18,"20-39","Mt",5,"17-19"]
[13,"Donnerstag der 10. Woche im Jahreskreis"," ,"," ,"," ,"," ,"," ,"," ,"," ,"," ,"," ,",null,"2 Kor 3,15 – 4,1.3-6","1 Kön 18,41-46","Mt 5,20-26",5,"Donnerstag",10,"Woche im Jahreskreis",null,null,null,null,null,null,null,null,null,null,null,null,null,null,null,null,null,null,null,null,null,null,null,null,null,null,null,null,null,null,null,null,null,null,null,null,"2 Kor",3,"15 – 4,1.3-6","1 Kön",18,"41-46","Mt",5,"20-26"]
[13,"Freitag der 10. Woche im Jahreskreis"," ,"," ,"," ,"," ,"," ,"," ,"," ,"," ,"," ,",null,"2 Kor 4,7-15","1 Kön 19,9a.11-16","Mt 5,27-32",6,"Freitag",10,"Woche im Jahreskreis",null,null,null,null,null,null,null,null,null,null,null,null,null,null,null,null,null,null,null,null,null,null,null,null,null,null,null,null,null,null,null,null,null,null,null,null,"2 Kor",4,"7-15","1 Kön",19,"9a.11-16","Mt",5,"27-32"]
[13,"Samstag der 10. Woche im Jahreskreis"," ,"," ,"," ,"," ,"," ,"," ,"," ,"," ,"," ,",null,"2 Kor 5,14-21","1 Kön 19,19-21","Mt 5,33-37",7,"Samstag",10,"Woche im Jahreskreis",null,null,null,null,null,null,null,null,null,null,null,null,null,null,null,null,null,null,null,null,null,null,null,null,null,null,null,null,null,null,null,null,null,null,null,null,"2 Kor",5,"14-21","1 Kön",19,"19-21","Mt",5,"33-37"]
[6,{"$f":"IF(R73<>\"\",R73&\". \"&S73,S73)","v":"11. Sonntag im Jahreskreis"},"Ex 19,2-6a","Röm 5,6-11","Mt 9,36 - 10,8","Ez 17,22-24","2 Kor 5,6-10","Mk 4,26-34","2 Sam 12,7-10.13","Gal 2,16.19-21","Lk 7,36 – 8,3",null," ,"," ,"," ,",1,"Sonntag",11,"Sonntag im Jahreskreis","Ex",19,"2-6a","Röm",5,"6-11","Mt",9,"36 - 10,8",null,null,null,"Ez",17,"22-24","2 Kor",5,"6-10","Mk",4,"26-34",null,null,null,"2 Sam",12,"7-10.13","Gal",2,"16.19-21","Lk",7,"36 – 8,3","7,36-50"]
[13,{"$f":"IF(R74<>\"\",Q74&\" der \"&R74&\". \"&S74,S74)","v":"Montag der 11. Woche im Jahreskreis"}," ,"," ,"," ,"," ,"," ,"," ,"," ,"," ,"," ,",null,"2 Kor 6,1-10","1 Kön 21,1-16","Mt 5,38-42",2,"Montag",11,"Woche im Jahreskreis",null,null,null,null,null,null,null,null,null,null,null,null,null,null,null,null,null,null,null,null,null,null,null,null,null,null,null,null,null,null,null,null,null,null,null,null,"2 Kor",6,"1-10","1 Kön",21,"1-16","Mt",5,"38-42"]
[13,"Dienstag der 11. Woche im Jahreskreis"," ,"," ,"," ,"," ,"," ,"," ,"," ,"," ,"," ,",null,"2 Kor 8,1-9","1 Kön 21,17-29","Mt 5,43-48",3,"Dienstag",11,"Woche im Jahreskreis",null,null,null,null,null,null,null,null,null,null,null,null,null,null,null,null,null,null,null,null,null,null,null,null,null,null,null,null,null,null,null,null,null,null,null,null,"2 Kor",8,"1-9","1 Kön",21,"17-29","Mt",5,"43-48"]
[13,"Mittwoch der 11. Woche im Jahreskreis"," ,"," ,"," ,"," ,"," ,"," ,"," ,"," ,"," ,",null,"2 Kor 9,6-11","2 Kön 2,1.4b.6-14","Mt 6,1-6.16-18",4,"Mittwoch",11,"Woche im Jahreskreis",null,null,null,null,null,null,null,null,null,null,null,null,null,null,null,null,null,null,null,null,null,null,null,null,null,null,null,null,null,null,null,null,null,null,null,null,"2 Kor",9,"6-11","2 Kön",2,"1.4b.6-14","Mt",6,"1-6.16-18"]
[13,"Donnerstag der 11. Woche im Jahreskreis"," ,"," ,"," ,"," ,"," ,"," ,"," ,"," ,"," ,",null,"2 Kor 11,1-11","Sir 48,1-14","Mt 6,7-15",5,"Donnerstag",11,"Woche im Jahreskreis",null,null,null,null,null,null,null,null,null,null,null,null,null,null,null,null,null,null,null,null,null,null,null,null,null,null,null,null,null,null,null,null,null,null,null,null,"2 Kor",11,"1-11","Sir",48,"1-14","Mt",6,"7-15"]
[13,"Freitag der 11. Woche im Jahreskreis"," ,"," ,"," ,"," ,"," ,"," ,"," ,"," ,"," ,",null,"2 Kor 11,18.21b-30","2 Kön 11,1-4.9-18.20","Mt 6,19-23",6,"Freitag",11,"Woche im Jahreskreis",null,null,null,null,null,null,null,null,null,null,null,null,null,null,null,null,null,null,null,null,null,null,null,null,null,null,null,null,null,null,null,null,null,null,null,null,"2 Kor",11,"18.21b-30","2 Kön",11,"1-4.9-18.20","Mt",6,"19-23"]
[13,"Samstag der 11. Woche im Jahreskreis"," ,"," ,"," ,"," ,"," ,"," ,"," ,"," ,"," ,",null,"2 Kor 12,1-10","2 Chr 24,17-25","Mt 6,24-34",7,"Samstag",11,"Woche im Jahreskreis",null,null,null,null,null,null,null,null,null,null,null,null,null,null,null,null,null,null,null,null,null,null,null,null,null,null,null,null,null,null,null,null,null,null,null,null,"2 Kor",12,"1-10","2 Chr",24,"17-25","Mt",6,"24-34"]
[6,{"$f":"IF(R80<>\"\",R80&\". \"&S80,S80)","v":"12. Sonntag im Jahreskreis"},"Jer 20,10-13","Röm 5,12-15","Mt 10,26-33","Ijob 38,1.8-11","2 Kor 5,14-17","Mk 4,35-41","Sach 12,10-11; 13,1","Gal 3,26-29","Lk 9,18-24",null," ,"," ,"," ,",1,"Sonntag",12,"Sonntag im Jahreskreis","Jer",20,"10-13","Röm",5,"12-15","Mt",10,"26-33",null,null,null,"Ijob",38,"1.8-11","2 Kor",5,"14-17","Mk",4,"35-41",null,null,null,"Sach",12,"10-11; 13,1","Gal",3,"26-29","Lk",9,"18-24"]
[13,{"$f":"IF(R81<>\"\",Q81&\" der \"&R81&\". \"&S81,S81)","v":"Montag der 12. Woche im Jahreskreis"}," ,"," ,"," ,"," ,"," ,"," ,"," ,"," ,"," ,",null,"Gen 12,1-9","2 Kön 17,5-8.13-15a.18","Mt 7,1-5",2,"Montag",12,"Woche im Jahreskreis",null,null,null,null,null,null,null,null,null,null,null,null,null,null,null,null,null,null,null,null,null,null,null,null,null,null,null,null,null,null,null,null,null,null,null,null,"Gen",12,"1-9","2 Kön",17,"5-8.13-15a.18","Mt",7,"1-5"]
[13,"Dienstag der 12. Woche im Jahreskreis"," ,"," ,"," ,"," ,"," ,"," ,"," ,"," ,"," ,",null,"Gen 13,2.5-18","2 Kön 19,9b-11.14-21.31-35a.36","Mt 7,6.12-14",3,"Dienstag",12,"Woche im Jahreskreis",null,null,null,null,null,null,null,null,null,null,null,null,null,null,null,null,null,null,null,null,null,null,null,null,null,null,null,null,null,null,null,null,null,null,null,null,"Gen",13,"2.5-18","2 Kön",19,"9b-11.14-21.31-35a.36","Mt",7,"6.12-14"]
[13,"Mittwoch der 12. Woche im Jahreskreis"," ,"," ,"," ,"," ,"," ,"," ,"," ,"," ,"," ,",null,"Gen 15,1-12.17-18","2 Kön 22,8-13; 23,1-3","Mt 7,15-20",4,"Mittwoch",12,"Woche im Jahreskreis",null,null,null,null,null,null,null,null,null,null,null,null,null,null,null,null,null,null,null,null,null,null,null,null,null,null,null,null,null,null,null,null,null,null,null,null,"Gen",15,"1-12.17-18","2 Kön",22,"8-13; 23,1-3","Mt",7,"15-20"]
[13,"Donnerstag der 12. Woche im Jahreskreis"," ,"," ,"," ,"," ,"," ,"," ,"," ,"," ,"," ,",null,"Gen 16,1-12.15-16","2 Kön 24,8-17","Mt 7,21-29",5,"Donnerstag",12,"Woche im Jahreskreis",null,null,null,null,null,null,null,null,null,null,null,null,null,null,null,null,null,null,null,null,null,null,null,null,null,null,null,null,null,null,null,null,null,null,null,null,"Gen",16,"1-12.15-16","2 Kön",24,"8-17","Mt",7,"21-29"]
[13,"Freitag der 12. Woche im Jahreskreis"," ,"," ,"," ,"," ,"," ,"," ,"," ,"," ,"," ,",null,"Gen 17,1.9-10.15-22","2 Kön 25,1b-12","Mt 8,1-4",6,"Freitag",12,"Woche im Jahreskreis",null,null,null,null,null,null,null,null,null,null,null,null,null,null,null,null,null,null,null,null,null,null,null,null,null,null,null,null,null,null,null,null,null,null,null,null,"Gen",17,"1.9-10.15-22","2 Kön",25,"1b-12","Mt",8,"1-4"]
[13,"Samstag der 12. Woche im Jahreskreis"," ,"," ,"," ,"," ,"," ,"," ,"," ,"," ,"," ,",null,"Gen 18,1-15","Klgl 2,2.10-14.18-19","Mt 8,5-17",7,"Samstag",12,"Woche im Jahreskreis",null,null,null,null,null,null,null,null,null,null,null,null,null,null,null,null,null,null,null,null,null,null,null,null,null,null,null,null,null,null,null,null,null,null,null,null,"Gen",18,"1-15","Klgl",2,"2.10-14.18-19","Mt",8,"5-17"]
[6,{"$f":"IF(R87<>\"\",R87&\". \"&S87,S87)","v":"13. Sonntag im Jahreskreis"},"2 Kön 4,8-11.14-16a","Röm 6,3-4.8-11","Mt 10,37-42","Weish 1,13-15; 2,23-24","2 Kor 8,7.9.13-15","Mk 5,21-43","1 Kön 19,16b.19-21","Gal 5,1.13-18","Lk 9,51-62",null," ,"," ,"," ,",1,"Sonntag",13,"Sonntag im Jahreskreis","2 Kön",4,"8-11.14-16a","Röm",6,"3-4.8-11","Mt",10,"37-42",null,null,null,"Weish",1,"13-15; 2,23-24","2 Kor",8,"7.9.13-15","Mk",5,"21-43","5,21-24.35b-43",null,null,"1 Kön",19,"16b.19-21","Gal",5,"1.13-18","Lk",9,"51-62"]
[13,{"$f":"IF(R88<>\"\",Q88&\" der \"&R88&\". \"&S88,S88)","v":"Montag der 13. Woche im Jahreskreis"}," ,"," ,"," ,"," ,"," ,"," ,"," ,"," ,"," ,",null,"Gen 18,16-33","Am 2,6-10.13-16","Mt 8,18-22",2,"Montag",13,"Woche im Jahreskreis",null,null,null,null,null,null,null,null,null,null,null,null,null,null,null,null,null,null,null,null,null,null,null,null,null,null,null,null,null,null,null,null,null,null,null,null,"Gen",18,"16-33","Am",2,"6-10.13-16","Mt",8,"18-22"]
[13,"Dienstag der 13. Woche im Jahreskreis"," ,"," ,"," ,"," ,"," ,"," ,"," ,"," ,"," ,",null,"Gen 19,15-29","Am 3,1-8; 4,11-12","Mt 8,23-27",3,"Dienstag",13,"Woche im Jahreskreis",null,null,null,null,null,null,null,null,null,null,null,null,null,null,null,null,null,null,null,null,null,null,null,null,null,null,null,null,null,null,null,null,null,null,null,null,"Gen",19,"15-29","Am",3,"1-8; 4,11-12","Mt",8,"23-27"]
[13,"Mittwoch der 13. Woche im Jahreskreis"," ,"," ,"," ,"," ,"," ,"," ,"," ,"," ,"," ,",null,"Gen 21,5.8-20","Am 5,14-15.21-24","Mt 8,28-34",4,"Mittwoch",13,"Woche im Jahreskreis",null,null,null,null,null,null,null,null,null,null,null,null,null,null,null,null,null,null,null,null,null,null,null,null,null,null,null,null,null,null,null,null,null,null,null,null,"Gen",21,"5.8-20","Am",5,"14-15.21-24","Mt",8,"28-34"]
[13,"Donnerstag der 13. Woche im Jahreskreis"," ,"," ,"," ,"," ,"," ,"," ,"," ,"," ,"," ,",null,"Gen 22,1-9","Am 7,10-17","Mt 9,1-8",5,"Donnerstag",13,"Woche im Jahreskreis",null,null,null,null,null,null,null,null,null,null,null,null,null,null,null,null,null,null,null,null,null,null,null,null,null,null,null,null,null,null,null,null,null,null,null,null,"Gen",22,"1-9","Am",7,"10-17","Mt",9,"1-8"]
[13,"Freitag der 13. Woche im Jahreskreis"," ,"," ,"," ,"," ,"," ,"," ,"," ,"," ,"," ,",null,"Gen 23,1-4.19; 24,1-8.62-67","Am 8,4-6.9-12","Mt 9,9-13",6,"Freitag",13,"Woche im Jahreskreis",null,null,null,null,null,null,null,null,null,null,null,null,null,null,null,null,null,null,null,null,null,null,null,null,null,null,null,null,null,null,null,null,null,null,null,null,"Gen",23,"1-4.19; 24,1-8.62-67","Am",8,"4-6.9-12","Mt",9,"9-13"]
[13,"Samstag der 13. Woche im Jahreskreis"," ,"," ,"," ,"," ,"," ,"," ,"," ,"," ,"," ,",null,"Gen 27,1-5.15-29","Am 9,11-15","Mt 9,14-17",7,"Samstag",13,"Woche im Jahreskreis",null,null,null,null,null,null,null,null,null,null,null,null,null,null,null,null,null,null,null,null,null,null,null,null,null,null,null,null,null,null,null,null,null,null,null,null,"Gen",27,"1-5.15-29","Am",9,"11-15","Mt",9,"14-17"]
[6,{"$f":"IF(R94<>\"\",R94&\". \"&S94,S94)","v":"14. Sonntag im Jahreskreis"},"Sach 9,9-10","Röm 8,9.11-13","Mt 11,25-30","Ez 1,28c – 2,5","2 Kor 12,7-10","Mk 6,1b-6","Jes 66,10-14c","Gal 6,14-18","Lk 10,1-12.17-20",null," ,"," ,"," ,",1,"Sonntag",14,"Sonntag im Jahreskreis","Sach",9,"9-10","Röm",8,"9.11-13","Mt",11,"25-30",null,null,null,"Ez",1,"28c – 2,5","2 Kor",12,"7-10","Mk",6,"1b-6",null,null,null,"Jes",66,"10-14c","Gal",6,"14-18","Lk",10,"1-12.17-20","10,1-9"]
[13,{"$f":"IF(R95<>\"\",Q95&\" der \"&R95&\". \"&S95,S95)","v":"Montag der 14. Woche im Jahreskreis"}," ,"," ,"," ,"," ,"," ,"," ,"," ,"," ,"," ,",null,"Gen 28,10-22a","Hos 2,16.17b-18.21-22","Mt 9,18-26",2,"Montag",14,"Woche im Jahreskreis",null,null,null,null,null,null,null,null,null,null,null,null,null,null,null,null,null,null,null,null,null,null,null,null,null,null,null,null,null,null,null,null,null,null,null,null,"Gen",28,"10-22a","Hos",2,"16.17b-18.21-22","Mt",9,"18-26"]
[13,"Dienstag der 14. Woche im Jahreskreis"," ,"," ,"," ,"," ,"," ,"," ,"," ,"," ,"," ,",null,"Gen 32,23-33","Hos 8,4-7.11-13","Mt 9,32-38",3,"Dienstag",14,"Woche im Jahreskreis",null,null,null,null,null,null,null,null,null,null,null,null,null,null,null,null,null,null,null,null,null,null,null,null,null,null,null,null,null,null,null,null,null,null,null,null,"Gen",32,"23-33","Hos",8,"4-7.11-13","Mt",9,"32-38"]
[13,"Mittwoch der 14. Woche im Jahreskreis"," ,"," ,"," ,"," ,"," ,"," ,"," ,"," ,"," ,",null,"Gen 41,55-57; 42,5-7a.17-24a","Hos 10,1-3.7-8.12","Mt 10,1-7",4,"Mittwoch",14,"Woche im Jahreskreis",null,null,null,null,null,null,null,null,null,null,null,null,null,null,null,null,null,null,null,null,null,null,null,null,null,null,null,null,null,null,null,null,null,null,null,null,"Gen",41,"55-57; 42,5-7a.17-24a","Hos",10,"1-3.7-8.12","Mt",10,"1-7"]
[13,"Donnerstag der 14. Woche im Jahreskreis"," ,"," ,"," ,"," ,"," ,"," ,"," ,"," ,"," ,",null,"Gen 44,18-21.23b-29; 45,1-5","Hos 11,1-4.8a.c-9","Mt 10,7-15",5,"Donnerstag",14,"Woche im Jahreskreis",null,null,null,null,null,null,null,null,null,null,null,null,null,null,null,null,null,null,null,null,null,null,null,null,null,null,null,null,null,null,null,null,null,null,null,null,"Gen",44,"18-21.23b-29; 45,1-5","Hos",11,"1-4.8a.c-9","Mt",10,"7-15"]
[13,"Freitag der 14. Woche im Jahreskreis"," ,"," ,"," ,"," ,"," ,"," ,"," ,"," ,"," ,",null,"Gen 46,1-7.28-30","Hos 14,2-10","Mt 10,16-23",6,"Freitag",14,"Woche im Jahreskreis",null,null,null,null,null,null,null,null,null,null,null,null,null,null,null,null,null,null,null,null,null,null,null,null,null,null,null,null,null,null,null,null,null,null,null,null,"Gen",46,"1-7.28-30","Hos",14,"2-10","Mt",10,"16-23"]
[13,"Samstag der 14. Woche im Jahreskreis"," ,"," ,"," ,"," ,"," ,"," ,"," ,"," ,"," ,",null,"Gen 49,29-33; 50,15-26a","Jes 6,1-8","Mt 10,24-33",7,"Samstag",14,"Woche im Jahreskreis",null,null,null,null,null,null,null,null,null,null,null,null,null,null,null,null,null,null,null,null,null,null,null,null,null,null,null,null,null,null,null,null,null,null,null,null,"Gen",49,"29-33; 50,15-26a","Jes",6,"1-8","Mt",10,"24-33"]
[6,{"$f":"IF(R101<>\"\",R101&\". \"&S101,S101)","v":"15. Sonntag im Jahreskreis"},"Jes 55,10-11","Röm 8,18-23","Mt 13,1-23","Am 7,12-15","Eph 1,3-14","Mk 6,7-13","Dtn 30,10-14","Kol 1,15-20","Lk 10,25-37",null," ,"," ,"," ,",1,"Sonntag",15,"Sonntag im Jahreskreis","Jes",55,"10-11","Röm",8,"18-23","Mt",13,"1-23","13,1-9",null,null,"Am",7,"12-15","Eph",1,"3-14","Mk",6,"7-13",null,null,null,"Dtn",30,"10-14","Kol",1,"15-20","Lk",10,"25-37"]
[13,{"$f":"IF(R102<>\"\",Q102&\" der \"&R102&\". \"&S102,S102)","v":"Montag der 15. Woche im Jahreskreis"}," ,"," ,"," ,"," ,"," ,"," ,"," ,"," ,"," ,",null,"Ex 1,8-14.22","Jes 1,10-17","Mt 10,34 – 11,1",2,"Montag",15,"Woche im Jahreskreis",null,null,null,null,null,null,null,null,null,null,null,null,null,null,null,null,null,null,null,null,null,null,null,null,null,null,null,null,null,null,null,null,null,null,null,null,"Ex",1,"8-14.22","Jes",1,"10-17","Mt",10,"34 – 11,1"]
[13,"Dienstag der 15. Woche im Jahreskreis"," ,"," ,"," ,"," ,"," ,"," ,"," ,"," ,"," ,",null,"Ex 2,1-15a","Jes 7,1-9","Mt 11,20-24",3,"Dienstag",15,"Woche im Jahreskreis",null,null,null,null,null,null,null,null,null,null,null,null,null,null,null,null,null,null,null,null,null,null,null,null,null,null,null,null,null,null,null,null,null,null,null,null,"Ex",2,"1-15a","Jes",7,"1-9","Mt",11,"20-24"]
[13,"Mittwoch der 15. Woche im Jahreskreis"," ,"," ,"," ,"," ,"," ,"," ,"," ,"," ,"," ,",null,"Ex 3,1-6.9-12","Jes 10,5-7.13-16","Mt 11,25-27",4,"Mittwoch",15,"Woche im Jahreskreis",null,null,null,null,null,null,null,null,null,null,null,null,null,null,null,null,null,null,null,null,null,null,null,null,null,null,null,null,null,null,null,null,null,null,null,null,"Ex",3,"1-6.9-12","Jes",10,"5-7.13-16","Mt",11,"25-27"]
[13,"Donnerstag der 15. Woche im Jahreskreis"," ,"," ,"," ,"," ,"," ,"," ,"," ,"," ,"," ,",null,"Ex 3,13-20","Jes 26,7-9.12.16-19","Mt 11,28-30",5,"Donnerstag",15,"Woche im Jahreskreis",null,null,null,null,null,null,null,null,null,null,null,null,null,null,null,null,null,null,null,null,null,null,null,null,null,null,null,null,null,null,null,null,null,null,null,null,"Ex",3,"13-20","Jes",26,"7-9.12.16-19","Mt",11,"28-30"]
[13,"Freitag der 15. Woche im Jahreskreis"," ,"," ,"," ,"," ,"," ,"," ,"," ,"," ,"," ,",null,"Ex 11,10 – 12,14","Jes 38,1-6.21-22.7-8","Mt 12,1-8",6,"Freitag",15,"Woche im Jahreskreis",null,null,null,null,null,null,null,null,null,null,null,null,null,null,null,null,null,null,null,null,null,null,null,null,null,null,null,null,null,null,null,null,null,null,null,null,"Ex",11,"10 – 12,14","Jes",38,"1-6.21-22.7-8","Mt",12,"1-8"]
[13,"Samstag der 15. Woche im Jahreskreis"," ,"," ,"," ,"," ,"," ,"," ,"," ,"," ,"," ,",null,"Ex 12,37-42","Mi 2,1-5","Mt 12,14-21",7,"Samstag",15,"Woche im Jahreskreis",null,null,null,null,null,null,null,null,null,null,null,null,null,null,null,null,null,null,null,null,null,null,null,null,null,null,null,null,null,null,null,null,null,null,null,null,"Ex",12,"37-42","Mi",2,"1-5","Mt",12,"14-21"]
[6,{"$f":"IF(R108<>\"\",R108&\". \"&S108,S108)","v":"16. Sonntag im Jahreskreis"},"Weish 12,13.16-19","Röm 8,26-27","Mt 13,24-43","Jer 23,1-6","Eph 2,13-18","Mk 6,30-34","Gen 18,1-10a","Kol 1,24-28","Lk 10,38-42",null," ,"," ,"," ,",1,"Sonntag",16,"Sonntag im Jahreskreis","Weish",12,"13.16-19","Röm",8,"26-27","Mt",13,"24-43","13,24-30",null,null,"Jer",23,"1-6","Eph",2,"13-18","Mk",6,"30-34",null,null,null,"Gen",18,"1-10a","Kol",1,"24-28","Lk",10,"38-42"]
[13,{"$f":"IF(R109<>\"\",Q109&\" der \"&R109&\". \"&S109,S109)","v":"Montag der 16. Woche im Jahreskreis"}," ,"," ,"," ,"," ,"," ,"," ,"," ,"," ,"," ,",null,"Ex 14,5-18","Mi 6,1-4.6-8","Mt 12,38-42",2,"Montag",16,"Woche im Jahreskreis",null,null,null,null,null,null,null,null,null,null,null,null,null,null,null,null,null,null,null,null,null,null,null,null,null,null,null,null,null,null,null,null,null,null,null,null,"Ex",14,"5-18","Mi",6,"1-4.6-8","Mt",12,"38-42"]
[13,"Dienstag der 16. Woche im Jahreskreis"," ,"," ,"," ,"," ,"," ,"," ,"," ,"," ,"," ,",null,"Ex 14,21 – 15,1","Mi 7,14-15.18-20","Mt 12,46-50",3,"Dienstag",16,"Woche im Jahreskreis",null,null,null,null,null,null,null,null,null,null,null,null,null,null,null,null,null,null,null,null,null,null,null,null,null,null,null,null,null,null,null,null,null,null,null,null,"Ex",14,"21 – 15,1","Mi",7,"14-15.18-20","Mt",12,"46-50"]
[13,"Mittwoch der 16. Woche im Jahreskreis"," ,"," ,"," ,"," ,"," ,"," ,"," ,"," ,"," ,",null,"Ex 16,1-5.9-15","Jer 1,1.4-10","Mt 13,1-9",4,"Mittwoch",16,"Woche im Jahreskreis",null,null,null,null,null,null,null,null,null,null,null,null,null,null,null,null,null,null,null,null,null,null,null,null,null,null,null,null,null,null,null,null,null,null,null,null,"Ex",16,"1-5.9-15","Jer",1,"1.4-10","Mt",13,"1-9"]
[13,"Donnerstag der 16. Woche im Jahreskreis"," ,"," ,"," ,"," ,"," ,"," ,"," ,"," ,"," ,",null,"Ex 19,1-2.9-1.16-20","Jer 2,1-3.7-8.12-13","Mt 13,10-17",5,"Donnerstag",16,"Woche im Jahreskreis",null,null,null,null,null,null,null,null,null,null,null,null,null,null,null,null,null,null,null,null,null,null,null,null,null,null,null,null,null,null,null,null,null,null,null,null,"Ex",19,"1-2.9-1.16-20","Jer",2,"1-3.7-8.12-13","Mt",13,"10-17"]
[13,"Freitag der 16. Woche im Jahreskreis"," ,"," ,"," ,"," ,"," ,"," ,"," ,"," ,"," ,",null,"Ex 20,1-17","Jer 3,14-17","Mt 13,18-23",6,"Freitag",16,"Woche im Jahreskreis",null,null,null,null,null,null,null,null,null,null,null,null,null,null,null,null,null,null,null,null,null,null,null,null,null,null,null,null,null,null,null,null,null,null,null,null,"Ex",20,"1-17","Jer",3,"14-17","Mt",13,"18-23"]
[13,"Samstag der 16. Woche im Jahreskreis"," ,"," ,"," ,"," ,"," ,"," ,"," ,"," ,"," ,",null,"Ex 24,3-8","Jer 7,1-11","Mt 13,24-30",7,"Samstag",16,"Woche im Jahreskreis",null,null,null,null,null,null,null,null,null,null,null,null,null,null,null,null,null,null,null,null,null,null,null,null,null,null,null,null,null,null,null,null,null,null,null,null,"Ex",24,"3-8","Jer",7,"1-11","Mt",13,"24-30"]
[6,{"$f":"IF(R115<>\"\",R115&\". \"&S115,S115)","v":"17. Sonntag im Jahreskreis"},"1 Kön 3,5.7-12","Röm 8,28-30","Mt 13,44-52","2 Kön 4,42-44","Eph 4,1-6","Joh 6,1-15","Gen 18,20-32","Kol 2,12-14","Lk 11,1-13",null," ,"," ,"," ,",1,"Sonntag",17,"Sonntag im Jahreskreis","1 Kön",3,"5.7-12","Röm",8,"28-30","Mt",13,"44-52","13,44-46",null,null,"2 Kön",4,"42-44","Eph",4,"1-6","Joh",6,"1-15",null,null,null,"Gen",18,"20-32","Kol",2,"12-14","Lk",11,"1-13"]
[13,{"$f":"IF(R116<>\"\",Q116&\" der \"&R116&\". \"&S116,S116)","v":"Montag der 17. Woche im Jahreskreis"}," ,"," ,"," ,"," ,"," ,"," ,"," ,"," ,"," ,",null,"Ex 32,15-24.30-34","Jer 13,1-11","Mt 13,31-35",2,"Montag",17,"Woche im Jahreskreis",null,null,null,null,null,null,null,null,null,null,null,null,null,null,null,null,null,null,null,null,null,null,null,null,null,null,null,null,null,null,null,null,null,null,null,null,"Ex",32,"15-24.30-34","Jer",13,"1-11","Mt",13,"31-35"]
[13,"Dienstag der 17. Woche im Jahreskreis"," ,"," ,"," ,"," ,"," ,"," ,"," ,"," ,"," ,",null,"Ex 33,7-11; 34,4b.5-9.28","Jer 14,17b-22","Mt 13,36-43",3,"Dienstag",17,"Woche im Jahreskreis",null,null,null,null,null,null,null,null,null,null,null,null,null,null,null,null,null,null,null,null,null,null,null,null,null,null,null,null,null,null,null,null,null,null,null,null,"Ex",33,"7-11; 34,4b.5-9.28","Jer",14,"17b-22","Mt",13,"36-43"]
[13,"Mittwoch der 17. Woche im Jahreskreis"," ,"," ,"," ,"," ,"," ,"," ,"," ,"," ,"," ,",null,"Ex 34,29-35","Jer 15,10.16-21","Mt 13,44-46",4,"Mittwoch",17,"Woche im Jahreskreis",null,null,null,null,null,null,null,null,null,null,null,null,null,null,null,null,null,null,null,null,null,null,null,null,null,null,null,null,null,null,null,null,null,null,null,null,"Ex",34,"29-35","Jer",15,"10.16-21","Mt",13,"44-46"]
[13,"Donnerstag der 17. Woche im Jahreskreis"," ,"," ,"," ,"," ,"," ,"," ,"," ,"," ,"," ,",null,"Ex 40,16-21.34-38","Jer 18,1-6","Mt 13,47-52",5,"Donnerstag",17,"Woche im Jahreskreis",null,null,null,null,null,null,null,null,null,null,null,null,null,null,null,null,null,null,null,null,null,null,null,null,null,null,null,null,null,null,null,null,null,null,null,null,"Ex",40,"16-21.34-38","Jer",18,"1-6","Mt",13,"47-52"]
[13,"Freitag der 17. Woche im Jahreskreis"," ,"," ,"," ,"," ,"," ,"," ,"," ,"," ,"," ,",null,"Lev 23,1.4-11.15-16.27.34b-37","Jer 26,1-9","Mt 13,54-58",6,"Freitag",17,"Woche im Jahreskreis",null,null,null,null,null,null,null,null,null,null,null,null,null,null,null,null,null,null,null,null,null,null,null,null,null,null,null,null,null,null,null,null,null,null,null,null,"Lev",23,"1.4-11.15-16.27.34b-37","Jer",26,"1-9","Mt",13,"54-58"]
[13,"Samstag der 17. Woche im Jahreskreis"," ,"," ,"," ,"," ,"," ,"," ,"," ,"," ,"," ,",null,"Lev 25,1.8-17","Jer 26,11.16.24","Mt 14,1-12",7,"Samstag",17,"Woche im Jahreskreis",null,null,null,null,null,null,null,null,null,null,null,null,null,null,null,null,null,null,null,null,null,null,null,null,null,null,null,null,null,null,null,null,null,null,null,null,"Lev",25,"1.8-17","Jer",26,"11.16.24","Mt",14,"1-12"]
[6,{"$f":"IF(R122<>\"\",R122&\". \"&S122,S122)","v":"18. Sonntag im Jahreskreis"},"Jes 55,1-3","Röm 8,35.37-39","Mt 14,13-21","Ex 16,2-4.12-15","Eph 4,17.20-24","Joh 6,24-35","Koh 1,2; 2,21-23","Kol 3,1-5.9-11","Lk 12,13-21",null," ,"," ,"," ,",1,"Sonntag",18,"Sonntag im Jahreskreis","Jes",55,"1-3","Röm",8,"35.37-39","Mt",14,"13-21",null,null,null,"Ex",16,"2-4.12-15","Eph",4,"17.20-24","Joh",6,"24-35",null,null,null,"Koh",1,"2; 2,21-23","Kol",3,"1-5.9-11","Lk",12,"13-21"]
[13,{"$f":"IF(R123<>\"\",Q123&\" der \"&R123&\". \"&S123,S123)","v":"Montag der 18. Woche im Jahreskreis"}," ,"," ,"," ,"," ,"," ,"," ,"," ,"," ,"," ,",null,"Num 11,4b-15","Jer 28,1-17","Mt 14,13-21 (LJ A: Mt 14,22-36)",2,"Montag",18,"Woche im Jahreskreis",null,null,null,null,null,null,null,null,null,null,null,null,null,null,null,null,null,null,null,null,null,null,null,null,null,null,null,null,null,null,null,null,null,null,null,null,"Num",11,"4b-15","Jer",28,"1-17","Mt",14,"13-21 (LJ A: Mt 14,22-36)","LJ A: Mt 14,22-36"]
[13,"Dienstag der 18. Woche im Jahreskreis"," ,"," ,"," ,"," ,"," ,"," ,"," ,"," ,"," ,",null,"Num 12,1-13","Jer 30,1-2.12-15.18-22","Mt 14,22-36 (LJ A: Mt 15,1-2.10-14)",3,"Dienstag",18,"Woche im Jahreskreis",null,null,null,null,null,null,null,null,null,null,null,null,null,null,null,null,null,null,null,null,null,null,null,null,null,null,null,null,null,null,null,null,null,null,null,null,"Num",12,"1-13","Jer",30,"1-2.12-15.18-22","Mt",14,"22-36 (LJ A: Mt 15,1-2.10-14)","LJ A: Mt 15,1-2.10-14"]
[13,"Mittwoch der 18. Woche im Jahreskreis"," ,"," ,"," ,"," ,"," ,"," ,"," ,"," ,"," ,",null,"Num 13,1-2.25 – 14,1.26-29.34-35","Jer 31,1-7","Mt 15,21-28",4,"Mittwoch",18,"Woche im Jahreskreis",null,null,null,null,null,null,null,null,null,null,null,null,null,null,null,null,null,null,null,null,null,null,null,null,null,null,null,null,null,null,null,null,null,null,null,null,"Num",13,"1-2.25 – 14,1.26-29.34-35","Jer",31,"1-7","Mt",15,"21-28"]
[13,"Donnerstag der 18. Woche im Jahreskreis"," ,"," ,"," ,"," ,"," ,"," ,"," ,"," ,"," ,",null,"Num 20,1-13","Jer 31,31-34","Mt 16,13-23",5,"Donnerstag",18,"Woche im Jahreskreis",null,null,null,null,null,null,null,null,null,null,null,null,null,null,null,null,null,null,null,null,null,null,null,null,null,null,null,null,null,null,null,null,null,null,null,null,"Num",20,"1-13","Jer",31,"31-34","Mt",16,"13-23"]
[13,"Freitag der 18. Woche im Jahreskreis"," ,"," ,"," ,"," ,"," ,"," ,"," ,"," ,"," ,",null,"Dtn 4,32-40","Nah 2,1.3 – 3,1-3.6-7","Mt 16,24-28",6,"Freitag",18,"Woche im Jahreskreis",null,null,null,null,null,null,null,null,null,null,null,null,null,null,null,null,null,null,null,null,null,null,null,null,null,null,null,null,null,null,null,null,null,null,null,null,"Dtn",4,"32-40","Nah",2,"1.3 – 3,1-3.6-7","Mt",16,"24-28"]
[13,"Samstag der 18. Woche im Jahreskreis"," ,"," ,"," ,"," ,"," ,"," ,"," ,"," ,"," ,",null,"Dtn 6,4-13","Hab 1,12 – 2,4","Mt 17,14-20",7,"Samstag",18,"Woche im Jahreskreis",null,null,null,null,null,null,null,null,null,null,null,null,null,null,null,null,null,null,null,null,null,null,null,null,null,null,null,null,null,null,null,null,null,null,null,null,"Dtn",6,"4-13","Hab",1,"12 – 2,4","Mt",17,"14-20"]
[6,{"$f":"IF(R129<>\"\",R129&\". \"&S129,S129)","v":"19. Sonntag im Jahreskreis"},"1 Kön 19,9ab.11b-13a","Röm 9,1-5","Mt 14,22-33","1 Kön 19,4-8","Eph 4,30 – 5,2","Joh 6,41-51","Weish 18,6-9","Hebr 11,1-2.8-19","Lk 12,32-48",null," ,"," ,"," ,",1,"Sonntag",19,"Sonntag im Jahreskreis","1 Kön",19,"9ab.11b-13a","Röm",9,"1-5","Mt",14,"22-33",null,null,null,"1 Kön",19,"4-8","Eph",4,"30 – 5,2","Joh",6,"41-51",null,null,null,"Weish",18,"6-9","Hebr",11,"1-2.8-19","Lk",12,"32-48","12,35-40"]
[13,{"$f":"IF(R130<>\"\",Q130&\" der \"&R130&\". \"&S130,S130)","v":"Montag der 19. Woche im Jahreskreis"}," ,"," ,"," ,"," ,"," ,"," ,"," ,"," ,"," ,",null,"Dtn 10,12-22","Ez 1,2-5.24-28c","Mt 17,22-27",2,"Montag",19,"Woche im Jahreskreis",null,null,null,null,null,null,null,null,null,null,null,null,null,null,null,null,null,null,null,null,null,null,null,null,null,null,null,null,null,null,null,null,null,null,null,null,"Dtn",10,"12-22","Ez",1,"2-5.24-28c","Mt",17,"22-27"]
[13,"Dienstag der 19. Woche im Jahreskreis",{"$f":"T131&\" \"&U131&\",\"&V131","v":" ,"},{"$f":"W131&\" \"&X131&\",\"&Y131","v":" ,"},{"$f":"Z131&\" \"&AA131&\",\"&AB131","v":" ,"},{"$f":"AF131&\" \"&AG131&\",\"&AH131","v":" ,"},{"$f":"AI131&\" \"&AJ131&\",\"&AK131","v":" ,"},{"$f":"AL131&\" \"&AM131&\",\"&AN131","v":" ,"},{"$f":"AR131&\" \"&AS131&\",\"&AT131","v":" ,"},{"$f":"AU131&\" \"&AV131&\",\"&AW131","v":" ,"},{"$f":"AX131&\" \"&AY131&\",\"&AZ131","v":" ,"},null,{"$f":"BD131&\" \"&BE131&\",\"&BF131","v":"Dtn 31,1-8"},{"$f":"BG131&\" \"&BH131&\",\"&BI131","v":"Ez 2,8 – 3,4"},{"$f":"BJ131&\" \"&BK131&\",\"&BL131","v":"Mt 18,1-5.10.12-14"},3,"Dienstag",19,"Woche im Jahreskreis",null,null,null,null,null,null,null,null,null,null,null,null,null,null,null,null,null,null,null,null,null,null,null,null,null,null,null,null,null,null,null,null,null,null,null,null,"Dtn",31,"1-8","Ez",2,"8 – 3,4","Mt",18,"1-5.10.12-14"]
[13,"Mittwoch der 19. Woche im Jahreskreis"," ,"," ,"," ,"," ,"," ,"," ,"," ,"," ,"," ,",null,"Dtn 34,1-12","Ez 9,1-8a; 10,18-22","Mt 18,15-20",4,"Mittwoch",19,"Woche im Jahreskreis",null,null,null,null,null,null,null,null,null,null,null,null,null,null,null,null,null,null,null,null,null,null,null,null,null,null,null,null,null,null,null,null,null,null,null,null,"Dtn",34,"1-12","Ez",9,"1-8a; 10,18-22","Mt",18,"15-20"]
[13,"Donnerstag der 19. Woche im Jahreskreis"," ,"," ,"," ,"," ,"," ,"," ,"," ,"," ,"," ,",null,"Jos 3,7-10a.11.13-17","Ez 12,1-12","Mt 18,21 – 19,1",5,"Donnerstag",19,"Woche im Jahreskreis",null,null,null,null,null,null,null,null,null,null,null,null,null,null,null,null,null,null,null,null,null,null,null,null,null,null,null,null,null,null,null,null,null,null,null,null,"Jos",3,"7-10a.11.13-17","Ez",12,"1-12","Mt",18,"21 – 19,1"]
[13,"Freitag der 19. Woche im Jahreskreis"," ,"," ,"," ,"," ,"," ,"," ,"," ,"," ,"," ,",null,"Jos 24,1-13","Ez 16,1-15.60.63 od. 16,59-63","Mt 19,3-12",6,"Freitag",19,"Woche im Jahreskreis",null,null,null,null,null,null,null,null,null,null,null,null,null,null,null,null,null,null,null,null,null,null,null,null,null,null,null,null,null,null,null,null,null,null,null,null,"Jos",24,"1-13","Ez",16,"1-15.60.63 od. 16,59-63","Mt",19,"3-12"]
[13,"Samstag der 19. Woche im Jahreskreis"," ,"," ,"," ,"," ,"," ,"," ,"," ,"," ,"," ,",null,"Jos 24,14-29","Ez 18,1-10.13b.30-32","Mt 19,13-15",7,"Samstag",19,"Woche im Jahreskreis",null,null,null,null,null,null,null,null,null,null,null,null,null,null,null,null,null,null,null,null,null,null,null,null,null,null,null,null,null,null,null,null,null,null,null,null,"Jos",24,"14-29","Ez",18,"1-10.13b.30-32","Mt",19,"13-15"]
[6,{"$f":"IF(R136<>\"\",R136&\". \"&S136,S136)","v":"20. Sonntag im Jahreskreis"},"Jes 56,1.6-7","Röm 11,13-15.29.32","Mt 15,21-28","Spr 9,1-6","Eph 5,15-20","Joh 6,51-58","Jer 38,4-6.8-10","Hebr 12,1-4","Lk 12,49-53",null," ,"," ,"," ,",1,"Sonntag",20,"Sonntag im Jahreskreis","Jes",56,"1.6-7","Röm",11,"13-15.29.32","Mt",15,"21-28",null,null,null,"Spr",9,"1-6","Eph",5,"15-20","Joh",6,"51-58",null,null,null,"Jer",38,"4-6.8-10","Hebr",12,"1-4","Lk",12,"49-53"]
[13,{"$f":"IF(R137<>\"\",Q137&\" der \"&R137&\". \"&S137,S137)","v":"Montag der 20. Woche im Jahreskreis"}," ,"," ,"," ,"," ,"," ,"," ,"," ,"," ,"," ,",null,"Ri 2,11-19","Ez 24,15-24","Mt 19,16-22",2,"Montag",20,"Woche im Jahreskreis",null,null,null,null,null,null,null,null,null,null,null,null,null,null,null,null,null,null,null,null,null,null,null,null,null,null,null,null,null,null,null,null,null,null,null,null,"Ri",2,"11-19","Ez",24,"15-24","Mt",19,"16-22"]
[13,"Dienstag der 20. Woche im Jahreskreis"," ,"," ,"," ,"," ,"," ,"," ,"," ,"," ,"," ,",null,"Ri 6,11-24a","Ez 28,1-10","Mt 19,23-30",3,"Dienstag",20,"Woche im Jahreskreis",null,null,null,null,null,null,null,null,null,null,null,null,null,null,null,null,null,null,null,null,null,null,null,null,null,null,null,null,null,null,null,null,null,null,null,null,"Ri",6,"11-24a","Ez",28,"1-10","Mt",19,"23-30"]
[13,"Mittwoch der 20. Woche im Jahreskreis"," ,"," ,"," ,"," ,"," ,"," ,"," ,"," ,"," ,",null,"Ri 9,6-15","Ez 34,1-11","Mt 20,1-16a",4,"Mittwoch",20,"Woche im Jahreskreis",null,null,null,null,null,null,null,null,null,null,null,null,null,null,null,null,null,null,null,null,null,null,null,null,null,null,null,null,null,null,null,null,null,null,null,null,"Ri",9,"6-15","Ez",34,"1-11","Mt",20,"1-16a"]
[13,"Donnerstag der 20. Woche im Jahreskreis"," ,"," ,"," ,"," ,"," ,"," ,"," ,"," ,"," ,",null,"Ri 11,29-30a","Ez 36,23-28","Mt 22,1-14",5,"Donnerstag",20,"Woche im Jahreskreis",null,null,null,null,null,null,null,null,null,null,null,null,null,null,null,null,null,null,null,null,null,null,null,null,null,null,null,null,null,null,null,null,null,null,null,null,"Ri",11,"29-30a","Ez",36,"23-28","Mt",22,"1-14"]
[13,"Freitag der 20. Woche im Jahreskreis"," ,"," ,"," ,"," ,"," ,"," ,"," ,"," ,"," ,",null,"Rut 1,1.3-6.14b-16.22","Ez 37,1-14","Mt 22,34-40",6,"Freitag",20,"Woche im Jahreskreis",null,null,null,null,null,null,null,null,null,null,null,null,null,null,null,null,null,null,null,null,null,null,null,null,null,null,null,null,null,null,null,null,null,null,null,null,"Rut",1,"1.3-6.14b-16.22","Ez",37,"1-14","Mt",22,"34-40"]
[13,"Samstag der 20. Woche im Jahreskreis"," ,"," ,"," ,"," ,"," ,"," ,"," ,"," ,"," ,",null,"Rut 2,1-3.8-11; 4,13-17","Ez 43,1-7a","Mt 23,1-12",7,"Samstag",20,"Woche im Jahreskreis",null,null,null,null,null,null,null,null,null,null,null,null,null,null,null,null,null,null,null,null,null,null,null,null,null,null,null,null,null,null,null,null,null,null,null,null,"Rut",2,"1-3.8-11; 4,13-17","Ez",43,"1-7a","Mt",23,"1-12"]
[6,{"$f":"IF(R143<>\"\",R143&\". \"&S143,S143)","v":"21. Sonntag im Jahreskreis"},"Jes 22,19-23","Röm 11,33-36","Mt 16,13-20","Jos 21,1-2a.15-17.18b","Eph 5,21-32","Joh 6,60-69","Jes 66,18-21","Hebr 12,5-7.11-13","Lk 13,22-30",null," ,"," ,"," ,",1,"Sonntag",21,"Sonntag im Jahreskreis","Jes",22,"19-23","Röm",11,"33-36","Mt",16,"13-20",null,null,null,"Jos",21,"1-2a.15-17.18b","Eph",5,"21-32","Joh",6,"60-69",null,null,null,"Jes",66,"18-21","Hebr",12,"5-7.11-13","Lk",13,"22-30"]
[13,{"$f":"IF(R144<>\"\",Q144&\" der \"&R144&\". \"&S144,S144)","v":"Montag der 21. Woche im Jahreskreis"}," ,"," ,"," ,"," ,"," ,"," ,"," ,"," ,"," ,",null,"1 Thess 1,1-5.8b-10","2 Thess 1,1-5.11-12","Mt 23,13-22",2,"Montag",21,"Woche im Jahreskreis",null,null,null,null,null,null,null,null,null,null,null,null,null,null,null,null,null,null,null,null,null,null,null,null,null,null,null,null,null,null,null,null,null,null,null,null,"1 Thess",1,"1-5.8b-10","2 Thess",1,"1-5.11-12","Mt",23,"13-22"]
[13,"Dienstag der 21. Woche im Jahreskreis"," ,"," ,"," ,"," ,"," ,"," ,"," ,"," ,"," ,",null,"1 Thess 2,1-8","2 Thess 2,1-3a.14-17","Mt 23,23-26",3,"Dienstag",21,"Woche im Jahreskreis",null,null,null,null,null,null,null,null,null,null,null,null,null,null,null,null,null,null,null,null,null,null,null,null,null,null,null,null,null,null,null,null,null,null,null,null,"1 Thess",2,"1-8","2 Thess",2,"1-3a.14-17","Mt",23,"23-26"]
[13,"Mittwoch der 21. Woche im Jahreskreis"," ,"," ,"," ,"," ,"," ,"," ,"," ,"," ,"," ,",null,"1 Thess 2,9-13","2 Thess 3,6-10.16-18","Mt 23,27-32",4,"Mittwoch",21,"Woche im Jahreskreis",null,null,null,null,null,null,null,null,null,null,null,null,null,null,null,null,null,null,null,null,null,null,null,null,null,null,null,null,null,null,null,null,null,null,null,null,"1 Thess",2,"9-13","2 Thess",3,"6-10.16-18","Mt",23,"27-32"]
[13,"Donnerstag der 21. Woche im Jahreskreis"," ,"," ,"," ,"," ,"," ,"," ,"," ,"," ,"," ,",null,"1 Thess 3,7-13","1 Kor 1,1-9","Mt 24,42-51",5,"Donnerstag",21,"Woche im Jahreskreis",null,null,null,null,null,null,null,null,null,null,null,null,null,null,null,null,null,null,null,null,null,null,null,null,null,null,null,null,null,null,null,null,null,null,null,null,"1 Thess",3,"7-13","1 Kor",1,"1-9","Mt",24,"42-51"]
[13,"Freitag der 21. Woche im Jahreskreis"," ,"," ,"," ,"," ,"," ,"," ,"," ,"," ,"," ,",null,"1 Thess 4,1-8","1 Kor 1,17-25","Mt 25,1-13",6,"Freitag",21,"Woche im Jahreskreis",null,null,null,null,null,null,null,null,null,null,null,null,null,null,null,null,null,null,null,null,null,null,null,null,null,null,null,null,null,null,null,null,null,null,null,null,"1 Thess",4,"1-8","1 Kor",1,"17-25","Mt",25,"1-13"]
[13,"Samstag der 21. Woche im Jahreskreis"," ,"," ,"," ,"," ,"," ,"," ,"," ,"," ,"," ,",null,"1 Thess 4,9-11","1 Kor 1,26-31","Mt 25,14-30",7,"Samstag",21,"Woche im Jahreskreis",null,null,null,null,null,null,null,null,null,null,null,null,null,null,null,null,null,null,null,null,null,null,null,null,null,null,null,null,null,null,null,null,null,null,null,null,"1 Thess",4,"9-11","1 Kor",1,"26-31","Mt",25,"14-30"]
[6,{"$f":"IF(R150<>\"\",R150&\". \"&S150,S150)","v":"22. Sonntag im Jahreskreis"},"Jer 20,7-9","Röm 12,1-2","Mt 16,21-27","Dtn 4,1-2.6-8","Jak 1,17-18.21b-22.27","Mk 7,1-8.14-15.21-23","Sir 3,17-18.20.28-29 (19-21.31)","Hebr 12,18-19.22-24a","Lk 14,1.7-14",null," ,"," ,"," ,",1,"Sonntag",22,"Sonntag im Jahreskreis","Jer",20,"7-9","Röm",12,"1-2","Mt",16,"21-27",null,null,null,"Dtn",4,"1-2.6-8","Jak",1,"17-18.21b-22.27","Mk",7,"1-8.14-15.21-23",null,null,null,"Sir",3,"17-18.20.28-29 (19-21.31)","Hebr",12,"18-19.22-24a","Lk",14,"1.7-14"]
[13,{"$f":"IF(R151<>\"\",Q151&\" der \"&R151&\". \"&S151,S151)","v":"Montag der 22. Woche im Jahreskreis"}," ,"," ,"," ,"," ,"," ,"," ,"," ,"," ,"," ,",null,"1 Thess 4,13-18","1 Kor 2,1-5","Lk 4,16-30",2,"Montag",22,"Woche im Jahreskreis",null,null,null,null,null,null,null,null,null,null,null,null,null,null,null,null,null,null,null,null,null,null,null,null,null,null,null,null,null,null,null,null,null,null,null,null,"1 Thess",4,"13-18","1 Kor",2,"1-5","Lk",4,"16-30"]
[13,"Dienstag der 22. Woche im Jahreskreis"," ,"," ,"," ,"," ,"," ,"," ,"," ,"," ,"," ,",null,"1 Thess 5,1-6.9-11","1 Kor 2,10b-16","Lk 4,31-37",3,"Dienstag",22,"Woche im Jahreskreis",null,null,null,null,null,null,null,null,null,null,null,null,null,null,null,null,null,null,null,null,null,null,null,null,null,null,null,null,null,null,null,null,null,null,null,null,"1 Thess",5,"1-6.9-11","1 Kor",2,"10b-16","Lk",4,"31-37"]
[13,"Mittwoch der 22. Woche im Jahreskreis"," ,"," ,"," ,"," ,"," ,"," ,"," ,"," ,"," ,",null,"Kol 1,1-8","1 Kor 3,1-9","Lk 4,38-44",4,"Mittwoch",22,"Woche im Jahreskreis",null,null,null,null,null,null,null,null,null,null,null,null,null,null,null,null,null,null,null,null,null,null,null,null,null,null,null,null,null,null,null,null,null,null,null,null,"Kol",1,"1-8","1 Kor",3,"1-9","Lk",4,"38-44"]
[13,"Donnerstag der 22. Woche im Jahreskreis"," ,"," ,"," ,"," ,"," ,"," ,"," ,"," ,"," ,",null,"Kol 1,9-14","1 Kor 3,18-23","Lk 5,1-11",5,"Donnerstag",22,"Woche im Jahreskreis",null,null,null,null,null,null,null,null,null,null,null,null,null,null,null,null,null,null,null,null,null,null,null,null,null,null,null,null,null,null,null,null,null,null,null,null,"Kol",1,"9-14","1 Kor",3,"18-23","Lk",5,"1-11"]
[13,"Freitag der 22. Woche im Jahreskreis"," ,"," ,"," ,"," ,"," ,"," ,"," ,"," ,"," ,",null,"Kol 1,15-20","1 Kor 4,1-5","Lk 5,33-39",6,"Freitag",22,"Woche im Jahreskreis",null,null,null,null,null,null,null,null,null,null,null,null,null,null,null,null,null,null,null,null,null,null,null,null,null,null,null,null,null,null,null,null,null,null,null,null,"Kol",1,"15-20","1 Kor",4,"1-5","Lk",5,"33-39"]
[13,"Samstag der 22. Woche im Jahreskreis"," ,"," ,"," ,"," ,"," ,"," ,"," ,"," ,"," ,",null,"Kol 1,21-23","1 Kor 4,6b-15","Lk 6,1-5",7,"Samstag",22,"Woche im Jahreskreis",null,null,null,null,null,null,null,null,null,null,null,null,null,null,null,null,null,null,null,null,null,null,null,null,null,null,null,null,null,null,null,null,null,null,null,null,"Kol",1,"21-23","1 Kor",4,"6b-15","Lk",6,"1-5"]
[6,{"$f":"IF(R157<>\"\",R157&\". \"&S157,S157)","v":"23. Sonntag im Jahreskreis"},"Ez 33,7-9","Röm 13,8-10","Mt 18,15-20","Jes 35,4-7a","Jak 2,1-5","Mk 7,31-37","Weish 9,13-19","Phlm 9b-10b12-17,","Lk 14,25-33",null," ,"," ,"," ,",1,"Sonntag",23,"Sonntag im Jahreskreis","Ez",33,"7-9","Röm",13,"8-10","Mt",18,"15-20",null,null,null,"Jes",35,"4-7a","Jak",2,"1-5","Mk",7,"31-37",null,null,null,"Weish",9,"13-19","Phlm","9b-10b12-17",null,"Lk",14,"25-33"]
[13,{"$f":"IF(R158<>\"\",Q158&\" der \"&R158&\". \"&S158,S158)","v":"Montag der 23. Woche im Jahreskreis"}," ,"," ,"," ,"," ,"," ,"," ,"," ,"," ,"," ,",null,"Kol 1,24 – 2,3","1 Kor 5,1-8","Lk 6,6-11",2,"Montag",23,"Woche im Jahreskreis",null,null,null,null,null,null,null,null,null,null,null,null,null,null,null,null,null,null,null,null,null,null,null,null,null,null,null,null,null,null,null,null,null,null,null,null,"Kol",1,"24 – 2,3","1 Kor",5,"1-8","Lk",6,"6-11"]
[13,"Dienstag der 23. Woche im Jahreskreis"," ,"," ,"," ,"," ,"," ,"," ,"," ,"," ,"," ,",null,"Kol 2,6-15","1 Kor 6,1-11","Lk 6,12-19",3,"Dienstag",23,"Woche im Jahreskreis",null,null,null,null,null,null,null,null,null,null,null,null,null,null,null,null,null,null,null,null,null,null,null,null,null,null,null,null,null,null,null,null,null,null,null,null,"Kol",2,"6-15","1 Kor",6,"1-11","Lk",6,"12-19"]
[13,"Mittwoch der 23. Woche im Jahreskreis"," ,"," ,"," ,"," ,"," ,"," ,"," ,"," ,"," ,",null,"Kol 3,1-11","1 Kor 7,25-31","Lk 6,20-26",4,"Mittwoch",23,"Woche im Jahreskreis",null,null,null,null,null,null,null,null,null,null,null,null,null,null,null,null,null,null,null,null,null,null,null,null,null,null,null,null,null,null,null,null,null,null,null,null,"Kol",3,"1-11","1 Kor",7,"25-31","Lk",6,"20-26"]
[13,"Donnerstag der 23. Woche im Jahreskreis"," ,"," ,"," ,"," ,"," ,"," ,"," ,"," ,"," ,",null,"Kol 3,12-17","1 Kor 8,1b-7.11-13","Lk 6,27-38",5,"Donnerstag",23,"Woche im Jahreskreis",null,null,null,null,null,null,null,null,null,null,null,null,null,null,null,null,null,null,null,null,null,null,null,null,null,null,null,null,null,null,null,null,null,null,null,null,"Kol",3,"12-17","1 Kor",8,"1b-7.11-13","Lk",6,"27-38"]
[13,"Freitag der 23. Woche im Jahreskreis"," ,"," ,"," ,"," ,"," ,"," ,"," ,"," ,"," ,",null,"1 Tim 1,1-2.12-14","1 Kor 9,16-19.22b-27","Lk 6,39-42",6,"Freitag",23,"Woche im Jahreskreis",null,null,null,null,null,null,null,null,null,null,null,null,null,null,null,null,null,null,null,null,null,null,null,null,null,null,null,null,null,null,null,null,null,null,null,null,"1 Tim",1,"1-2.12-14","1 Kor",9,"16-19.22b-27","Lk",6,"39-42"]
[13,"Samstag der 23. Woche im Jahreskreis"," ,"," ,"," ,"," ,"," ,"," ,"," ,"," ,"," ,",null,"1 Tim 1,15-17","1 Kor 10,14-22","Lk 6,43-49",7,"Samstag",23,"Woche im Jahreskreis",null,null,null,null,null,null,null,null,null,null,null,null,null,null,null,null,null,null,null,null,null,null,null,null,null,null,null,null,null,null,null,null,null,null,null,null,"1 Tim",1,"15-17","1 Kor",10,"14-22","Lk",6,"43-49"]
[6,{"$f":"IF(R164<>\"\",R164&\". \"&S164,S164)","v":"24. Sonntag im Jahreskreis"},"Sir 27,30 – 28,7 (27,33 – 28,9)","Röm 14,7-9","Mt 18,21-35","Jes 50,5-9a","Jak 2,14-18","Mk 8,27-35","Ex 32,7-11.13-14","1 Tim 1,12-17","Lk 15,1-32",null," ,"," ,"," ,",1,"Sonntag",24,"Sonntag im Jahreskreis","Sir",27,"30 – 28,7 (27,33 – 28,9)","Röm",14,"7-9","Mt",18,"21-35",null,null,null,"Jes",50,"5-9a","Jak",2,"14-18","Mk",8,"27-35",null,null,null,"Ex",32,"7-11.13-14","1 Tim",1,"12-17","Lk",15,"1-32","15,1-10"]
[13,{"$f":"IF(R165<>\"\",Q165&\" der \"&R165&\". \"&S165,S165)","v":"Montag der 24. Woche im Jahreskreis"}," ,"," ,"," ,"," ,"," ,"," ,"," ,"," ,"," ,",null,"1 Tim 2,1-8","1 Kor 11,17-26.33","Lk 7,1-10",2,"Montag",24,"Woche im Jahreskreis",null,null,null,null,null,null,null,null,null,null,null,null,null,null,null,null,null,null,null,null,null,null,null,null,null,null,null,null,null,null,null,null,null,null,null,null,"1 Tim",2,"1-8","1 Kor",11,"17-26.33","Lk",7,"1-10"]
[13,"Dienstag der 24. Woche im Jahreskreis"," ,"," ,"," ,"," ,"," ,"," ,"," ,"," ,"," ,",null,"1 Tim 3,1-13","1 Kor 12,12-14.27-31a","Lk 7,11-17",3,"Dienstag",24,"Woche im Jahreskreis",null,null,null,null,null,null,null,null,null,null,null,null,null,null,null,null,null,null,null,null,null,null,null,null,null,null,null,null,null,null,null,null,null,null,null,null,"1 Tim",3,"1-13","1 Kor",12,"12-14.27-31a","Lk",7,"11-17"]
[13,"Mittwoch der 24. Woche im Jahreskreis"," ,"," ,"," ,"," ,"," ,"," ,"," ,"," ,"," ,",null,"1 Tim 3,14-16","1 Kor 12,31 – 13,13","Lk 7,31-35",4,"Mittwoch",24,"Woche im Jahreskreis",null,null,null,null,null,null,null,null,null,null,null,null,null,null,null,null,null,null,null,null,null,null,null,null,null,null,null,null,null,null,null,null,null,null,null,null,"1 Tim",3,"14-16","1 Kor",12,"31 – 13,13","Lk",7,"31-35"]
[13,"Donnerstag der 24. Woche im Jahreskreis"," ,"," ,"," ,"," ,"," ,"," ,"," ,"," ,"," ,",null,"1 Tim 4,12-16","1 Kor 15,1-11","Lk 7,36-50",5,"Donnerstag",24,"Woche im Jahreskreis",null,null,null,null,null,null,null,null,null,null,null,null,null,null,null,null,null,null,null,null,null,null,null,null,null,null,null,null,null,null,null,null,null,null,null,null,"1 Tim",4,"12-16","1 Kor",15,"1-11","Lk",7,"36-50"]
[13,"Freitag der 24. Woche im Jahreskreis"," ,"," ,"," ,"," ,"," ,"," ,"," ,"," ,"," ,",null,"1 Tim 6,3b-12","1 Kor 15,12-20","Lk 8,1-3",6,"Freitag",24,"Woche im Jahreskreis",null,null,null,null,null,null,null,null,null,null,null,null,null,null,null,null,null,null,null,null,null,null,null,null,null,null,null,null,null,null,null,null,null,null,null,null,"1 Tim",6,"3b-12","1 Kor",15,"12-20","Lk",8,"1-3"]
[13,"Samstag der 24. Woche im Jahreskreis"," ,"," ,"," ,"," ,"," ,"," ,"," ,"," ,"," ,",null,"1 Tim 6,13-16","1 Kor 15,35-37.42-49","Lk 8,4-15",7,"Samstag",24,"Woche im Jahreskreis",null,null,null,null,null,null,null,null,null,null,null,null,null,null,null,null,null,null,null,null,null,null,null,null,null,null,null,null,null,null,null,null,null,null,null,null,"1 Tim",6,"13-16","1 Kor",15,"35-37.42-49","Lk",8,"4-15"]
[6,{"$f":"IF(R171<>\"\",R171&\". \"&S171,S171)","v":"25. Sonntag im Jahreskreis"},"Jes 55,6-9","Phil 1,20ad-24.27a","Mt 20,1-16","Weish 2,1a.12.17-20","Jak 3,16 – 4,3","Mk 9,30-37","Am 8,4-7","1 Tim 2,1-8","Lk 16,1-13",null," ,"," ,"," ,",1,"Sonntag",25,"Sonntag im Jahreskreis","Jes",55,"6-9","Phil",1,"20ad-24.27a","Mt",20,"1-16",null,null,null,"Weish",2,"1a.12.17-20","Jak",3,"16 – 4,3","Mk",9,"30-37",null,null,null,"Am",8,"4-7","1 Tim",2,"1-8","Lk",16,"1-13","16,10-13"]
[13,{"$f":"IF(R172<>\"\",Q172&\" der \"&R172&\". \"&S172,S172)","v":"Montag der 25. Woche im Jahreskreis"}," ,"," ,"," ,"," ,"," ,"," ,"," ,"," ,"," ,",null,"Esra 1,1-6","Spr 3,27-35","Lk 8,16-18",2,"Montag",25,"Woche im Jahreskreis",null,null,null,null,null,null,null,null,null,null,null,null,null,null,null,null,null,null,null,null,null,null,null,null,null,null,null,null,null,null,null,null,null,null,null,null,"Esra",1,"1-6","Spr",3,"27-35","Lk",8,"16-18"]
[13,"Dienstag der 25. Woche im Jahreskreis"," ,"," ,"," ,"," ,"," ,"," ,"," ,"," ,"," ,",null,"Esra 6,7-8.12b.14-20","Spr 21,1-6.10-13","Lk 8,19-21",3,"Dienstag",25,"Woche im Jahreskreis",null,null,null,null,null,null,null,null,null,null,null,null,null,null,null,null,null,null,null,null,null,null,null,null,null,null,null,null,null,null,null,null,null,null,null,null,"Esra",6,"7-8.12b.14-20","Spr",21,"1-6.10-13","Lk",8,"19-21"]
[13,"Mittwoch der 25. Woche im Jahreskreis"," ,"," ,"," ,"," ,"," ,"," ,"," ,"," ,"," ,",null,"Esra 9,5-9","Spr 30,5-9","Lk 9,1-6",4,"Mittwoch",25,"Woche im Jahreskreis",null,null,null,null,null,null,null,null,null,null,null,null,null,null,null,null,null,null,null,null,null,null,null,null,null,null,null,null,null,null,null,null,null,null,null,null,"Esra",9,"5-9","Spr",30,"5-9","Lk",9,"1-6"]
[13,"Donnerstag der 25. Woche im Jahreskreis"," ,"," ,"," ,"," ,"," ,"," ,"," ,"," ,"," ,",null,"Hag 1,1-8","Koh 1,2-11","Lk 9,7-9",5,"Donnerstag",25,"Woche im Jahreskreis",null,null,null,null,null,null,null,null,null,null,null,null,null,null,null,null,null,null,null,null,null,null,null,null,null,null,null,null,null,null,null,null,null,null,null,null,"Hag",1,"1-8","Koh",1,"2-11","Lk",9,"7-9"]
[13,"Freitag der 25. Woche im Jahreskreis"," ,"," ,"," ,"," ,"," ,"," ,"," ,"," ,"," ,",null,"Hag 1,15b – 2,9","Koh 3,1-11","Lk 9,18-22",6,"Freitag",25,"Woche im Jahreskreis",null,null,null,null,null,null,null,null,null,null,null,null,null,null,null,null,null,null,null,null,null,null,null,null,null,null,null,null,null,null,null,null,null,null,null,null,"Hag",1,"15b – 2,9","Koh",3,"1-11","Lk",9,"18-22"]
[13,"Samstag der 25. Woche im Jahreskreis"," ,"," ,"," ,"," ,"," ,"," ,"," ,"," ,"," ,",null,"Sach 2,5-9.14-15a","Koh 11,9 – 12,8","Lk 9,43b-45",7,"Samstag",25,"Woche im Jahreskreis",null,null,null,null,null,null,null,null,null,null,null,null,null,null,null,null,null,null,null,null,null,null,null,null,null,null,null,null,null,null,null,null,null,null,null,null,"Sach",2,"5-9.14-15a","Koh",11,"9 – 12,8","Lk",9,"43b-45"]
[6,{"$f":"IF(R178<>\"\",R178&\". \"&S178,S178)","v":"26. Sonntag im Jahreskreis"},"Ez 18,25-28","Phil 2,1-11","Mt 21,28-32","Num 11,25-29","Jak 5,1-6","Mk 9,38-43.45.47-48","Am 6,1a.4-7","1 Tim 6,11-16","Lk 16,19-31",null," ,"," ,"," ,",1,"Sonntag",26,"Sonntag im Jahreskreis","Ez",18,"25-28","Phil",2,"1-11","Mt",21,"28-32",null,null,null,"Num",11,"25-29","Jak",5,"1-6","Mk",9,"38-43.45.47-48",null,null,null,"Am",6,"1a.4-7","1 Tim",6,"11-16","Lk",16,"19-31"]
[13,{"$f":"IF(R179<>\"\",Q179&\" der \"&R179&\". \"&S179,S179)","v":"Montag der 26. Woche im Jahreskreis"}," ,"," ,"," ,"," ,"," ,"," ,"," ,"," ,"," ,",null,"Sach 8,1-8","Ijob 1,6-22","Lk 9,46-50",2,"Montag",26,"Woche im Jahreskreis",null,null,null,null,null,null,null,null,null,null,null,null,null,null,null,null,null,null,null,null,null,null,null,null,null,null,null,null,null,null,null,null,null,null,null,null,"Sach",8,"1-8","Ijob",1,"6-22","Lk",9,"46-50"]
[13,"Dienstag der 26. Woche im Jahreskreis"," ,"," ,"," ,"," ,"," ,"," ,"," ,"," ,"," ,",null,"Sach 8,20-23","Ijob 3,1-3.11-17.20-23","Lk 9,51-56",3,"Dienstag",26,"Woche im Jahreskreis",null,null,null,null,null,null,null,null,null,null,null,null,null,null,null,null,null,null,null,null,null,null,null,null,null,null,null,null,null,null,null,null,null,null,null,null,"Sach",8,"20-23","Ijob",3,"1-3.11-17.20-23","Lk",9,"51-56"]
[13,"Mittwoch der 26. Woche im Jahreskreis"," ,"," ,"," ,"," ,"," ,"," ,"," ,"," ,"," ,",null,"Neh 2,1-8","Ijob 9,1-12.14-16","Lk 9,57-62",4,"Mittwoch",26,"Woche im Jahreskreis",null,null,null,null,null,null,null,null,null,null,null,null,null,null,null,null,null,null,null,null,null,null,null,null,null,null,null,null,null,null,null,null,null,null,null,null,"Neh",2,"1-8","Ijob",9,"1-12.14-16","Lk",9,"57-62"]
[13,"Donnerstag der 26. Woche im Jahreskreis"," ,"," ,"," ,"," ,"," ,"," ,"," ,"," ,"," ,",null,"Neh 8,1-4a.5-6.7b-12","Ijob 19,21-27","Lk 10,1-12",5,"Donnerstag",26,"Woche im Jahreskreis",null,null,null,null,null,null,null,null,null,null,null,null,null,null,null,null,null,null,null,null,null,null,null,null,null,null,null,null,null,null,null,null,null,null,null,null,"Neh",8,"1-4a.5-6.7b-12","Ijob",19,"21-27","Lk",10,"1-12"]
[13,"Freitag der 26. Woche im Jahreskreis"," ,"," ,"," ,"," ,"," ,"," ,"," ,"," ,"," ,",null,"Bar 1,15-22","Ijob 38,1.12-21; 40,3-5","Lk 10,13-16",6,"Freitag",26,"Woche im Jahreskreis",null,null,null,null,null,null,null,null,null,null,null,null,null,null,null,null,null,null,null,null,null,null,null,null,null,null,null,null,null,null,null,null,null,null,null,null,"Bar",1,"15-22","Ijob",38,"1.12-21; 40,3-5","Lk",10,"13-16"]
[13,"Samstag der 26. Woche im Jahreskreis"," ,"," ,"," ,"," ,"," ,"," ,"," ,"," ,"," ,",null,"Bar 4,5-12.27-29","Ijob 42,1-3.5-6.12-17","Lk 10,17-24",7,"Samstag",26,"Woche im Jahreskreis",null,null,null,null,null,null,null,null,null,null,null,null,null,null,null,null,null,null,null,null,null,null,null,null,null,null,null,null,null,null,null,null,null,null,null,null,"Bar",4,"5-12.27-29","Ijob",42,"1-3.5-6.12-17","Lk",10,"17-24"]
[6,{"$f":"IF(R185<>\"\",R185&\". \"&S185,S185)","v":"27. Sonntag im Jahreskreis"},"Jes 5,1-7","Phil 4,6-9","Mt 21,33-44","Gen 2,18-24","Hebr 2,9-11","Mk 10,2-16","Hab 1,2-3; 2,2-4","2 Tim 1,6-8.13-14","Lk 17,5-10",null," ,"," ,"," ,",1,"Sonntag",27,"Sonntag im Jahreskreis","Jes",5,"1-7","Phil",4,"6-9","Mt",21,"33-44",null,null,null,"Gen",2,"18-24","Hebr",2,"9-11","Mk",10,"2-16","10,2-12",null,null,"Hab",1,"2-3; 2,2-4","2 Tim",1,"6-8.13-14","Lk",17,"5-10"]
[13,{"$f":"IF(R186<>\"\",Q186&\" der \"&R186&\". \"&S186,S186)","v":"Montag der 27. Woche im Jahreskreis"}," ,"," ,"," ,"," ,"," ,"," ,"," ,"," ,"," ,",null,"Jona 1,1 – 2,1.11","Gal 1,6-12","Lk 10,25-37",2,"Montag",27,"Woche im Jahreskreis",null,null,null,null,null,null,null,null,null,null,null,null,null,null,null,null,null,null,null,null,null,null,null,null,null,null,null,null,null,null,null,null,null,null,null,null,"Jona",1,"1 – 2,1.11","Gal",1,"6-12","Lk",10,"25-37"]
[13,"Dienstag der 27. Woche im Jahreskreis"," ,"," ,"," ,"," ,"," ,"," ,"," ,"," ,"," ,",null,"Jona 3,1-10","Gal 1,13-24","Lk 10,38-42",3,"Dienstag",27,"Woche im Jahreskreis",null,null,null,null,null,null,null,null,null,null,null,null,null,null,null,null,null,null,null,null,null,null,null,null,null,null,null,null,null,null,null,null,null,null,null,null,"Jona",3,"1-10","Gal",1,"13-24","Lk",10,"38-42"]
[13,"Mittwoch der 27. Woche im Jahreskreis"," ,"," ,"," ,"," ,"," ,"," ,"," ,"," ,"," ,",null,"Jona 3,10b; 4,1-11","Gal 2,1-2.7-14","Lk 11,1-4",4,"Mittwoch",27,"Woche im Jahreskreis",null,null,null,null,null,null,null,null,null,null,null,null,null,null,null,null,null,null,null,null,null,null,null,null,null,null,null,null,null,null,null,null,null,null,null,null,"Jona",3,"10b; 4,1-11","Gal",2,"1-2.7-14","Lk",11,"1-4"]
[13,"Donnerstag der 27. Woche im Jahreskreis"," ,"," ,"," ,"," ,"," ,"," ,"," ,"," ,"," ,",null,"Mal 3,13-20a","Gal 3,1-5","Lk 11,5-13",5,"Donnerstag",27,"Woche im Jahreskreis",null,null,null,null,null,null,null,null,null,null,null,null,null,null,null,null,null,null,null,null,null,null,null,null,null,null,null,null,null,null,null,null,null,null,null,null,"Mal",3,"13-20a","Gal",3,"1-5","Lk",11,"5-13"]
[13,"Freitag der 27. Woche im Jahreskreis"," ,"," ,"," ,"," ,"," ,"," ,"," ,"," ,"," ,",null,"Joël 1,13-15; 2,1-2","Gal 3,6-14","Lk 11,14-26",6,"Freitag",27,"Woche im Jahreskreis",null,null,null,null,null,null,null,null,null,null,null,null,null,null,null,null,null,null,null,null,null,null,null,null,null,null,null,null,null,null,null,null,null,null,null,null,"Joël",1,"13-15; 2,1-2","Gal",3,"6-14","Lk",11,"14-26"]
[13,"Samstag der 27. Woche im Jahreskreis"," ,"," ,"," ,"," ,"," ,"," ,"," ,"," ,"," ,",null,"Joël 4,12-21","Gal 3,22-29","Lk 11,27-28",7,"Samstag",27,"Woche im Jahreskreis",null,null,null,null,null,null,null,null,null,null,null,null,null,null,null,null,null,null,null,null,null,null,null,null,null,null,null,null,null,null,null,null,null,null,null,null,"Joël",4,"12-21","Gal",3,"22-29","Lk",11,"27-28"]
[6,{"$f":"IF(R192<>\"\",R192&\". \"&S192,S192)","v":"28. Sonntag im Jahreskreis"},"Jes 25,6-10a","Phil 4,12-14.19-20","Mt 22,1-14","Weish 7,7-11","Hebr 4,12-13","Mk 10,17-30","2 Kön 5,14-17","2 Tim 2,8-13","Lk 17,11-19",null," ,"," ,"," ,",1,"Sonntag",28,"Sonntag im Jahreskreis","Jes",25,"6-10a","Phil",4,"12-14.19-20","Mt",22,"1-14","22,1-10",null,null,"Weish",7,"7-11","Hebr",4,"12-13","Mk",10,"17-30","10,17-27",null,null,"2 Kön",5,"14-17","2 Tim",2,"8-13","Lk",17,"11-19"]
[13,{"$f":"IF(R193<>\"\",Q193&\" der \"&R193&\". \"&S193,S193)","v":"Montag der 28. Woche im Jahreskreis"}," ,"," ,"," ,"," ,"," ,"," ,"," ,"," ,"," ,",null,"Röm 1,1-7","Gal 4,22-24.26-27.31 – 5,1","Lk 11,29-32",2,"Montag",28,"Woche im Jahreskreis",null,null,null,null,null,null,null,null,null,null,null,null,null,null,null,null,null,null,null,null,null,null,null,null,null,null,null,null,null,null,null,null,null,null,null,null,"Röm",1,"1-7","Gal",4,"22-24.26-27.31 – 5,1","Lk",11,"29-32"]
[13,"Dienstag der 28. Woche im Jahreskreis"," ,"," ,"," ,"," ,"," ,"," ,"," ,"," ,"," ,",null,"Röm 1,16-25","Gal 5,1-6","Lk 11,37-41",3,"Dienstag",28,"Woche im Jahreskreis",null,null,null,null,null,null,null,null,null,null,null,null,null,null,null,null,null,null,null,null,null,null,null,null,null,null,null,null,null,null,null,null,null,null,null,null,"Röm",1,"16-25","Gal",5,"1-6","Lk",11,"37-41"]
[13,"Mittwoch der 28. Woche im Jahreskreis",{"$f":"T195&\" \"&U195&\",\"&V195","v":" ,"},{"$f":"W195&\" \"&X195&\",\"&Y195","v":" ,"},{"$f":"Z195&\" \"&AA195&\",\"&AB195","v":" ,"},{"$f":"AF195&\" \"&AG195&\",\"&AH195","v":" ,"},{"$f":"AI195&\" \"&AJ195&\",\"&AK195","v":" ,"},{"$f":"AL195&\" \"&AM195&\",\"&AN195","v":" ,"},{"$f":"AR195&\" \"&AS195&\",\"&AT195","v":" ,"},{"$f":"AU195&\" \"&AV195&\",\"&AW195","v":" ,"},{"$f":"AX195&\" \"&AY195&\",\"&AZ195","v":" ,"},null,{"$f":"BD195&\" \"&BE195&\",\"&BF195","v":"Röm 2,1-11"},{"$f":"BG195&\" \"&BH195&\",\"&BI195","v":"Gal 5,18-25"},{"$f":"BJ195&\" \"&BK195&\",\"&BL195","v":"Lk 11,42-46"},4,"Mittwoch",28,"Woche im Jahreskreis",null,null,null,null,null,null,null,null,null,null,null,null,null,null,null,null,null,null,null,null,null,null,null,null,null,null,null,null,null,null,null,null,null,null,null,null,"Röm",2,"1-11","Gal",5,"18-25","Lk",11,"42-46"]
[13,"Donnerstag der 28. Woche im Jahreskreis"," ,"," ,"," ,"," ,"," ,"," ,"," ,"," ,"," ,",null,"Röm 3,21-30a","Eph 1,1-10","Lk 11,47-54",5,"Donnerstag",28,"Woche im Jahreskreis",null,null,null,null,null,null,null,null,null,null,null,null,null,null,null,null,null,null,null,null,null,null,null,null,null,null,null,null,null,null,null,null,null,null,null,null,"Röm",3,"21-30a","Eph",1,"1-10","Lk",11,"47-54"]
[13,"Freitag der 28. Woche im Jahreskreis"," ,"," ,"," ,"," ,"," ,"," ,"," ,"," ,"," ,",null,"Röm 4,1-8","Eph 1,11-14","Lk 12,1-7",6,"Freitag",28,"Woche im Jahreskreis",null,null,null,null,null,null,null,null,null,null,null,null,null,null,null,null,null,null,null,null,null,null,null,null,null,null,null,null,null,null,null,null,null,null,null,null,"Röm",4,"1-8","Eph",1,"11-14","Lk",12,"1-7"]
[13,"Samstag der 28. Woche im Jahreskreis"," ,"," ,"," ,"," ,"," ,"," ,"," ,"," ,"," ,",null,"Röm 4,13.16-18","Eph 1,15-23","Lk 12,8-12",7,"Samstag",28,"Woche im Jahreskreis",null,null,null,null,null,null,null,null,null,null,null,null,null,null,null,null,null,null,null,null,null,null,null,null,null,null,null,null,null,null,null,null,null,null,null,null,"Röm",4,"13.16-18","Eph",1,"15-23","Lk",12,"8-12"]
[6,{"$f":"IF(R199<>\"\",R199&\". \"&S199,S199)","v":"29. Sonntag im Jahreskreis"},"Jes 45,1.4-6","1 Thess 1,1-5b","Mt 22,15-21","Jes 53,10-11","Hebr 4,14-16","Mk 10,35-45","Ex 17,8-13","2 Tim 3,14 – 4,2","Lk 18,1-8",null," ,"," ,"," ,",1,"Sonntag",29,"Sonntag im Jahreskreis","Jes",45,"1.4-6","1 Thess",1,"1-5b","Mt",22,"15-21",null,null,null,"Jes",53,"10-11","Hebr",4,"14-16","Mk",10,"35-45","10,42-45",null,null,"Ex",17,"8-13","2 Tim",3,"14 – 4,2","Lk",18,"1-8"]
[13,{"$f":"IF(R200<>\"\",Q200&\" der \"&R200&\". \"&S200,S200)","v":"Montag der 29. Woche im Jahreskreis"}," ,"," ,"," ,"," ,"," ,"," ,"," ,"," ,"," ,",null,"Röm 4,20-25","Eph 2,1-10","Lk 12,13-21",2,"Montag",29,"Woche im Jahreskreis",null,null,null,null,null,null,null,null,null,null,null,null,null,null,null,null,null,null,null,null,null,null,null,null,null,null,null,null,null,null,null,null,null,null,null,null,"Röm",4,"20-25","Eph",2,"1-10","Lk",12,"13-21"]
[13,"Dienstag der 29. Woche im Jahreskreis"," ,"," ,"," ,"," ,"," ,"," ,"," ,"," ,"," ,",null,"Röm 5,12.15b.17-19.20b-21","Eph 2,12-22","Lk 12,35-38",3,"Dienstag",29,"Woche im Jahreskreis",null,null,null,null,null,null,null,null,null,null,null,null,null,null,null,null,null,null,null,null,null,null,null,null,null,null,null,null,null,null,null,null,null,null,null,null,"Röm",5,"12.15b.17-19.20b-21","Eph",2,"12-22","Lk",12,"35-38"]
[13,"Mittwoch der 29. Woche im Jahreskreis"," ,"," ,"," ,"," ,"," ,"," ,"," ,"," ,"," ,",null,"Röm 6,12-18","Eph 3,2-12","Lk 12,39-48",4,"Mittwoch",29,"Woche im Jahreskreis",null,null,null,null,null,null,null,null,null,null,null,null,null,null,null,null,null,null,null,null,null,null,null,null,null,null,null,null,null,null,null,null,null,null,null,null,"Röm",6,"12-18","Eph",3,"2-12","Lk",12,"39-48"]
[13,"Donnerstag der 29. Woche im Jahreskreis"," ,"," ,"," ,"," ,"," ,"," ,"," ,"," ,"," ,",null,"Röm 6,19-23","Eph 3,14-21","Lk 12,49-53",5,"Donnerstag",29,"Woche im Jahreskreis",null,null,null,null,null,null,null,null,null,null,null,null,null,null,null,null,null,null,null,null,null,null,null,null,null,null,null,null,null,null,null,null,null,null,null,null,"Röm",6,"19-23","Eph",3,"14-21","Lk",12,"49-53"]
[13,"Freitag der 29. Woche im Jahreskreis"," ,"," ,"," ,"," ,"," ,"," ,"," ,"," ,"," ,",null,"Röm 7,18-25a","Eph 4,1-6","Lk 12,54-59",6,"Freitag",29,"Woche im Jahreskreis",null,null,null,null,null,null,null,null,null,null,null,null,null,null,null,null,null,null,null,null,null,null,null,null,null,null,null,null,null,null,null,null,null,null,null,null,"Röm",7,"18-25a","Eph",4,"1-6","Lk",12,"54-59"]
[13,"Samstag der 29. Woche im Jahreskreis"," ,"," ,"," ,"," ,"," ,"," ,"," ,"," ,"," ,",null,"Röm 8,1-11","Eph 4,7-16","Lk 13,1-9",7,"Samstag",29,"Woche im Jahreskreis",null,null,null,null,null,null,null,null,null,null,null,null,null,null,null,null,null,null,null,null,null,null,null,null,null,null,null,null,null,null,null,null,null,null,null,null,"Röm",8,"1-11","Eph",4,"7-16","Lk",13,"1-9"]
[6,{"$f":"IF(R206<>\"\",R206&\". \"&S206,S206)","v":"30. Sonntag im Jahreskreis"},"Ex 22,20-26","1 Thess 1,5c-10","Mt 22,34-40","Jer 31,7-9","Hebr 5,1-6","Mk 10,46b-52","Sir 35,15b-17.20-22a","2 Tim 4,6-8.16-18","Lk 18,9-14",null," ,"," ,"," ,",1,"Sonntag",30,"Sonntag im Jahreskreis","Ex",22,"20-26","1 Thess",1,"5c-10","Mt",22,"34-40",null,null,null,"Jer",31,"7-9","Hebr",5,"1-6","Mk",10,"46b-52",null,null,null,"Sir",35,"15b-17.20-22a","2 Tim",4,"6-8.16-18","Lk",18,"9-14"]
[13,{"$f":"IF(R207<>\"\",Q207&\" der \"&R207&\". \"&S207,S207)","v":"Montag der 30. Woche im Jahreskreis"}," ,"," ,"," ,"," ,"," ,"," ,"," ,"," ,"," ,",null,"Röm 8,12-17","Eph 4,32 – 5,8","Lk 13,10-17",2,"Montag",30,"Woche im Jahreskreis",null,null,null,null,null,null,null,null,null,null,null,null,null,null,null,null,null,null,null,null,null,null,null,null,null,null,null,null,null,null,null,null,null,null,null,null,"Röm",8,"12-17","Eph",4,"32 – 5,8","Lk",13,"10-17"]
[13,"Dienstag der 30. Woche im Jahreskreis"," ,"," ,"," ,"," ,"," ,"," ,"," ,"," ,"," ,",null,"Röm 8,18-25","Eph 5,21-23","Lk 13,18-21",3,"Dienstag",30,"Woche im Jahreskreis",null,null,null,null,null,null,null,null,null,null,null,null,null,null,null,null,null,null,null,null,null,null,null,null,null,null,null,null,null,null,null,null,null,null,null,null,"Röm",8,"18-25","Eph",5,"21-23","Lk",13,"18-21"]
[13,"Mittwoch der 30. Woche im Jahreskreis"," ,"," ,"," ,"," ,"," ,"," ,"," ,"," ,"," ,",null,"Röm 8,26-30","Eph 6,1-9","Lk 13,22-30",4,"Mittwoch",30,"Woche im Jahreskreis",null,null,null,null,null,null,null,null,null,null,null,null,null,null,null,null,null,null,null,null,null,null,null,null,null,null,null,null,null,null,null,null,null,null,null,null,"Röm",8,"26-30","Eph",6,"1-9","Lk",13,"22-30"]
[13,"Donnerstag der 30. Woche im Jahreskreis"," ,"," ,"," ,"," ,"," ,"," ,"," ,"," ,"," ,",null,"Röm 8,31b-39","Eph 6,10-20","Lk 13,31-35",5,"Donnerstag",30,"Woche im Jahreskreis",null,null,null,null,null,null,null,null,null,null,null,null,null,null,null,null,null,null,null,null,null,null,null,null,null,null,null,null,null,null,null,null,null,null,null,null,"Röm",8,"31b-39","Eph",6,"10-20","Lk",13,"31-35"]
[13,"Freitag der 30. Woche im Jahreskreis"," ,"," ,"," ,"," ,"," ,"," ,"," ,"," ,"," ,",null,"Röm 9,1-5","Phil 1,1-11","Lk 14,1-6",6,"Freitag",30,"Woche im Jahreskreis",null,null,null,null,null,null,null,null,null,null,null,null,null,null,null,null,null,null,null,null,null,null,null,null,null,null,null,null,null,null,null,null,null,null,null,null,"Röm",9,"1-5","Phil",1,"1-11","Lk",14,"1-6"]
[13,"Samstag der 30. Woche im Jahreskreis"," ,"," ,"," ,"," ,"," ,"," ,"," ,"," ,"," ,",null,"Röm 11,1-2a.11-12.25-29","Phil 1,18b-26","Lk 14,1.7-11",7,"Samstag",30,"Woche im Jahreskreis",null,null,null,null,null,null,null,null,null,null,null,null,null,null,null,null,null,null,null,null,null,null,null,null,null,null,null,null,null,null,null,null,null,null,null,null,"Röm",11,"1-2a.11-12.25-29","Phil",1,"18b-26","Lk",14,"1.7-11"]
[6,{"$f":"IF(R213<>\"\",R213&\". \"&S213,S213)","v":"31. Sonntag im Jahreskreis"},"Mal 1,14b – 2,2b.8-10","1 Thess 2,7b-9.13","Mt 23,1-12","Dtn 6,2-6","Hebr 7,23-28","Mk 12,28b-34","Weish 11,22 – 12,2","2 Thess 1,11 – 2,2","Lk 19,1-10",null," ,"," ,"," ,",1,"Sonntag",31,"Sonntag im Jahreskreis","Mal",1,"14b – 2,2b.8-10","1 Thess",2,"7b-9.13","Mt",23,"1-12",null,null,null,"Dtn",6,"2-6","Hebr",7,"23-28","Mk",12,"28b-34",null,null,null,"Weish",11,"22 – 12,2","2 Thess",1,"11 – 2,2","Lk",19,"1-10"]
[13,{"$f":"IF(R214<>\"\",Q214&\" der \"&R214&\". \"&S214,S214)","v":"Montag der 31. Woche im Jahreskreis"}," ,"," ,"," ,"," ,"," ,"," ,"," ,"," ,"," ,",null,"Röm 11,29-36","Phil 2,1-4","Lk 14,12-14",2,"Montag",31,"Woche im Jahreskreis",null,null,null,null,null,null,null,null,null,null,null,null,null,null,null,null,null,null,null,null,null,null,null,null,null,null,null,null,null,null,null,null,null,null,null,null,"Röm",11,"29-36","Phil",2,"1-4","Lk",14,"12-14"]
[13,"Dienstag der 31. Woche im Jahreskreis"," ,"," ,"," ,"," ,"," ,"," ,"," ,"," ,"," ,",null,"Röm 12,5-16a","Phil 2,5-11","Lk 14,15-24",3,"Dienstag",31,"Woche im Jahreskreis",null,null,null,null,null,null,null,null,null,null,null,null,null,null,null,null,null,null,null,null,null,null,null,null,null,null,null,null,null,null,null,null,null,null,null,null,"Röm",12,"5-16a","Phil",2,"5-11","Lk",14,"15-24"]
[13,"Mittwoch der 31. Woche im Jahreskreis"," ,"," ,"," ,"," ,"," ,"," ,"," ,"," ,"," ,",null,"Röm 13,8-10","Phil 2,12-18","Lk 14,25-33",4,"Mittwoch",31,"Woche im Jahreskreis",null,null,null,null,null,null,null,null,null,null,null,null,null,null,null,null,null,null,null,null,null,null,null,null,null,null,null,null,null,null,null,null,null,null,null,null,"Röm",13,"8-10","Phil",2,"12-18","Lk",14,"25-33"]
[13,"Donnerstag der 31. Woche im Jahreskreis"," ,"," ,"," ,"," ,"," ,"," ,"," ,"," ,"," ,",null,"Röm 14,7-12","Phil 3,3-8a","Lk 15,1-10",5,"Donnerstag",31,"Woche im Jahreskreis",null,null,null,null,null,null,null,null,null,null,null,null,null,null,null,null,null,null,null,null,null,null,null,null,null,null,null,null,null,null,null,null,null,null,null,null,"Röm",14,"7-12","Phil",3,"3-8a","Lk",15,"1-10"]
[13,"Freitag der 31. Woche im Jahreskreis"," ,"," ,"," ,"," ,"," ,"," ,"," ,"," ,"," ,",null,"Röm 15,14-21","Phil 3,17 – 4,1","Lk 16,1-8",6,"Freitag",31,"Woche im Jahreskreis",null,null,null,null,null,null,null,null,null,null,null,null,null,null,null,null,null,null,null,null,null,null,null,null,null,null,null,null,null,null,null,null,null,null,null,null,"Röm",15,"14-21","Phil",3,"17 – 4,1","Lk",16,"1-8"]
[13,"Samstag der 31. Woche im Jahreskreis"," ,"," ,"," ,"," ,"," ,"," ,"," ,"," ,"," ,",null,"Röm 16,3-9.16.22-27","Phil 4,10-19","Lk 16,9-15",7,"Samstag",31,"Woche im Jahreskreis",null,null,null,null,null,null,null,null,null,null,null,null,null,null,null,null,null,null,null,null,null,null,null,null,null,null,null,null,null,null,null,null,null,null,null,null,"Röm",16,"3-9.16.22-27","Phil",4,"10-19","Lk",16,"9-15"]
[6,{"$f":"IF(R220<>\"\",R220&\". \"&S220,S220)","v":"32. Sonntag im Jahreskreis"},"Weish 6,12-16","1 Thess 4,13-18","Mt 25,1-13","1 Kön 17,10-16","Hebr 9,24-28","Mk 12,38-44","2 Makk 7,1-2.7a.9-14","2 Thess 2,16 – 3,5","Lk 20,27-38",null," ,"," ,"," ,",1,"Sonntag",32,"Sonntag im Jahreskreis","Weish",6,"12-16","1 Thess",4,"13-18","Mt",25,"1-13",null,null,null,"1 Kön",17,"10-16","Hebr",9,"24-28","Mk",12,"38-44","12,41-44",null,null,"2 Makk",7,"1-2.7a.9-14","2 Thess",2,"16 – 3,5","Lk",20,"27-38","20,27.34-38"]
[13,{"$f":"IF(R221<>\"\",Q221&\" der \"&R221&\". \"&S221,S221)","v":"Montag der 32. Woche im Jahreskreis"}," ,"," ,"," ,"," ,"," ,"," ,"," ,"," ,"," ,",null,"Weish 1,1-7","Tit 1,1-9","Lk 17,1-6",2,"Montag",32,"Woche im Jahreskreis",null,null,null,null,null,null,null,null,null,null,null,null,null,null,null,null,null,null,null,null,null,null,null,null,null,null,null,null,null,null,null,null,null,null,null,null,"Weish",1,"1-7","Tit",1,"1-9","Lk",17,"1-6"]
[13,"Dienstag der 32. Woche im Jahreskreis"," ,"," ,"," ,"," ,"," ,"," ,"," ,"," ,"," ,",null,"Weish 2,23 – 3,9","Tit 2,1-8.11-14","Lk 17,7-10",3,"Dienstag",32,"Woche im Jahreskreis",null,null,null,null,null,null,null,null,null,null,null,null,null,null,null,null,null,null,null,null,null,null,null,null,null,null,null,null,null,null,null,null,null,null,null,null,"Weish",2,"23 – 3,9","Tit",2,"1-8.11-14","Lk",17,"7-10"]
[13,"Mittwoch der 32. Woche im Jahreskreis"," ,"," ,"," ,"," ,"," ,"," ,"," ,"," ,"," ,",null,"Weish 6,1-11","Tit 3,1-7","Lk 17,11-19",4,"Mittwoch",32,"Woche im Jahreskreis",null,null,null,null,null,null,null,null,null,null,null,null,null,null,null,null,null,null,null,null,null,null,null,null,null,null,null,null,null,null,null,null,null,null,null,null,"Weish",6,"1-11","Tit",3,"1-7","Lk",17,"11-19"]
[13,"Donnerstag der 32. Woche im Jahreskreis"," ,"," ,"," ,"," ,"," ,"," ,"," ,"," ,"," ,",null,"Weish 7,22 – 8,1","Phlm ,7-20","Lk 17,20-25",5,"Donnerstag",32,"Woche im Jahreskreis",null,null,null,null,null,null,null,null,null,null,null,null,null,null,null,null,null,null,null,null,null,null,null,null,null,null,null,null,null,null,null,null,null,null,null,null,"Weish",7,"22 – 8,1","Phlm",null,"7-20","Lk",17,"20-25"]
[13,"Freitag der 32. Woche im Jahreskreis"," ,"," ,"," ,"," ,"," ,"," ,"," ,"," ,"," ,",null,"Weish 13,1-9","2 Joh ,4-9","Lk 17,26-37",6,"Freitag",32,"Woche im Jahreskreis",null,null,null,null,null,null,null,null,null,null,null,null,null,null,null,null,null,null,null,null,null,null,null,null,null,null,null,null,null,null,null,null,null,null,null,null,"Weish",13,"1-9","2 Joh",null,"4-9","Lk",17,"26-37"]
[13,"Samstag der 32. Woche im Jahreskreis"," ,"," ,"," ,"," ,"," ,"," ,"," ,"," ,"," ,",null,"Weish 18,14-16; 19,6-9","3 Joh ,5-8","Lk 18,1-8",7,"Samstag",32,"Woche im Jahreskreis",null,null,null,null,null,null,null,null,null,null,null,null,null,null,null,null,null,null,null,null,null,null,null,null,null,null,null,null,null,null,null,null,null,null,null,null,"Weish",18,"14-16; 19,6-9","3 Joh",null,"5-8","Lk",18,"1-8"]
[6,{"$f":"IF(R227<>\"\",R227&\". \"&S227,S227)","v":"33. Sonntag im Jahreskreis"},"Spr 31,10-13.19-20.30-31","1 Thess 5,1-6","Mt 25,14-30","Dan 12,1-3","Hebr 10,11-14.18","Mk 13,24-32","Mal 3,19-20b","2 Thess 3,7-12","Lk 21,5-19",null," ,"," ,"," ,",1,"Sonntag",33,"Sonntag im Jahreskreis","Spr",31,"10-13.19-20.30-31","1 Thess",5,"1-6","Mt",25,"14-30","25,14-15.19-21",null,null,"Dan",12,"1-3","Hebr",10,"11-14.18","Mk",13,"24-32",null,null,null,"Mal",3,"19-20b","2 Thess",3,"7-12","Lk",21,"5-19"]
[13,{"$f":"IF(R228<>\"\",Q228&\" der \"&R228&\". \"&S228,S228)","v":"Montag der 33. Woche im Jahreskreis"}," ,"," ,"," ,"," ,"," ,"," ,"," ,"," ,"," ,",null,"1 Makk 1,10-15.41-43.54-57.62-64","Offb 1,1-4; 2,1-5a","Lk 18,35-43",2,"Montag",33,"Woche im Jahreskreis",null,null,null,null,null,null,null,null,null,null,null,null,null,null,null,null,null,null,null,null,null,null,null,null,null,null,null,null,null,null,null,null,null,null,null,null,"1 Makk",1,"10-15.41-43.54-57.62-64","Offb",1,"1-4; 2,1-5a","Lk",18,"35-43"]
[13,"Dienstag der 33. Woche im Jahreskreis"," ,"," ,"," ,"," ,"," ,"," ,"," ,"," ,"," ,",null,"2 Makk 6,18-31","Offb 3,1-6.14-22","Lk 19,1-10",3,"Dienstag",33,"Woche im Jahreskreis",null,null,null,null,null,null,null,null,null,null,null,null,null,null,null,null,null,null,null,null,null,null,null,null,null,null,null,null,null,null,null,null,null,null,null,null,"2 Makk",6,"18-31","Offb",3,"1-6.14-22","Lk",19,"1-10"]
[13,"Mittwoch der 33. Woche im Jahreskreis"," ,"," ,"," ,"," ,"," ,"," ,"," ,"," ,"," ,",null,"2 Makk 7,1.20-31","Offb 4,1-11","Lk 19,11-28",4,"Mittwoch",33,"Woche im Jahreskreis",null,null,null,null,null,null,null,null,null,null,null,null,null,null,null,null,null,null,null,null,null,null,null,null,null,null,null,null,null,null,null,null,null,null,null,null,"2 Makk",7,"1.20-31","Offb",4,"1-11","Lk",19,"11-28"]
[13,"Donnerstag der 33. Woche im Jahreskreis"," ,"," ,"," ,"," ,"," ,"," ,"," ,"," ,"," ,",null,"1 Makk 2,15-29","Offb 5,1-10","Lk 19,41-44",5,"Donnerstag",33,"Woche im Jahreskreis",null,null,null,null,null,null,null,null,null,null,null,null,null,null,null,null,null,null,null,null,null,null,null,null,null,null,null,null,null,null,null,null,null,null,null,null,"1 Makk",2,"15-29","Offb",5,"1-10","Lk",19,"41-44"]
[13,"Freitag der 33. Woche im Jahreskreis"," ,"," ,"," ,"," ,"," ,"," ,"," ,"," ,"," ,",null,"1 Makk 4,36-37.52-59","Offb 10,8-11","Lk 19,45-48",6,"Freitag",33,"Woche im Jahreskreis",null,null,null,null,null,null,null,null,null,null,null,null,null,null,null,null,null,null,null,null,null,null,null,null,null,null,null,null,null,null,null,null,null,null,null,null,"1 Makk",4,"36-37.52-59","Offb",10,"8-11","Lk",19,"45-48"]
[13,"Samstag der 33. Woche im Jahreskreis"," ,"," ,"," ,"," ,"," ,"," ,"," ,"," ,"," ,",null,"1 Makk 6,1-13","Offb 11,4-12","Lk 20,27-40",7,"Samstag",33,"Woche im Jahreskreis",null,null,null,null,null,null,null,null,null,null,null,null,null,null,null,null,null,null,null,null,null,null,null,null,null,null,null,null,null,null,null,null,null,null,null,null,"1 Makk",6,"1-13","Offb",11,"4-12","Lk",20,"27-40"]
[6,{"$f":"IF(R234<>\"\",R234&\". \"&S234,S234)","v":"34. Sonntag im Jahreskreis"},"Ez 34,11-12.15-17","1 Kor 15,20-26.28","Mt 25,31-46","Dan 7,2a.13b-14","Offb 1,5b-8","Joh 18,33b-37","2 Sam 5,1-3","Kol 1,12-20","Lk 23,35b-43",null," ,"," ,"," ,",1,"Sonntag",34,"Sonntag im Jahreskreis","Ez",34,"11-12.15-17","1 Kor",15,"20-26.28","Mt",25,"31-46",null,null,null,"Dan",7,"2a.13b-14","Offb",1,"5b-8","Joh",18,"33b-37",null,null,null,"2 Sam",5,"1-3","Kol",1,"12-20","Lk",23,"35b-43"]
[13,{"$f":"IF(R235<>\"\",Q235&\" der \"&R235&\". \"&S235,S235)","v":"Montag der 34. Woche im Jahreskreis"}," ,"," ,"," ,"," ,"," ,"," ,"," ,"," ,"," ,",null,"Dan 1,1-6.8-20","Offb 14,1-3.4b-5","Lk 21,1-4",2,"Montag",34,"Woche im Jahreskreis",null,null,null,null,null,null,null,null,null,null,null,null,null,null,null,null,null,null,null,null,null,null,null,null,null,null,null,null,null,null,null,null,null,null,null,null,"Dan",1,"1-6.8-20","Offb",14,"1-3.4b-5","Lk",21,"1-4"]
[13,"Dienstag der 34. Woche im Jahreskreis"," ,"," ,"," ,"," ,"," ,"," ,"," ,"," ,"," ,",null,"Dan 2,31-45","Offb 14,14-19","Lk 21,5-11",3,"Dienstag",34,"Woche im Jahreskreis",null,null,null,null,null,null,null,null,null,null,null,null,null,null,null,null,null,null,null,null,null,null,null,null,null,null,null,null,null,null,null,null,null,null,null,null,"Dan",2,"31-45","Offb",14,"14-19","Lk",21,"5-11"]
[13,"Mittwoch der 34. Woche im Jahreskreis"," ,"," ,"," ,"," ,"," ,"," ,"," ,"," ,"," ,",null,"Dan 5,1-6.13-14.16-17.23-28","Offb 15,1-4","Lk 21,12-19",4,"Mittwoch",34,"Woche im Jahreskreis",null,null,null,null,null,null,null,null,null,null,null,null,null,null,null,null,null,null,null,null,null,null,null,null,null,null,null,null,null,null,null,null,null,null,null,null,"Dan",5,"1-6.13-14.16-17.23-28","Offb",15,"1-4","Lk",21,"12-19"]
[13,"Donnerstag der 34. Woche im Jahreskreis"," ,"," ,"," ,"," ,"," ,"," ,"," ,"," ,"," ,",null,"Dan 6,12-28","Offb 18,1-2.21-23; 19,1-3.9a","Lk 21,20-28",5,"Donnerstag",34,"Woche im Jahreskreis",null,null,null,null,null,null,null,null,null,null,null,null,null,null,null,null,null,null,null,null,null,null,null,null,null,null,null,null,null,null,null,null,null,null,null,null,"Dan",6,"12-28","Offb",18,"1-2.21-23; 19,1-3.9a","Lk",21,"20-28"]
[13,"Freitag der 34. Woche im Jahreskreis"," ,"," ,"," ,"," ,"," ,"," ,"," ,"," ,"," ,",null,"Dan 7,2-14","Offb 20,1-4.11 – 21,2","Lk 21,29-33",6,"Freitag",34,"Woche im Jahreskreis",null,null,null,null,null,null,null,null,null,null,null,null,null,null,null,null,null,null,null,null,null,null,null,null,null,null,null,null,null,null,null,null,null,null,null,null,"Dan",7,"2-14","Offb",20,"1-4.11 – 21,2","Lk",21,"29-33"]
[13,"Samstag der 34. Woche im Jahreskreis"," ,"," ,"," ,"," ,"," ,"," ,"," ,"," ,"," ,",null,"Dan 7,15-27","Offb 22,1-7","Lk 21,34-36",7,"Samstag",34,"Woche im Jahreskreis",null,null,null,null,null,null,null,null,null,null,null,null,null,null,null,null,null,null,null,null,null,null,null,null,null,null,null,null,null,null,null,null,null,null,null,null,"Dan",7,"15-27","Offb",22,"1-7","Lk",21,"34-36"]
[null,null," ,"," ,"," ,"," ,"," ,"," ,"," ,"," ,"," ,",null," ,"," ,"," ,"]
[2,{"$f":"S242","v":"Aschermittwoch"},"Joël 2,12-18","2 Kor 5,20 – 6,2","Mt 6,1-6.16-18","Joël 2,12-18","2 Kor 5,20 – 6,2","Mt 6,1-6.16-18","Joël 2,12-18","2 Kor 5,20 – 6,2","Mt 6,1-6.16-18",null," ,"," ,"," ,",4,"Mittwoch",0,"Aschermittwoch","Joël",2,"12-18","2 Kor",5,"20 – 6,2","Mt",6,"1-6.16-18",null,null,null,"Joël",2,"12-18","2 Kor",5,"20 – 6,2","Mt",6,"1-6.16-18",null,null,null,"Joël",2,"12-18","2 Kor",5,"20 – 6,2","Mt",6,"1-6.16-18"]
[9,{"$f":"IF(Q243<>\"\",Q243&\" \"&S243)","v":"Donnerstag nach Aschermittwoch"}," ,"," ,"," ,"," ,"," ,"," ,"," ,"," ,"," ,",null,"Dtn 30,15-20","Dtn 30,15-20","Lk 9,22-25",5,"Donnerstag",0,"nach Aschermittwoch",null,null,null,null,null,null,null,null,null,null,null,null,null,null,null,null,null,null,null,null,null,null,null,null,null,null,null,null,null,null,null,null,null,null,null,null,"Dtn",30,"15-20","Dtn",30,"15-20","Lk",9,"22-25"]
[9,{"$f":"IF(Q244<>\"\",Q244&\" \"&S244)","v":"Freitag nach Aschermittwoch"}," ,"," ,"," ,"," ,"," ,"," ,"," ,"," ,"," ,",null,"Jes 58,1-9a","Jes 58,1-9a","Mt 9,14-15",6,"Freitag",0,"nach Aschermittwoch",null,null,null,null,null,null,null,null,null,null,null,null,null,null,null,null,null,null,null,null,null,null,null,null,null,null,null,null,null,null,null,null,null,null,null,null,"Jes",58,"1-9a","Jes",58,"1-9a","Mt",9,"14-15"]
[9,{"$f":"IF(Q245<>\"\",Q245&\" \"&S245)","v":"Samstag nach Aschermittwoch"}," ,"," ,"," ,"," ,"," ,"," ,"," ,"," ,"," ,",null,"Jes 58,9b-14","Jes 58,9b-14","Lk 5,27-32",7,"Samstag",0,"nach Aschermittwoch",null,null,null,null,null,null,null,null,null,null,null,null,null,null,null,null,null,null,null,null,null,null,null,null,null,null,null,null,null,null,null,null,null,null,null,null,"Jes",58,"9b-14","Jes",58,"9b-14","Lk",5,"27-32"]
[2,{"$f":"IF(R246<>\"\",R246&\". \"&S246,S246)","v":"1. Fastensonntag"},"Gen 2,7-9; 3,1-7","Röm 5,12-19","Mt 4,1-11","Gen 9,8-15","1 Petr 3,18-22","Mk 1,12-15","Dtn 26,4-10","Röm 10,8-13","Lk 4,1-13",null," ,"," ,"," ,",1,"Sonntag",1,"Fastensonntag","Gen",2,"7-9; 3,1-7","Röm",5,"12-19","Mt",4,"1-11",null,null,null,"Gen",9,"8-15","1 Petr",3,"18-22","Mk",1,"12-15",null,null,null,"Dtn",26,"4-10","Röm",10,"8-13","Lk",4,"1-13"]
[9,{"$f":"IF(R247<>\"\",Q247&\" der \"&R247&\". \"&S247,S247)","v":"Montag der 1. Fastenwoche"}," ,"," ,"," ,"," ,"," ,"," ,"," ,"," ,"," ,",null,"Lev 19,1-2.11-18","Lev 19,1-2.11-18","Mt 25,31-46",2,"Montag",1,"Fastenwoche",null,null,null,null,null,null,null,null,null,null,null,null,null,null,null,null,null,null,null,null,null,null,null,null,null,null,null,null,null,null,null,null,null,null,null,null,"Lev",19,"1-2.11-18","Lev",19,"1-2.11-18","Mt",25,"31-46"]
[9,"Dienstag der 1. Fastenwoche"," ,"," ,"," ,"," ,"," ,"," ,"," ,"," ,"," ,",null,"Jes 55,10-11","Jes 55,10-11","Mt 6,7-15",3,"Dienstag",1,"Fastenwoche",null,null,null,null,null,null,null,null,null,null,null,null,null,null,null,null,null,null,null,null,null,null,null,null,null,null,null,null,null,null,null,null,null,null,null,null,"Jes",55,"10-11","Jes",55,"10-11","Mt",6,"7-15"]
[9,"Mittwoch der 1. Fastenwoche"," ,"," ,"," ,"," ,"," ,"," ,"," ,"," ,"," ,",null,"Jona 3,1-10","Jona 3,1-10","Lk 11,29-32",4,"Mittwoch",1,"Fastenwoche",null,null,null,null,null,null,null,null,null,null,null,null,null,null,null,null,null,null,null,null,null,null,null,null,null,null,null,null,null,null,null,null,null,null,null,null,"Jona",3,"1-10","Jona",3,"1-10","Lk",11,"29-32"]
[9,"Donnerstag der 1. Fastenwoche"," ,"," ,"," ,"," ,"," ,"," ,"," ,"," ,"," ,",null,"Est 4,17k.17l-m.17r-t","Est 4,17k.17l-m.17r-t","Mt 7,7-12",5,"Donnerstag",1,"Fastenwoche",null,null,null,null,null,null,null,null,null,null,null,null,null,null,null,null,null,null,null,null,null,null,null,null,null,null,null,null,null,null,null,null,null,null,null,null,"Est",4,"17k.17l-m.17r-t","Est",4,"17k.17l-m.17r-t","Mt",7,"7-12"]
[9,"Freitag der 1. Fastenwoche"," ,"," ,"," ,"," ,"," ,"," ,"," ,"," ,"," ,",null,"Ez 18,21-28","Ez 18,21-28","Mt 5,20-26",6,"Freitag",1,"Fastenwoche",null,null,null,null,null,null,null,null,null,null,null,null,null,null,null,null,null,null,null,null,null,null,null,null,null,null,null,null,null,null,null,null,null,null,null,null,"Ez",18,"21-28","Ez",18,"21-28","Mt",5,"20-26"]
[9,"Samstag der 1. Fastenwoche"," ,"," ,"," ,"," ,"," ,"," ,"," ,"," ,"," ,",null,"Dtn 26,16-19","Dtn 26,16-19","Mt 5,43-48",7,"Samstag",1,"Fastenwoche",null,null,null,null,null,null,null,null,null,null,null,null,null,null,null,null,null,null,null,null,null,null,null,null,null,null,null,null,null,null,null,null,null,null,null,null,"Dtn",26,"16-19","Dtn",26,"16-19","Mt",5,"43-48"]
[2,{"$f":"IF(R253<>\"\",R253&\". \"&S253,S253)","v":"2. Fastensonntag"},"Gen 12,1-4a","2 Tim 1,8b-10","Mt 17,1-9","Gen 22,1-2.9a.10-13.15-18","Röm 8,31b-34","Mk 9,2-10","Gen 15,5-12.17-18","Phil 3,17 – 4,1","Lk 9,28b-36",null," ,"," ,"," ,",1,"Sonntag",2,"Fastensonntag","Gen",12,"1-4a","2 Tim",1,"8b-10","Mt",17,"1-9",null,null,null,"Gen",22,"1-2.9a.10-13.15-18","Röm",8,"31b-34","Mk",9,"2-10",null,null,null,"Gen",15,"5-12.17-18","Phil",3,"17 – 4,1","Lk",9,"28b-36"]
[9,{"$f":"IF(R254<>\"\",Q254&\" der \"&R254&\". \"&S254,S254)","v":"Montag der 2. Fastenwoche"}," ,"," ,"," ,"," ,"," ,"," ,"," ,"," ,"," ,",null,"Dan 9,4b-10","Dan 9,4b-10","Lk 6,36-38",2,"Montag",2,"Fastenwoche",null,null,null,null,null,null,null,null,null,null,null,null,null,null,null,null,null,null,null,null,null,null,null,null,null,null,null,null,null,null,null,null,null,null,null,null,"Dan",9,"4b-10","Dan",9,"4b-10","Lk",6,"36-38"]
[9,"Dienstag der 2. Fastenwoche"," ,"," ,"," ,"," ,"," ,"," ,"," ,"," ,"," ,",null,"Jes 1,10.16-20","Jes 1,10.16-20","Mt 23,1-12",3,"Dienstag",2,"Fastenwoche",null,null,null,null,null,null,null,null,null,null,null,null,null,null,null,null,null,null,null,null,null,null,null,null,null,null,null,null,null,null,null,null,null,null,null,null,"Jes",1,"10.16-20","Jes",1,"10.16-20","Mt",23,"1-12"]
[9,"Mittwoch der 2. Fastenwoche"," ,"," ,"," ,"," ,"," ,"," ,"," ,"," ,"," ,",null,"Jer 18,18-20","Jer 18,18-20","Mt 20,17-28",4,"Mittwoch",2,"Fastenwoche",null,null,null,null,null,null,null,null,null,null,null,null,null,null,null,null,null,null,null,null,null,null,null,null,null,null,null,null,null,null,null,null,null,null,null,null,"Jer",18,"18-20","Jer",18,"18-20","Mt",20,"17-28"]
[9,"Donnerstag der 2. Fastenwoche"," ,"," ,"," ,"," ,"," ,"," ,"," ,"," ,"," ,",null,"Jer 17,5-10","Jer 17,5-10","Lk 16,19-31",5,"Donnerstag",2,"Fastenwoche",null,null,null,null,null,null,null,null,null,null,null,null,null,null,null,null,null,null,null,null,null,null,null,null,null,null,null,null,null,null,null,null,null,null,null,null,"Jer",17,"5-10","Jer",17,"5-10","Lk",16,"19-31"]
[9,"Freitag der 2. Fastenwoche"," ,"," ,"," ,"," ,"," ,"," ,"," ,"," ,"," ,",null,"Gen 37,3-4.12-13a.17b-28","Gen 37,3-4.12-13a.17b-28","Mt 21,33-43.45-46",5,"Freitag",2,"Fastenwoche",null,null,null,null,null,null,null,null,null,null,null,null,null,null,null,null,null,null,null,null,null,null,null,null,null,null,null,null,null,null,null,null,null,null,null,null,"Gen",37,"3-4.12-13a.17b-28","Gen",37,"3-4.12-13a.17b-28","Mt",21,"33-43.45-46"]
[9,"Samstag der 2. Fastenwoche",{"$f":"T259&\" \"&U259&\",\"&V259","v":" ,"},{"$f":"W259&\" \"&X259&\",\"&Y259","v":" ,"},{"$f":"Z259&\" \"&AA259&\",\"&AB259","v":" ,"},{"$f":"AF259&\" \"&AG259&\",\"&AH259","v":" ,"},{"$f":"AI259&\" \"&AJ259&\",\"&AK259","v":" ,"},{"$f":"AL259&\" \"&AM259&\",\"&AN259","v":" ,"},{"$f":"AR259&\" \"&AS259&\",\"&AT259","v":" ,"},{"$f":"AU259&\" \"&AV259&\",\"&AW259","v":" ,"},{"$f":"AX259&\" \"&AY259&\",\"&AZ259","v":" ,"},null,{"$f":"BD259&\" \"&BE259&\",\"&BF259","v":"Mi 7,14-15.18-20"},{"$f":"BG259&\" \"&BH259&\",\"&BI259","v":"Mi 7,14-15.18-20"},{"$f":"BJ259&\" \"&BK259&\",\"&BL259","v":"Lk 15,1-3.11-32"},6,"Samstag",2,"Fastenwoche",null,null,null,null,null,null,null,null,null,null,null,null,null,null,null,null,null,null,null,null,null,null,null,null,null,null,null,null,null,null,null,null,null,null,null,null,"Mi",7,"14-15.18-20","Mi",7,"14-15.18-20","Lk",15,"1-3.11-32"]
[2,{"$f":"IF(R260<>\"\",R260&\". \"&S260,S260)","v":"3. Fastensonntag"},"Ex 17,3-7","Röm 5,1-2.5-8","Joh 4,5-42","Ex 20,1-17","1 Kor 1,22-25","Joh 2,13-25","Ex 3,1-8a.10.13-15","1 Kor 10,1-6.10-12","Lk 13,1-9",null," ,"," ,"," ,",1,"Sonntag",3,"Fastensonntag","Ex",17,"3-7","Röm",5,"1-2.5-8","Joh",4,"5-42","4,5-15.19b-26.39a.40-42",null,null,"Ex",20,"1-17","1 Kor",1,"22-25","Joh",2,"13-25",null,null,null,"Ex",3,"1-8a.10.13-15","1 Kor",10,"1-6.10-12","Lk",13,"1-9"]
[9,{"$f":"IF(R261<>\"\",Q261&\" der \"&R261&\". \"&S261,S261)","v":"Montag der 3. Fastenwoche"}," ,"," ,"," ,"," ,"," ,"," ,"," ,"," ,"," ,",null,"2 Kön 5,1-15a","2 Kön 5,1-15a","Lk 4,24-30",2,"Montag",3,"Fastenwoche",null,null,null,null,null,null,null,null,null,null,null,null,null,null,null,null,null,null,null,null,null,null,null,null,null,null,null,null,null,null,null,null,null,null,null,null,"2 Kön",5,"1-15a","2 Kön",5,"1-15a","Lk",4,"24-30",null,"LJ B und C zur Auswahl: Lesung Ex 17,1-7; Evangelium Joh 4,5-42"]
[9,"Dienstag der 3. Fastenwoche"," ,"," ,"," ,"," ,"," ,"," ,"," ,"," ,"," ,",null,"Dan 3,25.34-43","Dan 3,25.34-43","Mt 18,21-35",3,"Dienstag",3,"Fastenwoche",null,null,null,null,null,null,null,null,null,null,null,null,null,null,null,null,null,null,null,null,null,null,null,null,null,null,null,null,null,null,null,null,null,null,null,null,"Dan",3,"25.34-43","Dan",3,"25.34-43","Mt",18,"21-35",null,"LJ B und C zur Auswahl: Lesung Ex 17,1-7; Evangelium Joh 4,5-42"]
[9,"Mittwoch der 3. Fastenwoche"," ,"," ,"," ,"," ,"," ,"," ,"," ,"," ,"," ,",null,"Dtn 4,1.5-9","Dtn 4,1.5-9","Mt 5,17-19",4,"Mittwoch",3,"Fastenwoche",null,null,null,null,null,null,null,null,null,null,null,null,null,null,null,null,null,null,null,null,null,null,null,null,null,null,null,null,null,null,null,null,null,null,null,null,"Dtn",4,"1.5-9","Dtn",4,"1.5-9","Mt",5,"17-19",null,"LJ B und C zur Auswahl: Lesung Ex 17,1-7; Evangelium Joh 4,5-42"]
[9,"Donnerstag der 3. Fastenwoche"," ,"," ,"," ,"," ,"," ,"," ,"," ,"," ,"," ,",null,"Jer 7,23-28","Jer 7,23-28","Lk 11,14-23",5,"Donnerstag",3,"Fastenwoche",null,null,null,null,null,null,null,null,null,null,null,null,null,null,null,null,null,null,null,null,null,null,null,null,null,null,null,null,null,null,null,null,null,null,null,null,"Jer",7,"23-28","Jer",7,"23-28","Lk",11,"14-23",null,"LJ B und C zur Auswahl: Lesung Ex 17,1-7; Evangelium Joh 4,5-42"]
[9,"Freitag der 3. Fastenwoche"," ,"," ,"," ,"," ,"," ,"," ,"," ,"," ,"," ,",null,"Hos 14,2-10","Hos 14,2-10","Mk 12,28b-34",6,"Freitag",3,"Fastenwoche",null,null,null,null,null,null,null,null,null,null,null,null,null,null,null,null,null,null,null,null,null,null,null,null,null,null,null,null,null,null,null,null,null,null,null,null,"Hos",14,"2-10","Hos",14,"2-10","Mk",12,"28b-34",null,"LJ B und C zur Auswahl: Lesung Ex 17,1-7; Evangelium Joh 4,5-42"]
[9,"Samstag der 3. Fastenwoche"," ,"," ,"," ,"," ,"," ,"," ,"," ,"," ,"," ,",null,"Hos 6,1-6","Hos 6,1-6","Lk 18,9-14",7,"Samstag",3,"Fastenwoche",null,null,null,null,null,null,null,null,null,null,null,null,null,null,null,null,null,null,null,null,null,null,null,null,null,null,null,null,null,null,null,null,null,null,null,null,"Hos",6,"1-6","Hos",6,"1-6","Lk",18,"9-14",null,"LJ B und C zur Auswahl: Lesung Ex 17,1-7; Evangelium Joh 4,5-42"]
[2,{"$f":"IF(R267<>\"\",R267&\". \"&S267,S267)","v":"4. Fastensonntag"},"1 Sam 16,1b.6-7.10-13b","Eph 5,8-14","Joh 9,1-41","2 Chr 36,14-16.19-23","Eph 2,4-10","Joh 3,14-21","Jos 5,9a.10-12","2 Kor 5,17-21","Lk 15,1-3.11-32",null," ,"," ,"," ,",1,"Sonntag",4,"Fastensonntag","1 Sam",16,"1b.6-7.10-13b","Eph",5,"8-14","Joh",9,"1-41","9,1.6-9.13-17.34-38",null,null,"2 Chr",36,"14-16.19-23","Eph",2,"4-10","Joh",3,"14-21",null,null,null,"Jos",5,"9a.10-12","2 Kor",5,"17-21","Lk",15,"1-3.11-32"]
[9,{"$f":"IF(R268<>\"\",Q268&\" der \"&R268&\". \"&S268,S268)","v":"Montag der 4. Fastenwoche"}," ,"," ,"," ,"," ,"," ,"," ,"," ,"," ,"," ,",null,"Jes 65,17-21","Jes 65,17-21","Joh 4,43-54",2,"Montag",4,"Fastenwoche",null,null,null,null,null,null,null,null,null,null,null,null,null,null,null,null,null,null,null,null,null,null,null,null,null,null,null,null,null,null,null,null,null,null,null,null,"Jes",65,"17-21","Jes",65,"17-21","Joh",4,"43-54",null,"LJ B und C zur Auswahl: Lesung Mi 7,7-9; Evangelium Joh 9,1-41 (Kurzfassung 9,1.6-9.13-17.34-38)"]
[9,"Dienstag der 4. Fastenwoche"," ,"," ,"," ,"," ,"," ,"," ,"," ,"," ,"," ,",null,"Ez 47,1-9.12","Ez 47,1-9.12","Joh 5,1-16",3,"Dienstag",4,"Fastenwoche",null,null,null,null,null,null,null,null,null,null,null,null,null,null,null,null,null,null,null,null,null,null,null,null,null,null,null,null,null,null,null,null,null,null,null,null,"Ez",47,"1-9.12","Ez",47,"1-9.12","Joh",5,"1-16",null,"LJ B und C zur Auswahl: Lesung Mi 7,7-9; Evangelium Joh 9,1-41 (Kurzfassung 9,1.6-9.13-17.34-38)"]
[9,"Mittwoch der 4. Fastenwoche"," ,"," ,"," ,"," ,"," ,"," ,"," ,"," ,"," ,",null,"Jes 49,8-15","Jes 49,8-15","Joh 5,17-30",4,"Mittwoch",4,"Fastenwoche",null,null,null,null,null,null,null,null,null,null,null,null,null,null,null,null,null,null,null,null,null,null,null,null,null,null,null,null,null,null,null,null,null,null,null,null,"Jes",49,"8-15","Jes",49,"8-15","Joh",5,"17-30",null,"LJ B und C zur Auswahl: Lesung Mi 7,7-9; Evangelium Joh 9,1-41 (Kurzfassung 9,1.6-9.13-17.34-38)"]
[9,"Donnerstag der 4. Fastenwoche"," ,"," ,"," ,"," ,"," ,"," ,"," ,"," ,"," ,",null,"Ex 32,7-14","Ex 32,7-14","Joh 5,31-47",5,"Donnerstag",4,"Fastenwoche",null,null,null,null,null,null,null,null,null,null,null,null,null,null,null,null,null,null,null,null,null,null,null,null,null,null,null,null,null,null,null,null,null,null,null,null,"Ex",32,"7-14","Ex",32,"7-14","Joh",5,"31-47",null,"LJ B und C zur Auswahl: Lesung Mi 7,7-9; Evangelium Joh 9,1-41 (Kurzfassung 9,1.6-9.13-17.34-38)"]
[9,"Freitag der 4. Fastenwoche"," ,"," ,"," ,"," ,"," ,"," ,"," ,"," ,"," ,",null,"Weish 2,1a.12-22","Weish 2,1a.12-22","Joh 7,1-2.10.25-30",6,"Freitag",4,"Fastenwoche",null,null,null,null,null,null,null,null,null,null,null,null,null,null,null,null,null,null,null,null,null,null,null,null,null,null,null,null,null,null,null,null,null,null,null,null,"Weish",2,"1a.12-22","Weish",2,"1a.12-22","Joh",7,"1-2.10.25-30",null,"LJ B und C zur Auswahl: Lesung Mi 7,7-9; Evangelium Joh 9,1-41 (Kurzfassung 9,1.6-9.13-17.34-38)"]
[9,"Samstag der 4. Fastenwoche"," ,"," ,"," ,"," ,"," ,"," ,"," ,"," ,"," ,",null,"Jer 11,18-20","Jer 11,18-20","Joh 7,40-53",7,"Samstag",4,"Fastenwoche",null,null,null,null,null,null,null,null,null,null,null,null,null,null,null,null,null,null,null,null,null,null,null,null,null,null,null,null,null,null,null,null,null,null,null,null,"Jer",11,"18-20","Jer",11,"18-20","Joh",7,"40-53",null,"LJ B und C zur Auswahl: Lesung Mi 7,7-9; Evangelium Joh 9,1-41 (Kurzfassung 9,1.6-9.13-17.34-38)"]
[2,{"$f":"IF(R274<>\"\",R274&\". \"&S274,S274)","v":"5. Fastensonntag"},"Ez 37,12b-14","Röm 8,8-11","Joh 11,1-45","Jer 31,31-34","Hebr 5,7-9","Joh 12,20-33","Jes 43,16-21","Phil 3,8-14","Joh 8,1-11",null," ,"," ,"," ,",1,"Sonntag",5,"Fastensonntag","Ez",37,"12b-14","Röm",8,"8-11","Joh",11,"1-45","11,3-7.17.20-27.33b-45",null,null,"Jer",31,"31-34","Hebr",5,"7-9","Joh",12,"20-33",null,null,null,"Jes",43,"16-21","Phil",3,"8-14","Joh",8,"1-11"]
[9,{"$f":"IF(R275<>\"\",Q275&\" der \"&R275&\". \"&S275,S275)","v":"Montag der 5. Fastenwoche"}," ,"," ,"," ,"," ,"," ,"," ,"," ,"," ,"," ,",null,"Dan 13,1-9.15-17.19-30.33-62 (Kurzfassung: Dan 3,41c-62)","Dan 13,1-9.15-17.19-30.33-62 (Kurzfassung: Dan 3,41c-62)","Joh 8,1-11 (LJ C: Joh 8,12-20)",2,"Montag",5,"Fastenwoche",null,null,null,null,null,null,null,null,null,null,null,null,null,null,null,null,null,null,null,null,null,null,null,null,null,null,null,null,null,null,null,null,null,null,null,null,"Dan",13,"1-9.15-17.19-30.33-62 (Kurzfassung: Dan 3,41c-62)","Dan",13,"1-9.15-17.19-30.33-62 (Kurzfassung: Dan 3,41c-62)","Joh",8,"1-11 (LJ C: Joh 8,12-20)",null,"LJ B und C zur Auswahl: Lesung 2 Kön 4,18b-21.32-37; Evangelium Joh 11,1-45"]
[9,"Dienstag der 5. Fastenwoche"," ,"," ,"," ,"," ,"," ,"," ,"," ,"," ,"," ,",null,"Num 21,4-9","Num 21,4-9","Joh 8,21-30",3,"Dienstag",5,"Fastenwoche",null,null,null,null,null,null,null,null,null,null,null,null,null,null,null,null,null,null,null,null,null,null,null,null,null,null,null,null,null,null,null,null,null,null,null,null,"Num",21,"4-9","Num",21,"4-9","Joh",8,"21-30",null,"LJ B und C zur Auswahl: Lesung 2 Kön 4,18b-21.32-37; Evangelium Joh 11,1-45"]
[9,"Mittwoch der 5. Fastenwoche"," ,"," ,"," ,"," ,"," ,"," ,"," ,"," ,"," ,",null,"Dan 3,14-21.49.91-92.95","Dan 3,14-21.49.91-92.95","Joh 8,31-42",4,"Mittwoch",5,"Fastenwoche",null,null,null,null,null,null,null,null,null,null,null,null,null,null,null,null,null,null,null,null,null,null,null,null,null,null,null,null,null,null,null,null,null,null,null,null,"Dan",3,"14-21.49.91-92.95","Dan",3,"14-21.49.91-92.95","Joh",8,"31-42",null,"LJ B und C zur Auswahl: Lesung 2 Kön 4,18b-21.32-37; Evangelium Joh 11,1-45"]
[9,"Donnerstag der 5. Fastenwoche"," ,"," ,"," ,"," ,"," ,"," ,"," ,"," ,"," ,",null,"Gen 17,1a.3-9","Gen 17,1a.3-9","Joh 8,51-59",5,"Donnerstag",5,"Fastenwoche",null,null,null,null,null,null,null,null,null,null,null,null,null,null,null,null,null,null,null,null,null,null,null,null,null,null,null,null,null,null,null,null,null,null,null,null,"Gen",17,"1a.3-9","Gen",17,"1a.3-9","Joh",8,"51-59",null,"LJ B und C zur Auswahl: Lesung 2 Kön 4,18b-21.32-37; Evangelium Joh 11,1-45"]
[9,"Freitag der 5. Fastenwoche"," ,"," ,"," ,"," ,"," ,"," ,"," ,"," ,"," ,",null,"Jer 20,10-13","Jer 20,10-13","Joh 10,31-42",6,"Freitag",5,"Fastenwoche",null,null,null,null,null,null,null,null,null,null,null,null,null,null,null,null,null,null,null,null,null,null,null,null,null,null,null,null,null,null,null,null,null,null,null,null,"Jer",20,"10-13","Jer",20,"10-13","Joh",10,"31-42",null,"LJ B und C zur Auswahl: Lesung 2 Kön 4,18b-21.32-37; Evangelium Joh 11,1-45"]
[9,"Samstag der 5. Fastenwoche"," ,"," ,"," ,"," ,"," ,"," ,"," ,"," ,"," ,",null,"Ez 37,21-28","Ez 37,21-28","Joh 11,45-57",7,"Samstag",5,"Fastenwoche",null,null,null,null,null,null,null,null,null,null,null,null,null,null,null,null,null,null,null,null,null,null,null,null,null,null,null,null,null,null,null,null,null,null,null,null,"Ez",37,"21-28","Ez",37,"21-28","Joh",11,"45-57",null,"LJ B und C zur Auswahl: Lesung 2 Kön 4,18b-21.32-37; Evangelium Joh 11,1-45"]
[2,{"$f":"S281","v":"Palmsonntag"},"Jes 50,4-7","Phil 2,6-11","Mt 26,14 – 27,66","Jes 50,4-7","Phil 2,6-11","Mk 14,1 – 15,47","Jes 50,4-7","Phil 2,6-11","Lk 22,14 – 23,56",null," ,"," ,"," ,",1,"Sonntag",6,"Palmsonntag","Jes",50,"4-7","Phil",2,"6-11","Mt",26,"14 – 27,66","27,11-54","Palmweihe: Mt 21,1-11",null,"Jes",50,"4-7","Phil",2,"6-11","Mk",14,"1 – 15,47","15,1-39","Palmweihe: Mk 11,1-10",null,"Jes",50,"4-7","Phil",2,"6-11","Lk",22,"14 – 23,56","23,1-49","Palmweihe: Lk 19,28-40"]
[2,{"$f":"IF(Q282<>\"\",Q282&\" der \"&S282,S282)","v":"Montag der Karwoche"}," ,"," ,"," ,"," ,"," ,"," ,"," ,"," ,"," ,",null,"Jes 42,5a.1-7","Jes 42,5a.1-7","Joh 12,1-11",2,"Montag",6,"Karwoche",null,null,null,null,null,null,null,null,null,null,null,null,null,null,null,null,null,null,null,null,null,null,null,null,null,null,null,null,null,null,null,null,null,null,null,null,"Jes",42,"5a.1-7","Jes",42,"5a.1-7","Joh",12,"1-11"]
[2,{"$f":"IF(Q283<>\"\",Q283&\" der \"&S283,S283)","v":"Dienstag der Karwoche"}," ,"," ,"," ,"," ,"," ,"," ,"," ,"," ,"," ,",null,"Jes 49,1-6","Jes 49,1-6","Joh 13,21-33.36-38",3,"Dienstag",6,"Karwoche",null,null,null,null,null,null,null,null,null,null,null,null,null,null,null,null,null,null,null,null,null,null,null,null,null,null,null,null,null,null,null,null,null,null,null,null,"Jes",49,"1-6","Jes",49,"1-6","Joh",13,"21-33.36-38"]
[2,{"$f":"IF(Q284<>\"\",Q284&\" der \"&S284,S284)","v":"Mittwoch der Karwoche"}," ,"," ,"," ,"," ,"," ,"," ,"," ,"," ,"," ,",null,"Jes 50,4-9a","Jes 50,4-9a","Mt 26,14-25",4,"Mittwoch",6,"Karwoche",null,null,null,null,null,null,null,null,null,null,null,null,null,null,null,null,null,null,null,null,null,null,null,null,null,null,null,null,null,null,null,null,null,null,null,null,"Jes",50,"4-9a","Jes",50,"4-9a","Mt",26,"14-25"]
[2,{"$f":"S285","v":"Gründonnerstag (Chrisam-Messe)"}," ,"," ,"," ,"," ,"," ,"," ,"," ,"," ,"," ,",null," ,"," ,"," ,",6,"Donnerstag",6,"Gründonnerstag (Chrisam-Messe)"]
[1,{"$f":"S286","v":"Gründonnerstag (Messe vom letzten Abendmahl)"},"Ex 12,1-8.11-14","1 Kor 11,23-26","Joh 13,1-15","Ex 12,1-8.11-14","1 Kor 11,23-26","Joh 13,1-15","Ex 12,1-8.11-14","1 Kor 11,23-26","Joh 13,1-15",null," ,"," ,"," ,",6,"Donnerstag",6,"Gründonnerstag (Messe vom letzten Abendmahl)","Ex",12,"1-8.11-14","1 Kor",11,"23-26","Joh",13,"1-15",null,null,null,"Ex",12,"1-8.11-14","1 Kor",11,"23-26","Joh",13,"1-15",null,null,null,"Ex",12,"1-8.11-14","1 Kor",11,"23-26","Joh",13,"1-15"]
[1,{"$f":"S287","v":"Karfreitag"},"Jes 52,13 – 53,12","Hebr 4,14-16; 5,7-9","Joh 18,1 – 19,42","Jes 52,13 – 53,12","Hebr 4,14-16; 5,7-9","Joh 18,1 – 19,42","Jes 52,13 – 53,12","Hebr 4,14-16; 5,7-9","Joh 18,1 – 19,42",null," ,"," ,"," ,",6,"Freitag",6,"Karfreitag","Jes",52,"13 – 53,12","Hebr",4,"14-16; 5,7-9","Joh",18,"1 – 19,42",null,null,null,"Jes",52,"13 – 53,12","Hebr",4,"14-16; 5,7-9","Joh",18,"1 – 19,42",null,null,null,"Jes",52,"13 – 53,12","Hebr",4,"14-16; 5,7-9","Joh",18,"1 – 19,42"]
[1,"Karsamstag"," ,"," ,"," ,"," ,"," ,"," ,"," ,"," ,"," ,",null," ,"," ,"," ,"]
[1,{"$f":"S289","v":"Hochfest der Auferstehung des Herrn"},"Apg 10,34a.37-43","Kol 3,1-4","Joh 20,1-9","Apg 10,34a.37-43","Kol 3,1-4","Joh 20,1-9","Apg 10,34a.37-43","Kol 3,1-4","Joh 20,1-9",null," ,"," ,"," ,",1,"Sonntag",1,"Hochfest der Auferstehung des Herrn","Apg",10,"34a.37-43","Kol",3,"1-4","Joh",20,"1-9","20,1-18",null,null,"Apg",10,"34a.37-43","Kol",3,"1-4","Joh",20,"1-9","20,1-18",null,null,"Apg",10,"34a.37-43","Kol",3,"1-4","Joh",20,"1-9","20,1-18"]
[2,{"$f":"IF(Q290<>\"\",Q290&\" der \"&S290,S290)","v":"Montag der Osteroktav"}," ,"," ,"," ,"," ,"," ,"," ,"," ,"," ,"," ,",null,"Apg 2,14.22-33","Apg 2,14.22-33","Mt 28,8-15",2,"Montag",1,"Osteroktav",null,null,null,null,null,null,null,null,null,null,null,null,null,null,null,null,null,null,null,null,null,null,null,null,null,null,null,null,null,null,null,null,null,null,null,null,"Apg",2,"14.22-33","Apg",2,"14.22-33","Mt",28,"8-15"]
[2,"Dienstag der Osteroktav"," ,"," ,"," ,"," ,"," ,"," ,"," ,"," ,"," ,",null,"Apg 2,14a.36-41","Apg 2,14a.36-41","Joh 20,11-18",3,"Dienstag",1,"Osteroktav",null,null,null,null,null,null,null,null,null,null,null,null,null,null,null,null,null,null,null,null,null,null,null,null,null,null,null,null,null,null,null,null,null,null,null,null,"Apg",2,"14a.36-41","Apg",2,"14a.36-41","Joh",20,"11-18",null,"Wenn das Emmausevangelium am Feiertag Ostermontag gelesen wurde: Mt 28,8-15"]
[2,"Mittwoch der Osteroktav"," ,"," ,"," ,"," ,"," ,"," ,"," ,"," ,"," ,",null,"Apg 3,1-10","Apg 3,1-10","Lk 24,13-35",4,"Mittwoch",1,"Osteroktav",null,null,null,null,null,null,null,null,null,null,null,null,null,null,null,null,null,null,null,null,null,null,null,null,null,null,null,null,null,null,null,null,null,null,null,null,"Apg",3,"1-10","Apg",3,"1-10","Lk",24,"13-35",null,"Wenn das Emmausevangelium am Feiertag Ostermontag gelesen wurde: Joh 20,11-18"]
[2,"Donnerstag der Osteroktav"," ,"," ,"," ,"," ,"," ,"," ,"," ,"," ,"," ,",null,"Apg 3,11-26","Apg 3,11-26","Lk 24,35-48",5,"Donnerstag",1,"Osteroktav",null,null,null,null,null,null,null,null,null,null,null,null,null,null,null,null,null,null,null,null,null,null,null,null,null,null,null,null,null,null,null,null,null,null,null,null,"Apg",3,"11-26","Apg",3,"11-26","Lk",24,"35-48"]
[2,"Freitag der Osteroktav"," ,"," ,"," ,"," ,"," ,"," ,"," ,"," ,"," ,",null,"Apg 4,1-12","Apg 4,1-12","Joh 21,1-14",6,"Freitag",1,"Osteroktav",null,null,null,null,null,null,null,null,null,null,null,null,null,null,null,null,null,null,null,null,null,null,null,null,null,null,null,null,null,null,null,null,null,null,null,null,"Apg",4,"1-12","Apg",4,"1-12","Joh",21,"1-14"]
[2,"Samstag der Osteroktav"," ,"," ,"," ,"," ,"," ,"," ,"," ,"," ,"," ,",null,"Apg 4,13-21","Apg 4,13-21","Mk 16,9-15",7,"Samstag",1,"Osteroktav",null,null,null,null,null,null,null,null,null,null,null,null,null,null,null,null,null,null,null,null,null,null,null,null,null,null,null,null,null,null,null,null,null,null,null,null,"Apg",4,"13-21","Apg",4,"13-21","Mk",16,"9-15"]
[2,{"$f":"IF(R296<>\"\",R296&\". \"&S296,S296)","v":"2. Sonntag der Osterzeit"},"Apg 2,42-47","1 Petr 1,3-9","Joh 20,19-31","Apg 4,32-35","1 Joh 5,1-6","Joh 20,19-31","Apg 5,12-16","Offb 1,9-11a.12-13.17-19","Joh 20,19-31",null," ,"," ,"," ,",1,"Sonntag",2,"Sonntag der Osterzeit","Apg",2,"42-47","1 Petr",1,"3-9","Joh",20,"19-31",null,null,null,"Apg",4,"32-35","1 Joh",5,"1-6","Joh",20,"19-31",null,null,null,"Apg",5,"12-16","Offb",1,"9-11a.12-13.17-19","Joh",20,"19-31"]
[13,{"$f":"IF(R297<>\"\",Q297&\" der \"&R297&\". \"&S297,S297)","v":"Montag der 2. Osterwoche"}," ,"," ,"," ,"," ,"," ,"," ,"," ,"," ,"," ,",null,"Apg 4,23-31","Apg 4,23-31","Joh 3,1-8",2,"Montag",2,"Osterwoche",null,null,null,null,null,null,null,null,null,null,null,null,null,null,null,null,null,null,null,null,null,null,null,null,null,null,null,null,null,null,null,null,null,null,null,null,"Apg",4,"23-31","Apg",4,"23-31","Joh",3,"1-8"]
[13,"Dienstag der 2. Osterwoche"," ,"," ,"," ,"," ,"," ,"," ,"," ,"," ,"," ,",null,"Apg 4,32-37","Apg 4,32-37","Joh 3,7-15",3,"Dienstag",2,"Osterwoche",null,null,null,null,null,null,null,null,null,null,null,null,null,null,null,null,null,null,null,null,null,null,null,null,null,null,null,null,null,null,null,null,null,null,null,null,"Apg",4,"32-37","Apg",4,"32-37","Joh",3,"7-15"]
[13,"Mittwoch der 2. Osterwoche"," ,"," ,"," ,"," ,"," ,"," ,"," ,"," ,"," ,",null,"Apg 5,17-26","Apg 5,17-26","Joh 3,16-21",4,"Mittwoch",2,"Osterwoche",null,null,null,null,null,null,null,null,null,null,null,null,null,null,null,null,null,null,null,null,null,null,null,null,null,null,null,null,null,null,null,null,null,null,null,null,"Apg",5,"17-26","Apg",5,"17-26","Joh",3,"16-21"]
[13,"Donnerstag der 2. Osterwoche"," ,"," ,"," ,"," ,"," ,"," ,"," ,"," ,"," ,",null,"Apg 5,27-33","Apg 5,27-33","Joh 3,31-36",5,"Donnerstag",2,"Osterwoche",null,null,null,null,null,null,null,null,null,null,null,null,null,null,null,null,null,null,null,null,null,null,null,null,null,null,null,null,null,null,null,null,null,null,null,null,"Apg",5,"27-33","Apg",5,"27-33","Joh",3,"31-36"]
[13,"Freitag der 2. Osterwoche"," ,"," ,"," ,"," ,"," ,"," ,"," ,"," ,"," ,",null,"Apg 5,34-42","Apg 5,34-42","Joh 6,1-15",6,"Freitag",2,"Osterwoche",null,null,null,null,null,null,null,null,null,null,null,null,null,null,null,null,null,null,null,null,null,null,null,null,null,null,null,null,null,null,null,null,null,null,null,null,"Apg",5,"34-42","Apg",5,"34-42","Joh",6,"1-15"]
[13,"Samstag der 2. Osterwoche"," ,"," ,"," ,"," ,"," ,"," ,"," ,"," ,"," ,",null,"Apg 6,1-7","Apg 6,1-7","Joh 6,16-21",7,"Samstag",2,"Osterwoche",null,null,null,null,null,null,null,null,null,null,null,null,null,null,null,null,null,null,null,null,null,null,null,null,null,null,null,null,null,null,null,null,null,null,null,null,"Apg",6,"1-7","Apg",6,"1-7","Joh",6,"16-21"]
[2,{"$f":"IF(R303<>\"\",R303&\". \"&S303,S303)","v":"3. Sonntag der Osterzeit"},"Apg 2,14.22b-33","1 Petr 1,17-21","Lk 24,13-35","Apg 3,12a.13-15.17-19","1 Joh 2,1-5a","Lk 24,35-48","Apg 5,27-32.40b-41","Offb 5,11-14","Joh 21,1-19",null," ,"," ,"," ,",1,"Sonntag",3,"Sonntag der Osterzeit","Apg",2,"14.22b-33","1 Petr",1,"17-21","Lk",24,"13-35","Joh 21,1-14",null,null,"Apg",3,"12a.13-15.17-19","1 Joh",2,"1-5a","Lk",24,"35-48",null,null,null,"Apg",5,"27-32.40b-41","Offb",5,"11-14","Joh",21,"1-19","21,1-14"]
[13,{"$f":"IF(R304<>\"\",Q304&\" der \"&R304&\". \"&S304,S304)","v":"Montag der 3. Osterwoche"}," ,"," ,"," ,"," ,"," ,"," ,"," ,"," ,"," ,",null,"Apg 6,8-15","Apg 6,8-15","Joh 6,22-29",2,"Montag",3,"Osterwoche",null,null,null,null,null,null,null,null,null,null,null,null,null,null,null,null,null,null,null,null,null,null,null,null,null,null,null,null,null,null,null,null,null,null,null,null,"Apg",6,"8-15","Apg",6,"8-15","Joh",6,"22-29"]
[13,"Dienstag der 3. Osterwoche"," ,"," ,"," ,"," ,"," ,"," ,"," ,"," ,"," ,",null,"Apg 7,51 – 8,1a","Apg 7,51 – 8,1a","Joh 6,30-35",3,"Dienstag",3,"Osterwoche",null,null,null,null,null,null,null,null,null,null,null,null,null,null,null,null,null,null,null,null,null,null,null,null,null,null,null,null,null,null,null,null,null,null,null,null,"Apg",7,"51 – 8,1a","Apg",7,"51 – 8,1a","Joh",6,"30-35"]
[13,"Mittwoch der 3. Osterwoche"," ,"," ,"," ,"," ,"," ,"," ,"," ,"," ,"," ,",null,"Apg 8,1b-8","Apg 8,1b-8","Joh 6,35-40",4,"Mittwoch",3,"Osterwoche",null,null,null,null,null,null,null,null,null,null,null,null,null,null,null,null,null,null,null,null,null,null,null,null,null,null,null,null,null,null,null,null,null,null,null,null,"Apg",8,"1b-8","Apg",8,"1b-8","Joh",6,"35-40"]
[13,"Donnerstag der 3. Osterwoche"," ,"," ,"," ,"," ,"," ,"," ,"," ,"," ,"," ,",null,"Apg 8,26-40","Apg 8,26-40","Joh 6,44-51",5,"Donnerstag",3,"Osterwoche",null,null,null,null,null,null,null,null,null,null,null,null,null,null,null,null,null,null,null,null,null,null,null,null,null,null,null,null,null,null,null,null,null,null,null,null,"Apg",8,"26-40","Apg",8,"26-40","Joh",6,"44-51"]
[13,"Freitag der 3. Osterwoche"," ,"," ,"," ,"," ,"," ,"," ,"," ,"," ,"," ,",null,"Apg 9,1-20","Apg 9,1-20","Joh 6,52-59",6,"Freitag",3,"Osterwoche",null,null,null,null,null,null,null,null,null,null,null,null,null,null,null,null,null,null,null,null,null,null,null,null,null,null,null,null,null,null,null,null,null,null,null,null,"Apg",9,"1-20","Apg",9,"1-20","Joh",6,"52-59"]
[13,"Samstag der 3. Osterwoche"," ,"," ,"," ,"," ,"," ,"," ,"," ,"," ,"," ,",null,"Apg 9,31-42","Apg 9,31-42","Joh 6,60-69",7,"Samstag",3,"Osterwoche",null,null,null,null,null,null,null,null,null,null,null,null,null,null,null,null,null,null,null,null,null,null,null,null,null,null,null,null,null,null,null,null,null,null,null,null,"Apg",9,"31-42","Apg",9,"31-42","Joh",6,"60-69"]
[2,{"$f":"IF(R310<>\"\",R310&\". \"&S310,S310)","v":"4. Sonntag der Osterzeit"},"Apg 2,14a.36-41","1 Petr 2,20b-25","Joh 10,1-10","Apg 4,8-12","1 Joh 3,1-2","Joh 10,11-18","Apg 13,14.43b-52","Offb 7,9.14b-17","Joh 10,27-30",null," ,"," ,"," ,",1,"Sonntag",4,"Sonntag der Osterzeit","Apg",2,"14a.36-41","1 Petr",2,"20b-25","Joh",10,"1-10",null,null,null,"Apg",4,"8-12","1 Joh",3,"1-2","Joh",10,"11-18",null,null,null,"Apg",13,"14.43b-52","Offb",7,"9.14b-17","Joh",10,"27-30"]
[13,{"$f":"IF(R311<>\"\",Q311&\" der \"&R311&\". \"&S311,S311)","v":"Montag der 4. Osterwoche"}," ,"," ,"," ,"," ,"," ,"," ,"," ,"," ,"," ,",null,"Apg 11,1-18","Apg 11,1-18","Joh 10,1-10",2,"Montag",4,"Osterwoche",null,null,null,null,null,null,null,null,null,null,null,null,null,null,null,null,null,null,null,null,null,null,null,null,null,null,null,null,null,null,null,null,null,null,null,null,"Apg",11,"1-18","Apg",11,"1-18","Joh",10,"1-10"]
[13,"Dienstag der 4. Osterwoche"," ,"," ,"," ,"," ,"," ,"," ,"," ,"," ,"," ,",null,"Apg 11,19-26","Apg 11,19-26","Joh 10,22-30",3,"Dienstag",4,"Osterwoche",null,null,null,null,null,null,null,null,null,null,null,null,null,null,null,null,null,null,null,null,null,null,null,null,null,null,null,null,null,null,null,null,null,null,null,null,"Apg",11,"19-26","Apg",11,"19-26","Joh",10,"22-30"]
[13,"Mittwoch der 4. Osterwoche"," ,"," ,"," ,"," ,"," ,"," ,"," ,"," ,"," ,",null,"Apg 12,24 – 13,5","Apg 12,24 – 13,5","Joh 12,44-50",4,"Mittwoch",4,"Osterwoche",null,null,null,null,null,null,null,null,null,null,null,null,null,null,null,null,null,null,null,null,null,null,null,null,null,null,null,null,null,null,null,null,null,null,null,null,"Apg",12,"24 – 13,5","Apg",12,"24 – 13,5","Joh",12,"44-50"]
[13,"Donnerstag der 4. Osterwoche"," ,"," ,"," ,"," ,"," ,"," ,"," ,"," ,"," ,",null,"Apg 13,13-25","Apg 13,13-25","Joh 13,16-20",5,"Donnerstag",4,"Osterwoche",null,null,null,null,null,null,null,null,null,null,null,null,null,null,null,null,null,null,null,null,null,null,null,null,null,null,null,null,null,null,null,null,null,null,null,null,"Apg",13,"13-25","Apg",13,"13-25","Joh",13,"16-20"]
[13,"Freitag der 4. Osterwoche"," ,"," ,"," ,"," ,"," ,"," ,"," ,"," ,"," ,",null,"Apg 13,26-33","Apg 13,26-33","Joh 14,1-6",6,"Freitag",4,"Osterwoche",null,null,null,null,null,null,null,null,null,null,null,null,null,null,null,null,null,null,null,null,null,null,null,null,null,null,null,null,null,null,null,null,null,null,null,null,"Apg",13,"26-33","Apg",13,"26-33","Joh",14,"1-6"]
[13,"Samstag der 4. Osterwoche"," ,"," ,"," ,"," ,"," ,"," ,"," ,"," ,"," ,",null,"Apg 13,44-52","Apg 13,44-52","Joh 14,7-14",7,"Samstag",4,"Osterwoche",null,null,null,null,null,null,null,null,null,null,null,null,null,null,null,null,null,null,null,null,null,null,null,null,null,null,null,null,null,null,null,null,null,null,null,null,"Apg",13,"44-52","Apg",13,"44-52","Joh",14,"7-14"]
[2,{"$f":"IF(R317<>\"\",R317&\". \"&S317,S317)","v":"5. Sonntag der Osterzeit"},"Apg 6,1-7","1 Petr 2,4-9","Joh 14,1-12","Apg 9,26-31","1 Joh 3,18-24","Joh 15,1-8","Apg 14,21b-27","Offb 21,1-5a","Joh 13,31-33a.34-35",null," ,"," ,"," ,",1,"Sonntag",5,"Sonntag der Osterzeit","Apg",6,"1-7","1 Petr",2,"4-9","Joh",14,"1-12",null,null,null,"Apg",9,"26-31","1 Joh",3,"18-24","Joh",15,"1-8",null,null,null,"Apg",14,"21b-27","Offb",21,"1-5a","Joh",13,"31-33a.34-35"]
[13,{"$f":"IF(R318<>\"\",Q318&\" der \"&R318&\". \"&S318,S318)","v":"Montag der 5. Osterwoche"}," ,"," ,"," ,"," ,"," ,"," ,"," ,"," ,"," ,",null,"Apg 14,5-18","Apg 14,5-18","Joh 14,21-26",2,"Montag",5,"Osterwoche",null,null,null,null,null,null,null,null,null,null,null,null,null,null,null,null,null,null,null,null,null,null,null,null,null,null,null,null,null,null,null,null,null,null,null,null,"Apg",14,"5-18","Apg",14,"5-18","Joh",14,"21-26"]
[13,"Dienstag der 5. Osterwoche"," ,"," ,"," ,"," ,"," ,"," ,"," ,"," ,"," ,",null,"Apg 14,19-28","Apg 14,19-28","Joh 14,27-31a",3,"Dienstag",5,"Osterwoche",null,null,null,null,null,null,null,null,null,null,null,null,null,null,null,null,null,null,null,null,null,null,null,null,null,null,null,null,null,null,null,null,null,null,null,null,"Apg",14,"19-28","Apg",14,"19-28","Joh",14,"27-31a"]
[13,"Mittwoch der 5. Osterwoche"," ,"," ,"," ,"," ,"," ,"," ,"," ,"," ,"," ,",null,"Apg 15,1-6","Apg 15,1-6","Joh 15,1-8",4,"Mittwoch",5,"Osterwoche",null,null,null,null,null,null,null,null,null,null,null,null,null,null,null,null,null,null,null,null,null,null,null,null,null,null,null,null,null,null,null,null,null,null,null,null,"Apg",15,"1-6","Apg",15,"1-6","Joh",15,"1-8"]
[13,"Donnerstag der 5. Osterwoche"," ,"," ,"," ,"," ,"," ,"," ,"," ,"," ,"," ,",null,"Apg 15,7-21","Apg 15,7-21","Joh 15,9-11",5,"Donnerstag",5,"Osterwoche",null,null,null,null,null,null,null,null,null,null,null,null,null,null,null,null,null,null,null,null,null,null,null,null,null,null,null,null,null,null,null,null,null,null,null,null,"Apg",15,"7-21","Apg",15,"7-21","Joh",15,"9-11"]
[13,"Freitag der 5. Osterwoche"," ,"," ,"," ,"," ,"," ,"," ,"," ,"," ,"," ,",null,"Apg 15,22-31","Apg 15,22-31","Joh 15,12-17",6,"Freitag",5,"Osterwoche",null,null,null,null,null,null,null,null,null,null,null,null,null,null,null,null,null,null,null,null,null,null,null,null,null,null,null,null,null,null,null,null,null,null,null,null,"Apg",15,"22-31","Apg",15,"22-31","Joh",15,"12-17"]
[13,"Samstag der 5. Osterwoche",{"$f":"T323&\" \"&U323&\",\"&V323","v":" ,"},{"$f":"W323&\" \"&X323&\",\"&Y323","v":" ,"},{"$f":"Z323&\" \"&AA323&\",\"&AB323","v":" ,"},{"$f":"AF323&\" \"&AG323&\",\"&AH323","v":" ,"},{"$f":"AI323&\" \"&AJ323&\",\"&AK323","v":" ,"},{"$f":"AL323&\" \"&AM323&\",\"&AN323","v":" ,"},{"$f":"AR323&\" \"&AS323&\",\"&AT323","v":" ,"},{"$f":"AU323&\" \"&AV323&\",\"&AW323","v":" ,"},{"$f":"AX323&\" \"&AY323&\",\"&AZ323","v":" ,"},null,{"$f":"BD323&\" \"&BE323&\",\"&BF323","v":"Apg 16,1-10"},{"$f":"BG323&\" \"&BH323&\",\"&BI323","v":"Apg 16,1-10"},{"$f":"BJ323&\" \"&BK323&\",\"&BL323","v":"Joh 15,18-21"},7,"Samstag",5,"Osterwoche",null,null,null,null,null,null,null,null,null,null,null,null,null,null,null,null,null,null,null,null,null,null,null,null,null,null,null,null,null,null,null,null,null,null,null,null,"Apg",16,"1-10","Apg",16,"1-10","Joh",15,"18-21"]
[2,{"$f":"IF(R324<>\"\",R324&\". \"&S324,S324)","v":"6. Sonntag der Osterzeit"},"Apg 8,5-8.14-17","1 Petr 3,15-18","Joh 14,15-21","Apg 10,25-26.34-35.44-48","1 Joh 4,7-10","Joh 15,9-17","Apg 15,1-2.22-29","Offb 21,10-14.22-23","Joh 14,23-29",null," ,"," ,"," ,",1,"Sonntag",6,"Sonntag der Osterzeit","Apg",8,"5-8.14-17","1 Petr",3,"15-18","Joh",14,"15-21",null,null,null,"Apg",10,"25-26.34-35.44-48","1 Joh",4,"7-10","Joh",15,"9-17",null,null,null,"Apg",15,"1-2.22-29","Offb",21,"10-14.22-23","Joh",14,"23-29"]
[13,{"$f":"IF(R325<>\"\",Q325&\" der \"&R325&\". \"&S325,S325)","v":"Montag der 6. Osterwoche"}," ,"," ,"," ,"," ,"," ,"," ,"," ,"," ,"," ,",null,"Apg 16,11-15","Apg 16,11-15","Joh 15,26 – 16,4a",2,"Montag",6,"Osterwoche",null,null,null,null,null,null,null,null,null,null,null,null,null,null,null,null,null,null,null,null,null,null,null,null,null,null,null,null,null,null,null,null,null,null,null,null,"Apg",16,"11-15","Apg",16,"11-15","Joh",15,"26 – 16,4a"]
[13,{"$f":"IF(R326<>\"\",Q326&\" der \"&R326&\". \"&S326,S326)","v":"Dienstag der 6. Osterwoche"}," ,"," ,"," ,"," ,"," ,"," ,"," ,"," ,"," ,",null,"Apg 16,22-34","Apg 16,22-34","Joh 16,5-11",3,"Dienstag",6,"Osterwoche",null,null,null,null,null,null,null,null,null,null,null,null,null,null,null,null,null,null,null,null,null,null,null,null,null,null,null,null,null,null,null,null,null,null,null,null,"Apg",16,"22-34","Apg",16,"22-34","Joh",16,"5-11"]
[13,{"$f":"IF(R327<>\"\",Q327&\" der \"&R327&\". \"&S327,S327)","v":"Mittwoch der 6. Osterwoche"}," ,"," ,"," ,"," ,"," ,"," ,"," ,"," ,"," ,",null,"Apg 17,15.22 – 18,1","Apg 17,15.22 – 18,1","Joh 16,12-15",4,"Mittwoch",6,"Osterwoche",null,null,null,null,null,null,null,null,null,null,null,null,null,null,null,null,null,null,null,null,null,null,null,null,null,null,null,null,null,null,null,null,null,null,null,null,"Apg",17,"15.22 – 18,1","Apg",17,"15.22 – 18,1","Joh",16,"12-15"]
[13,{"$f":"IF(R328<>\"\",Q328&\" der \"&R328&\". \"&S328,S328)","v":"Donnerstag der 6. Osterwoche"}," ,"," ,"," ,"," ,"," ,"," ,"," ,"," ,"," ,",null,"Apg 18,1-8","Apg 18,1-8","Joh 16,16-20",5,"Donnerstag",6,"Osterwoche",null,null,null,null,null,null,null,null,null,null,null,null,null,null,null,null,null,null,null,null,null,null,null,null,null,null,null,null,null,null,null,null,null,null,null,null,"Apg",18,"1-8","Apg",18,"1-8","Joh",16,"16-20"]
[3,{"$f":"S329","v":"Christi Himmelfahrt"},"Apg 1,1-11","Eph 1,17-23","Mt 28,16-20","Apg 1,1-11","Eph 4,1-13","Mk 16,15-20","Apg 1,1-11","Hebr 9,24-28; 10,19-23","Lk 24,46-53",null," ,"," ,"," ,",5,"Donnerstag",6,"Christi Himmelfahrt","Apg",1,"1-11","Eph",1,"17-23","Mt",28,"16-20",null,null,null,"Apg",1,"1-11","Eph",4,"1-13","Mk",16,"15-20",null,null,null,"Apg",1,"1-11","Hebr",9,"24-28; 10,19-23","Lk",24,"46-53"]
[13,{"$f":"IF(R330<>\"\",Q330&\" der \"&R330&\". \"&S330,S330)","v":"Freitag der 6. Osterwoche"}," ,"," ,"," ,"," ,"," ,"," ,"," ,"," ,"," ,",null,"Apg 18,9-18","Apg 18,9-18","Joh 16,20-23a",6,"Freitag",6,"Osterwoche",null,null,null,null,null,null,null,null,null,null,null,null,null,null,null,null,null,null,null,null,null,null,null,null,null,null,null,null,null,null,null,null,null,null,null,null,"Apg",18,"9-18","Apg",18,"9-18","Joh",16,"20-23a"]
[13,{"$f":"IF(R331<>\"\",Q331&\" der \"&R331&\". \"&S331,S331)","v":"Samstag der 6. Osterwoche"}," ,"," ,"," ,"," ,"," ,"," ,"," ,"," ,"," ,",null,"Apg 18,23-28","Apg 18,23-28","Joh 16,23b-28",7,"Samstag",6,"Osterwoche",null,null,null,null,null,null,null,null,null,null,null,null,null,null,null,null,null,null,null,null,null,null,null,null,null,null,null,null,null,null,null,null,null,null,null,null,"Apg",18,"23-28","Apg",18,"23-28","Joh",16,"23b-28"]
[2,{"$f":"IF(R332<>\"\",R332&\". \"&S332,S332)","v":"7. Sonntag der Osterzeit"},"Apg 1,12-14","1 Petr 4,13-16","Joh 17,1-11a","Apg 1,15-17.20a.c-26","1 Joh 4,11-16","Joh 17,6a.11b-19","Apg 7,55-60","Offb 22,12-14.16-17.20","Joh 17,20-26",null," ,"," ,"," ,",1,"Sonntag",7,"Sonntag der Osterzeit","Apg",1,"12-14","1 Petr",4,"13-16","Joh",17,"1-11a",null,null,null,"Apg",1,"15-17.20a.c-26","1 Joh",4,"11-16","Joh",17,"6a.11b-19",null,null,null,"Apg",7,"55-60","Offb",22,"12-14.16-17.20","Joh",17,"20-26"]
[13,{"$f":"IF(R333<>\"\",Q333&\" der \"&R333&\". \"&S333,S333)","v":"Montag der 7. Osterwoche"}," ,"," ,"," ,"," ,"," ,"," ,"," ,"," ,"," ,",null,"Apg 19,1-8","Apg 19,1-8","Joh 16,29-33",2,"Montag",7,"Osterwoche",null,null,null,null,null,null,null,null,null,null,null,null,null,null,null,null,null,null,null,null,null,null,null,null,null,null,null,null,null,null,null,null,null,null,null,null,"Apg",19,"1-8","Apg",19,"1-8","Joh",16,"29-33"]
[13,"Dienstag der 7. Osterwoche"," ,"," ,"," ,"," ,"," ,"," ,"," ,"," ,"," ,",null,"Apg 20,17-27","Apg 20,17-27","Joh 17,1-11a",3,"Dienstag",7,"Osterwoche",null,null,null,null,null,null,null,null,null,null,null,null,null,null,null,null,null,null,null,null,null,null,null,null,null,null,null,null,null,null,null,null,null,null,null,null,"Apg",20,"17-27","Apg",20,"17-27","Joh",17,"1-11a"]
[13,"Mittwoch der 7. Osterwoche"," ,"," ,"," ,"," ,"," ,"," ,"," ,"," ,"," ,",null,"Apg 20,28-38","Apg 20,28-38","Joh 17,6a.11b-19",4,"Mittwoch",7,"Osterwoche",null,null,null,null,null,null,null,null,null,null,null,null,null,null,null,null,null,null,null,null,null,null,null,null,null,null,null,null,null,null,null,null,null,null,null,null,"Apg",20,"28-38","Apg",20,"28-38","Joh",17,"6a.11b-19"]
[13,"Donnerstag der 7. Osterwoche"," ,"," ,"," ,"," ,"," ,"," ,"," ,"," ,"," ,",null,"Apg 22,30; 23,6-11","Apg 22,30; 23,6-11","Joh 17,20-26",5,"Donnerstag",7,"Osterwoche",null,null,null,null,null,null,null,null,null,null,null,null,null,null,null,null,null,null,null,null,null,null,null,null,null,null,null,null,null,null,null,null,null,null,null,null,"Apg",22,"30; 23,6-11","Apg",22,"30; 23,6-11","Joh",17,"20-26"]
[13,"Freitag der 7. Osterwoche"," ,"," ,"," ,"," ,"," ,"," ,"," ,"," ,"," ,",null,"Apg 25,13-21","Apg 25,13-21","Joh 21,1.15-19",6,"Freitag",7,"Osterwoche",null,null,null,null,null,null,null,null,null,null,null,null,null,null,null,null,null,null,null,null,null,null,null,null,null,null,null,null,null,null,null,null,null,null,null,null,"Apg",25,"13-21","Apg",25,"13-21","Joh",21,"1.15-19"]
[13,"Samstag der 7. Osterwoche"," ,"," ,"," ,"," ,"," ,"," ,"," ,"," ,"," ,",null,"Apg 28,16-20.30-31","Apg 28,16-20.30-31","Joh 21,20-25",7,"Samstag",7,"Osterwoche",null,null,null,null,null,null,null,null,null,null,null,null,null,null,null,null,null,null,null,null,null,null,null,null,null,null,null,null,null,null,null,null,null,null,null,null,"Apg",28,"16-20.30-31","Apg",28,"16-20.30-31","Joh",21,"20-25"]
[2,{"$f":"IF(R339<>\"\",S339,S339)","v":"Pfingsten"},"Apg 2,1-11","1 Kor 12,3b-7.12-13","Joh 20,19-23","Apg 2,1-11","Gal 5,16-25","Joh 15,26-27; 16,12-15","Apg 2,1-11","Röm 8,8-17","Joh 14,15-16.23b-26",null," ,"," ,"," ,",1,"Sonntag",8,"Pfingsten","Apg",2,"1-11","1 Kor",12,"3b-7.12-13","Joh",20,"19-23",null,null,null,"Apg",2,"1-11","Gal",5,"16-25","Joh",15,"26-27; 16,12-15",null,null,null,"Apg",2,"1-11","Röm",8,"8-17","Joh",14,"15-16.23b-26"]
[3,{"$f":"IF(R340<>\"\",R340&\". \"&S340,S340)","v":"Dreifaltigkeitssonntag"},"Ex 34,4b.5-6.8-9","2 Kor 13,11-13","Joh 3,16-18","Dtn 4,32-34.39-40","Röm 8,14-17","Mt 28,16-20","Spr 8,22-31","Röm 5,1-5","Joh 16,12-15",null," ,"," ,"," ,",1,"Sonntag",null,"Dreifaltigkeitssonntag","Ex",34,"4b.5-6.8-9","2 Kor",13,"11-13","Joh",3,"16-18",null,null,null,"Dtn",4,"32-34.39-40","Röm",8,"14-17","Mt",28,"16-20",null,null,null,"Spr",8,"22-31","Röm",5,"1-5","Joh",16,"12-15"]
[3,{"$f":"IF(R341<>\"\",R341&\". \"&S341,S341)","v":"Fronleichnam"},"Dtn 8,2-3.14-16a","1 Kor 10,16-17","Joh 6,51-58","Ex 24,3-8","Hebr 9,11-15","Mk 14,12-16.22-26","Gen 14,18-20","1 Kor 11,23-26","Lk 9,11b-17",null," ,"," ,"," ,",5,"Donnerstag",null,"Fronleichnam","Dtn",8,"2-3.14-16a","1 Kor",10,"16-17","Joh",6,"51-58",null,null,null,"Ex",24,"3-8","Hebr",9,"11-15","Mk",14,"12-16.22-26",null,null,null,"Gen",14,"18-20","1 Kor",11,"23-26","Lk",9,"11b-17"]
[3,{"$f":"IF(R342<>\"\",R342&\". \"&S342,S342)","v":"Heiligstes Herz Jesu"},"Dtn 7,6-11","1 Joh 4,7-16","Mt 11,25-30","Hos 11,1.3-4.8a.c-9","Eph 3,8-12.14-19","Joh 19,31-37","Ez 34,11-16","Röm 5,5b-11","Lk 15,3-7",null," ,"," ,"," ,",6,"Freitag",null,"Heiligstes Herz Jesu","Dtn",7,"6-11","1 Joh",4,"7-16","Mt",11,"25-30",null,null,null,"Hos",11,"1.3-4.8a.c-9","Eph",3,"8-12.14-19","Joh",19,"31-37",null,null,null,"Ez",34,"11-16","Röm",5,"5b-11","Lk",15,"3-7"]
[null,null," ,"," ,"," ,"," ,"," ,"," ,"," ,"," ,"," ,",null," ,"," ,"," ,"]
[2,{"$f":"IF(R344<>\"\",R344&\". \"&S344,S344)","v":"1. Adventssonntag"},"Jes 2,1-5","Röm 13,11-14a","Mt 24,37-44","Jes 63,16b-17.19b; 64,3-7","1 Kor 1,3-9","Mk 13,33-37","Jer 33,14-16","1 Thess 3,12 – 4,2","Lk 21,25-28.34-36",null," ,"," ,"," ,",1,"Sonntag",1,"Adventssonntag","Jes",2,"1-5","Röm",13,"11-14a","Mt",24,"37-44","24,29-44",null,null,"Jes",63,"16b-17.19b; 64,3-7","1 Kor",1,"3-9","Mk",13,"33-37","13,24-37",null,null,"Jer",33,"14-16","1 Thess",3,"12 – 4,2","Lk",21,"25-28.34-36"]
[13,{"$f":"IF(R345<>\"\",Q345&\" der \"&R345&\". \"&S345,S345)","v":"Montag der 1. Adventswoche"}," ,"," ,"," ,"," ,"," ,"," ,"," ,"," ,"," ,",null,"Jes 2,1-5","Jes 2,1-5","Mt 8,5-11",2,"Montag",1,"Adventswoche",null,null,null,null,null,null,null,null,null,null,null,null,null,null,null,null,null,null,null,null,null,null,null,null,null,null,null,null,null,null,null,null,null,null,null,null,"Jes",2,"1-5","Jes",2,"1-5","Mt","8","5-11",null,"LJ A:  Lesung Jes 4,2-6"]
[13,"Dienstag der 1. Adventswoche"," ,"," ,"," ,"," ,"," ,"," ,"," ,"," ,"," ,",null,"Jes 11,1-10","Jes 11,1-10","Lk 10,21-24",3,"Dienstag",1,"Adventswoche",null,null,null,null,null,null,null,null,null,null,null,null,null,null,null,null,null,null,null,null,null,null,null,null,null,null,null,null,null,null,null,null,null,null,null,null,"Jes",11,"1-10","Jes",11,"1-10","Lk","10","21-24"]
[13,"Mittwoch der 1. Adventswoche"," ,"," ,"," ,"," ,"," ,"," ,"," ,"," ,"," ,",null,"Jes 25,6-10a","Jes 25,6-10a","Mt 15,29-37",4,"Mittwoch",1,"Adventswoche",null,null,null,null,null,null,null,null,null,null,null,null,null,null,null,null,null,null,null,null,null,null,null,null,null,null,null,null,null,null,null,null,null,null,null,null,"Jes",25,"6-10a","Jes",25,"6-10a","Mt","15","29-37"]
[13,"Donnerstag der 1. Adventswoche"," ,"," ,"," ,"," ,"," ,"," ,"," ,"," ,"," ,",null,"Jes 26,1-6","Jes 26,1-6","Mt 7,21.24-27",5,"Donnerstag",1,"Adventswoche",null,null,null,null,null,null,null,null,null,null,null,null,null,null,null,null,null,null,null,null,null,null,null,null,null,null,null,null,null,null,null,null,null,null,null,null,"Jes",26,"1-6","Jes",26,"1-6","Mt","7","21.24-27"]
[13,"Freitag der 1. Adventswoche"," ,"," ,"," ,"," ,"," ,"," ,"," ,"," ,"," ,",null,"Jes 29,17-24","Jes 29,17-24","Mt 9,27-31",6,"Freitag",1,"Adventswoche",null,null,null,null,null,null,null,null,null,null,null,null,null,null,null,null,null,null,null,null,null,null,null,null,null,null,null,null,null,null,null,null,null,null,null,null,"Jes",29,"17-24","Jes",29,"17-24","Mt","9","27-31"]
[13,"Samstag der 1. Adventswoche"," ,"," ,"," ,"," ,"," ,"," ,"," ,"," ,"," ,",null,"Jes 30,19-21.23-26","Jes 30,19-21.23-26","Mt 9,35 – 10,1.6-8",7,"Samstag",1,"Adventswoche",null,null,null,null,null,null,null,null,null,null,null,null,null,null,null,null,null,null,null,null,null,null,null,null,null,null,null,null,null,null,null,null,null,null,null,null,"Jes",30,"19-21.23-26","Jes",30,"19-21.23-26","Mt","9","35 – 10,1.6-8"]
[2,{"$f":"IF(R351<>\"\",R351&\". \"&S351,S351)","v":"2. Adventssonntag"},"Jes 11,1-10","Röm 15,4-9","Mt 3,1-12","Jes 40,1-5.9-11","2 Petr 3,8-14","Mk 1,1-8","Bar 5,1-9","Phil 1,4-6.8-11","Lk 3,1-6",null," ,"," ,"," ,",1,"Sonntag",2,"Adventssonntag","Jes",11,"1-10","Röm",15,"4-9","Mt",3,"1-12",null,null,null,"Jes",40,"1-5.9-11","2 Petr",3,"8-14","Mk",1,"1-8",null,null,null,"Bar",5,"1-9","Phil",1,"4-6.8-11","Lk",3,"1-6"]
[13,{"$f":"IF(R352<>\"\",Q352&\" der \"&R352&\". \"&S352,S352)","v":"Montag der 2. Adventswoche"}," ,"," ,"," ,"," ,"," ,"," ,"," ,"," ,"," ,",null,"Jes 35,1-10","Jes 35,1-10","Lk 5,17-26",2,"Montag",2,"Adventswoche",null,null,null,null,null,null,null,null,null,null,null,null,null,null,null,null,null,null,null,null,null,null,null,null,null,null,null,null,null,null,null,null,null,null,null,null,"Jes",35,"1-10","Jes",35,"1-10","Lk","5","17-26"]
[13,"Dienstag der 2. Adventswoche"," ,"," ,"," ,"," ,"," ,"," ,"," ,"," ,"," ,",null,"Jes 40,1-11","Jes 40,1-11","Mt 18,12-14",3,"Dienstag",2,"Adventswoche",null,null,null,null,null,null,null,null,null,null,null,null,null,null,null,null,null,null,null,null,null,null,null,null,null,null,null,null,null,null,null,null,null,null,null,null,"Jes",40,"1-11","Jes",40,"1-11","Mt","18","12-14"]
[13,"Mittwoch der 2. Adventswoche"," ,"," ,"," ,"," ,"," ,"," ,"," ,"," ,"," ,",null,"Jes 40,25-31","Jes 40,25-31","Mt 11,28-30",4,"Mittwoch",2,"Adventswoche",null,null,null,null,null,null,null,null,null,null,null,null,null,null,null,null,null,null,null,null,null,null,null,null,null,null,null,null,null,null,null,null,null,null,null,null,"Jes",40,"25-31","Jes",40,"25-31","Mt","11","28-30"]
[13,"Donnerstag der 2. Adventswoche"," ,"," ,"," ,"," ,"," ,"," ,"," ,"," ,"," ,",null,"Jes 41,13-20","Jes 41,13-20","Mt 11,7b.11-15",5,"Donnerstag",2,"Adventswoche",null,null,null,null,null,null,null,null,null,null,null,null,null,null,null,null,null,null,null,null,null,null,null,null,null,null,null,null,null,null,null,null,null,null,null,null,"Jes",41,"13-20","Jes",41,"13-20","Mt","11","7b.11-15"]
[13,"Freitag der 2. Adventswoche"," ,"," ,"," ,"," ,"," ,"," ,"," ,"," ,"," ,",null,"Jes 48,17-19","Jes 48,17-19","Mt 11,16-19",6,"Freitag",2,"Adventswoche",null,null,null,null,null,null,null,null,null,null,null,null,null,null,null,null,null,null,null,null,null,null,null,null,null,null,null,null,null,null,null,null,null,null,null,null,"Jes",48,"17-19","Jes",48,"17-19","Mt","11","16-19"]
[13,"Samstag der 2. Adventswoche"," ,"," ,"," ,"," ,"," ,"," ,"," ,"," ,"," ,",null,"Sir 48,1-4.9-11","Sir 48,1-4.9-11","Mt 17,9a.10-13",7,"Samstag",2,"Adventswoche",null,null,null,null,null,null,null,null,null,null,null,null,null,null,null,null,null,null,null,null,null,null,null,null,null,null,null,null,null,null,null,null,null,null,null,null,"Sir",48,"1-4.9-11","Sir",48,"1-4.9-11","Mt","17","9a.10-13"]
[2,{"$f":"IF(R358<>\"\",R358&\". \"&S358,S358)","v":"3. Adventssonntag"},"Jes 35,1-6b.10","Jak 5,7-10","Mt 11,2-11","Jes 61,1-2a.10-11","1 Thess 5,16-24","Joh 1,6-8.19-28","Zef 3,14-17 (14-18a)","Phil 4,4-7","Lk 3,10-18",null," ,"," ,"," ,",1,"Sonntag",3,"Adventssonntag","Jes",35,"1-6b.10","Jak",5,"7-10","Mt",11,"2-11",null,null,null,"Jes",61,"1-2a.10-11","1 Thess",5,"16-24","Joh",1,"6-8.19-28",null,null,null,"Zef",3,"14-17 (14-18a)","Phil",4,"4-7","Lk",3,"10-18"]
[13,{"$f":"IF(R359<>\"\",Q359&\" der \"&R359&\". \"&S359,S359)","v":"Montag der 3. Adventswoche"}," ,"," ,"," ,"," ,"," ,"," ,"," ,"," ,"," ,",null,"Num 24,2-7.15-17a","Num 24,2-7.15-17a","Mt 21,23-27",2,"Montag",3,"Adventswoche",null,null,null,null,null,null,null,null,null,null,null,null,null,null,null,null,null,null,null,null,null,null,null,null,null,null,null,null,null,null,null,null,null,null,null,null,"Num",24,"2-7.15-17a","Num",24,"2-7.15-17a","Mt","21","23-27"]
[13,{"$f":"IF(R360<>\"\",Q360&\" der \"&R360&\". \"&S360,S360)","v":"Dienstag der 3. Adventswoche"}," ,"," ,"," ,"," ,"," ,"," ,"," ,"," ,"," ,",null,"Zef 3,1-2.9-13","Zef 3,1-2.9-13","Mt 21,28-32",3,"Dienstag",3,"Adventswoche",null,null,null,null,null,null,null,null,null,null,null,null,null,null,null,null,null,null,null,null,null,null,null,null,null,null,null,null,null,null,null,null,null,null,null,null,"Zef",3,"1-2.9-13","Zef",3,"1-2.9-13","Mt","21","28-32"]
[13,{"$f":"IF(R361<>\"\",Q361&\" der \"&R361&\". \"&S361,S361)","v":"Mittwoch der 3. Adventswoche"}," ,"," ,"," ,"," ,"," ,"," ,"," ,"," ,"," ,",null,"Jes 45,6b-8.18.21b-25","Jes 45,6b-8.18.21b-25","Lk 7,18b-23",4,"Mittwoch",3,"Adventswoche",null,null,null,null,null,null,null,null,null,null,null,null,null,null,null,null,null,null,null,null,null,null,null,null,null,null,null,null,null,null,null,null,null,null,null,null,"Jes",45,"6b-8.18.21b-25","Jes",45,"6b-8.18.21b-25","Lk","7","18b-23"]
[13,{"$f":"IF(R362<>\"\",Q362&\" der \"&R362&\". \"&S362,S362)","v":"Donnerstag der 3. Adventswoche"}," ,"," ,"," ,"," ,"," ,"," ,"," ,"," ,"," ,",null,"Jes 54,1-10","Jes 54,1-10","Lk 7,24-30",5,"Donnerstag",3,"Adventswoche",null,null,null,null,null,null,null,null,null,null,null,null,null,null,null,null,null,null,null,null,null,null,null,null,null,null,null,null,null,null,null,null,null,null,null,null,"Jes",54,"1-10","Jes",54,"1-10","Lk","7","24-30"]
[13,{"$f":"IF(R363<>\"\",Q363&\" der \"&R363&\". \"&S363,S363)","v":"Freitag der 3. Adventswoche"}," ,"," ,"," ,"," ,"," ,"," ,"," ,"," ,"," ,",null,"Jes 56,1-3a.6-8","Jes 56,1-3a.6-8","Joh 5,33-36",6,"Freitag",3,"Adventswoche",null,null,null,null,null,null,null,null,null,null,null,null,null,null,null,null,null,null,null,null,null,null,null,null,null,null,null,null,null,null,null,null,null,null,null,null,"Jes",56,"1-3a.6-8","Jes",56,"1-3a.6-8","Joh","5","33-36"]
[2,{"$f":"IF(R364<>\"\",R364&\". \"&S364,S364)","v":"4. Adventssonntag"},"Jes 7,10-14","Röm 1,1-7","Mt 1,18-24","2 Sam 7,1-5.8b-12.14a.16","Röm 16,25-27","Lk 1,26-38","Mi 5,1-4a","Hebr 10,5-10","Lk 1,39-45",null," ,"," ,"," ,",1,"Sonntag",4,"Adventssonntag","Jes",7,"10-14","Röm",1,"1-7","Mt",1,"18-24",null,null,null,"2 Sam",7,"1-5.8b-12.14a.16","Röm",16,"25-27","Lk",1,"26-38",null,null,null,"Mi",5,"1-4a","Hebr",10,"5-10","Lk",1,"39-45"]
[9,"17. Dezember"," ,"," ,"," ,"," ,"," ,"," ,"," ,"," ,"," ,",null,"Gen 49,2.8-10","Gen 49,2.8-10","Mt 1,1-17",null,null,17,"Dezember",null,null,null,null,null,null,null,null,null,null,null,null,null,null,null,null,null,null,null,null,null,null,null,null,null,null,null,null,null,null,null,null,null,null,null,null,"Gen",49,"2.8-10","Gen",49,"2.8-10","Mt","1","1-17"]
[9,"18. Dezember"," ,"," ,"," ,"," ,"," ,"," ,"," ,"," ,"," ,",null,"Jer 23,5-8","Jer 23,5-8","Mt 1,18-24",null,null,18,"Dezember",null,null,null,null,null,null,null,null,null,null,null,null,null,null,null,null,null,null,null,null,null,null,null,null,null,null,null,null,null,null,null,null,null,null,null,null,"Jer",23,"5-8","Jer",23,"5-8","Mt","1","18-24"]
[9,"19. Dezember"," ,"," ,"," ,"," ,"," ,"," ,"," ,"," ,"," ,",null,"Ri 13,2-7.24-25a","Ri 13,2-7.24-25a","Lk 1,5-25",null,null,19,"Dezember",null,null,null,null,null,null,null,null,null,null,null,null,null,null,null,null,null,null,null,null,null,null,null,null,null,null,null,null,null,null,null,null,null,null,null,null,"Ri",13,"2-7.24-25a","Ri",13,"2-7.24-25a","Lk","1","5-25"]
[9,"20. Dezember"," ,"," ,"," ,"," ,"," ,"," ,"," ,"," ,"," ,",null,"Jes 7,10-14","Jes 7,10-14","Lk 1,26-38",null,null,20,"Dezember",null,null,null,null,null,null,null,null,null,null,null,null,null,null,null,null,null,null,null,null,null,null,null,null,null,null,null,null,null,null,null,null,null,null,null,null,"Jes",7,"10-14","Jes",7,"10-14","Lk","1","26-38"]
[9,"21. Dezember"," ,"," ,"," ,"," ,"," ,"," ,"," ,"," ,"," ,",null,"Hld 2,8-14","Hld 2,8-14","Lk 1,39-45",null,null,21,"Dezember",null,null,null,null,null,null,null,null,null,null,null,null,null,null,null,null,null,null,null,null,null,null,null,null,null,null,null,null,null,null,null,null,null,null,null,null,"Hld",2,"8-14","Hld",2,"8-14","Lk","1","39-45",null,"oder: Lesung Zef 3,14-17"]
[9,"22. Dezember"," ,"," ,"," ,"," ,"," ,"," ,"," ,"," ,"," ,",null,"1 Sam 1,24-28","1 Sam 1,24-28","Lk 1,46-56",null,null,22,"Dezember",null,null,null,null,null,null,null,null,null,null,null,null,null,null,null,null,null,null,null,null,null,null,null,null,null,null,null,null,null,null,null,null,null,null,null,null,"1 Sam",1,"24-28","1 Sam",1,"24-28","Lk","1","46-56"]
[9,"23. Dezember"," ,"," ,"," ,"," ,"," ,"," ,"," ,"," ,"," ,",null,"Mal 3,1-4; 4,23-24","Mal 3,1-4; 4,23-24","Lk 1,57-66",null,null,23,"Dezember",null,null,null,null,null,null,null,null,null,null,null,null,null,null,null,null,null,null,null,null,null,null,null,null,null,null,null,null,null,null,null,null,null,null,null,null,"Mal",3,"1-4; 4,23-24","Mal",3,"1-4; 4,23-24","Lk","1","57-66"]
[9,"24. Dezember"," ,"," ,"," ,"," ,"," ,"," ,"," ,"," ,"," ,",null,"2 Sam 7,1-5.8b-12.14a.16","2 Sam 7,1-5.8b-12.14a.16","Lk 1,67-79",null,null,24,"Dezember",null,null,null,null,null,null,null,null,null,null,null,null,null,null,null,null,null,null,null,null,null,null,null,null,null,null,null,null,null,null,null,null,null,null,null,null,"2 Sam",7,"1-5.8b-12.14a.16","2 Sam",7,"1-5.8b-12.14a.16","Lk","1","67-79"]
[9,"5. Tag der Weihnachtsoktav"," ,"," ,"," ,"," ,"," ,"," ,"," ,"," ,"," ,",null,"1 Joh 2,3-11","1 Joh 2,3-11","Lk 2,22-35",null,null,5,"Tag der Weihnachtsoktav",null,null,null,null,null,null,null,null,null,null,null,null,null,null,null,null,null,null,null,null,null,null,null,null,null,null,null,null,null,null,null,null,null,null,null,null,"1 Joh",2,"3-11","1 Joh",2,"3-11","Lk","2","22-35"]
[9,"6. Tag der Weihnachtsoktav"," ,"," ,"," ,"," ,"," ,"," ,"," ,"," ,"," ,",null,"1 Joh 2,12-17","1 Joh 2,12-17","Lk 2,36-40",null,null,6,"Tag der Weihnachtsoktav",null,null,null,null,null,null,null,null,null,null,null,null,null,null,null,null,null,null,null,null,null,null,null,null,null,null,null,null,null,null,null,null,null,null,null,null,"1 Joh",2,"12-17","1 Joh",2,"12-17","Lk","2","36-40"]
[9,"7. Tag der Weihnachtsoktav"," ,"," ,"," ,"," ,"," ,"," ,"," ,"," ,"," ,",null,"1 Joh 2,18-21","1 Joh 2,18-21","Joh 1,1-18",null,null,7,"Tag der Weihnachtsoktav",null,null,null,null,null,null,null,null,null,null,null,null,null,null,null,null,null,null,null,null,null,null,null,null,null,null,null,null,null,null,null,null,null,null,null,null,"1 Joh",2,"18-21","1 Joh",2,"18-21","Joh","1","1-18"]
[3,"Fest der Heiligen Familie","Sir 3,2-6.12-14 (3-7.14-17a)","Kol 3,12-21","Mt 2,13-15.19-23","Gen 15,1-6; 21,1-3","Hebr 11,8.11-12.17-19","Lk 2,22-40","1 Sam 1,20-22.24-28","1 Joh 3,1-2.21-24","Lk 2,41-52",null," ,"," ,"," ,",1,"Sonntag",null,"Fest der Heiligen Familie","Sir",3,"2-6.12-14 (3-7.14-17a)","Kol",3,"12-21","Mt",2,"13-15.19-23",null,null,null,"Gen",15,"1-6; 21,1-3","Hebr",11,"8.11-12.17-19","Lk",2,"22-40","2,22.39-40",null,null,"1 Sam",1,"20-22.24-28","1 Joh",3,"1-2.21-24","Lk",2,"41-52"]
[13,"2. Januar"," ,"," ,"," ,"," ,"," ,"," ,"," ,"," ,"," ,",null,"1 Joh 2,22-28","1 Joh 2,22-28","Joh 1,19-28",null,null,2,"Januar",null,null,null,null,null,null,null,null,null,null,null,null,null,null,null,null,null,null,null,null,null,null,null,null,null,null,null,null,null,null,null,null,null,null,null,null,"1 Joh",2,"22-28","1 Joh",2,"22-28","Joh","1","19-28"]
[13,"3. Januar"," ,"," ,"," ,"," ,"," ,"," ,"," ,"," ,"," ,",null,"1 Joh 2,29 – 3,6","1 Joh 2,29 – 3,6","Joh 1,29-34",null,null,3,"Januar",null,null,null,null,null,null,null,null,null,null,null,null,null,null,null,null,null,null,null,null,null,null,null,null,null,null,null,null,null,null,null,null,null,null,null,null,"1 Joh",2,"29 – 3,6","1 Joh",2,"29 – 3,6","Joh","1","29-34"]
[13,"4. Januar"," ,"," ,"," ,"," ,"," ,"," ,"," ,"," ,"," ,",null,"1 Joh 3,7-10","1 Joh 3,7-10","Joh 1,35-42",null,null,4,"Januar",null,null,null,null,null,null,null,null,null,null,null,null,null,null,null,null,null,null,null,null,null,null,null,null,null,null,null,null,null,null,null,null,null,null,null,null,"1 Joh",3,"7-10","1 Joh",3,"7-10","Joh","1","35-42"]
[13,"5. Januar"," ,"," ,"," ,"," ,"," ,"," ,"," ,"," ,"," ,",null,"1 Joh 3,11-21","1 Joh 3,11-21","Joh 1,43-51",null,null,5,"Januar",null,null,null,null,null,null,null,null,null,null,null,null,null,null,null,null,null,null,null,null,null,null,null,null,null,null,null,null,null,null,null,null,null,null,null,null,"1 Joh",3,"11-21","1 Joh",3,"11-21","Joh","1","43-51"]
[13,"6. Januar"," ,"," ,"," ,"," ,"," ,"," ,"," ,"," ,"," ,",null,"1 Joh 5,5-13","1 Joh 5,5-13","Mk 1,7-11",null,null,6,"Januar",null,null,null,null,null,null,null,null,null,null,null,null,null,null,null,null,null,null,null,null,null,null,null,null,null,null,null,null,null,null,null,null,null,null,null,null,"1 Joh",5,"5-13","1 Joh",5,"5-13","Mk","1","7-11",null,"oder: Evangelium Lk 3,23-38"]
[6,"2. Sonntag nach Weihnachten","Sir 24,1-2.8-12 (1-4.12-16)","Eph 1,3-6.15-18","Joh 1,1-18","Sir 24,1-2.8-12 (1-4.12-16)","Eph 1,3-6.15-18","Joh 1,1-18","Sir 24,1-2.8-12 (1-4.12-16)","Eph 1,3-6.15-18","Joh 1,1-18",null," ,"," ,"," ,",1,"Sonntag",2,"Sonntag nach Weihnachten","Sir",24,"1-2.8-12 (1-4.12-16)","Eph",1,"3-6.15-18","Joh",1,"1-18","1,1-5.9-14",null,null,"Sir",24,"1-2.8-12 (1-4.12-16)","Eph",1,"3-6.15-18","Joh",1,"1-18","1,1-5.9-14",null,null,"Sir",24,"1-2.8-12 (1-4.12-16)","Eph",1,"3-6.15-18","Joh",1,"1-18","1,1-5.9-14"]
[13,"7. Januar"," ,"," ,"," ,"," ,"," ,"," ,"," ,"," ,"," ,",null,"1 Joh 5,14-21","1 Joh 5,14-21","Joh 2,1-11",null,null,7,"Januar",null,null,null,null,null,null,null,null,null,null,null,null,null,null,null,null,null,null,null,null,null,null,null,null,null,null,null,null,null,null,null,null,null,null,null,null,"1 Joh",5,"14-21","1 Joh",5,"14-21","Joh","2","1-11"]
[13,"7. Januar (bzw. Montag nach Erscheinung)"," ,"," ,"," ,"," ,"," ,"," ,"," ,"," ,"," ,",null,"1 Joh 3,22 – 4,6","1 Joh 3,22 – 4,6","Mt 4,12-17.23-25",null,null,7,"Januar (bzw. Montag nach Erscheinung)",null,null,null,null,null,null,null,null,null,null,null,null,null,null,null,null,null,null,null,null,null,null,null,null,null,null,null,null,null,null,null,null,null,null,null,null,"1 Joh",3,"22 – 4,6","1 Joh",3,"22 – 4,6","Mt","4","12-17.23-25"]
[13,"8. Januar (bzw. Dienstag nach Erscheinung)"," ,"," ,"," ,"," ,"," ,"," ,"," ,"," ,"," ,",null,"1 Joh 4,7-10","1 Joh 4,7-10","Mk 6,34-44",null,null,8,"Januar (bzw. Dienstag nach Erscheinung)",null,null,null,null,null,null,null,null,null,null,null,null,null,null,null,null,null,null,null,null,null,null,null,null,null,null,null,null,null,null,null,null,null,null,null,null,"1 Joh",4,"7-10","1 Joh",4,"7-10","Mk","6","34-44"]
[13,"9. Januar (bzw. Mittwoch nach Erscheinung)"," ,"," ,"," ,"," ,"," ,"," ,"," ,"," ,"," ,",null,"1 Joh 4,11-18","1 Joh 4,11-18","Mk 6,45-52",null,null,9,"Januar (bzw. Mittwoch nach Erscheinung)",null,null,null,null,null,null,null,null,null,null,null,null,null,null,null,null,null,null,null,null,null,null,null,null,null,null,null,null,null,null,null,null,null,null,null,null,"1 Joh",4,"11-18","1 Joh",4,"11-18","Mk","6","45-52"]
[13,"10. Januar (bzw. Donnerstag nach Erscheinung)"," ,"," ,"," ,"," ,"," ,"," ,"," ,"," ,"," ,",null,"1 Joh 4,19 – 5,4","1 Joh 4,19 – 5,4","Lk 4,14-22a",null,null,10,"Januar (bzw. Donnerstag nach Erscheinung)",null,null,null,null,null,null,null,null,null,null,null,null,null,null,null,null,null,null,null,null,null,null,null,null,null,null,null,null,null,null,null,null,null,null,null,null,"1 Joh",4,"19 – 5,4","1 Joh",4,"19 – 5,4","Lk","4","14-22a"]
[13,"11. Januar (bzw. Freitag nach Erscheinung)"," ,"," ,"," ,"," ,"," ,"," ,"," ,"," ,"," ,",null,"1 Joh 5,5-13","1 Joh 5,5-13","Lk 5,12-16",null,null,11,"Januar (bzw. Freitag nach Erscheinung)",null,null,null,null,null,null,null,null,null,null,null,null,null,null,null,null,null,null,null,null,null,null,null,null,null,null,null,null,null,null,null,null,null,null,null,null,"1 Joh",5,"5-13","1 Joh",5,"5-13","Lk","5","12-16"]
[13,"12. Januar (bzw. Samstag nach Erscheinung)"," ,"," ,"," ,"," ,"," ,"," ,"," ,"," ,"," ,",null,"1 Joh 5,14-21","1 Joh 5,14-21","Joh 3,22-30",null,null,12,"Januar (bzw. Samstag nach Erscheinung)",null,null,null,null,null,null,null,null,null,null,null,null,null,null,null,null,null,null,null,null,null,null,null,null,null,null,null,null,null,null,null,null,null,null,null,null,"1 Joh",5,"14-21","1 Joh",5,"14-21","Joh","3","22-30"]

{"sheet":"Vorlage Kalender","index":1,"n_rows":0,"n_cols":0,"rows_kept":0,"cut":false,"hidden":false,"merged":[]}

{"sheet":"Heiligenjahr","index":2,"n_rows":407,"n_cols":33,"rows_kept":407,"cut":false,"hidden":false,"merged":[]}
["woTag","jahr","monat","tag","epakte","litDom","romKal","rang","rangGOK","kalender","farbe","name","vorabend","woPsalt","commune","linkIN","linkLD","linkHM","linkVP","linkOL","linkCP","Lesung 1 Buch","Lesung 1 Kap","Lesung 1 Verse",null,"Lesung 2 Buch","Lesung 2 Kap","Lesung 2 Verse",null,"Evangelium Buch","Evangelium Kap","Evangelium Verse"]
[null,null,1,1,"*","A","Cal.","H",3,"GK","W","HOCHFEST DER GOTTESMUTTER MARIA",1,0,"Propr"]
[null,null,1,2,"xxix","b","iv","G",10,"GK","W","Basilius der Große und Gregor von Nazianz, Bischöfe und Kirchenlehrer",0,0,"HdK, KiL"]
[null,null,1,3,"xxviii","c","iii","g",12,"GK","W","Heiligster Name Jesu",0,0,"Propr"]
[null,null,1,4,"xxvii","d","Prid.",null,null,null,null,null,0,0]
[null,null,1,5,"xxvi","e","Non.","G",12,"RK","W","Johannes Nepomuk Neumann, Bischof, Ordensmann",0,0,"HdK"]
[null,null,1,6,"25 xxv","f","viii","H",2,"GK","W","ERSCHEINUNG DES HERRN",1,0,"Propr"]
[null,null,1,7,"xxiv","g","vii","g",12,"RK","W","Valentin, Bischof von Rätien",0,0,"HdK"]
[null,null,1,7,"xxiv","g","vii","g",12,"GK","W","Rainmund von Peñafort, Ordensgründer",0,0,"HdK"]
[null,null,1,8,"xxiii","A","vi","g",12,"RK","W","Severin, Mönch in Norikum",0,0,"HdK"]
[null,null,1,9,"xxii","b","v",null,null,null,null,null,0,0]
[null,null,1,10,"xxi","c","iv",null,null,null,null,null,0,0]
[null,null,1,11,"xx","d","iii",null,null,null,null,null,0,0]
[null,null,1,12,"xix","e","Prid.",null,null,null,null,null,0,0]
[null,null,1,13,"xviii","f","Idib.","g",12,"GK","W","Hilarius von Poitiers, Kirchenlehrer",0,0,"HdK, KiL"]
[null,null,1,14,"xvii","g","xix",null,null,null,null,null,0,0]
[null,null,1,15,"xvi","A","xviii",null,null,null,null,null,0,0]
[null,null,1,16,"xv","b","xvii",null,null,null,null,null,0,0]
[null,null,1,17,"xiv","c","xvi","G",10,"GK","W","Antonius, Mönchsvater in Ägypten",0,0,"hlM: Ordensl"]
[null,null,1,18,"xiii","d","xv",null,null,null,null,null,0,0]
[null,null,1,19,"xii","e","xiv",null,null,null,null,null,0,0]
[null,null,1,20,"xi","f","xiii","g",12,"GK","R","Fabian, Papst, Märtyrer",0,0,"Mart, HdK"]
[null,null,1,20,"xi","f","xiii","g",12,"GK","R","Sebastian, Märtyrer",0,0,"Mart"]
[null,null,1,21,"x","g","xii","g",12,"RK","R","Meinrad, Mönch auf der Reichenau, Einsiedler, Märtyrer",0,0,"hlM: Ordensl, Mart"]
[null,null,1,21,"x","g","xii","g",12,"GK","R","Agnes, Jungfrau, Märtyrin in Rom",0,0,"Mart, Jungf"]
[null,null,1,22,"ix","A","xi","g",12,"GK","R","Vinzenz, Diakon, Märtyrer in Spanien",0,0,"Mart"]
[null,null,1,23,"viii","b","x","g",12,"RK","W","Heinrich Seuse, Ordenspriester, Mystiker",0,0,"hlM: Ordensl"]
[null,null,1,24,"vii","c","ix","G",10,"GK","W","Franz von Sales, Bischof von Genf, Ordensgründer, Kirchenlehrer",0,0,"HdK, KiL"]
[null,null,1,25,"vi","d","viii","F",7,"GK","W","BEKEHRUNG DES APOSTELS PAULUS",0,0,"Propr"]
[null,null,1,26,"v","e","vii","G",10,"GK","W","Timotheus und Titus, Bischöfe, Apostelschüler",0,0,"HdK"]
[null,null,1,27,"iv","f","vi","g",12,"GK","W","Angela Merici, Jungfrau, Ordengsgründerin",0,0,"Jungfr, hlF: Erz"]
[null,null,1,28,"iii","g","v","G",10,"GK","W","Thomas von Aquin, Ordenspriester, Kirchenlehrer",0,0,"KiL"]
[null,null,1,29,"ii","A","iv",null,null,null,null,null,0,0]
[null,null,1,30,"i","b","iii",null,null,null,null,null,0,0]
[null,null,1,31,"*","c","Prid.","G",10,"GK","W","Johannes Bosco, Priester, Ordensgründer",0,0,"HdK, hlM: Ordensl/Erz"]
[null,null,2,1,"xxix","d","Cal.",null,null,null,null,null,0,0]
[null,null,2,2,"xxviii","e","iv","F",5,"GK","W","DARSTELLUNG DES HERRN",9,0,"Propr"]
[null,null,2,3,"xxvii","f","iii","g",12,"RK","W","Ansgar, Bischof von Hamburg-Bremen, Glaubensbote in Skandinavien",0,0,"HdK"]
[null,null,2,3,"xxvii","f","iii","g",13,"GK","R","Blasius, Bischof von Sebaste in Armenien, Märtyrer",0,0,"Mart, HdK"]
[null,null,2,4,"25 xxvi","g","Prid.","g",12,"RK","W","Rabanus Maurus, Bischof von Mainz",0,0,"HdK"]
[null,null,2,5,"xxv xxiv","A","Non.","G",10,"GK","R","Agatha, Jungfrau, Märtyrin in Catania",0,0,"Mart, Jungf"]
[null,null,2,6,"xxiii","b","viii","G",10,"GK","R","Paul Miki und Gefährten, Märtyrer in Nagasaki",0,0,"Mart"]
[null,null,2,7,"xxii","c","vii",null,null,null,null,null,0,0]
[null,null,2,8,"xxi","d","vi","g",13,"GK","W","Hiermonymus Ämiliani, Ordensgründer",0,0,"hlM: Erz"]
[null,null,2,8,"xxi","d","vi","g",13,"GK","W","Josephina Bakhita, Jungfrau",0,0,"Jungf"]
[null,null,2,9,"xx","e","v",null,null,null,null,null,0,0]
[null,null,2,10,"xix","f","iv","G",10,"GK","W","Scholastika, Jungfrau",0,0,"Jungf"]
[null,null,2,11,"xviii","g","iii","g",12,"GK","W","Gedenktag Unserer Lieben Frau in Lourdes",0,0,"Marienf"]
[null,null,2,12,"xvii","A","Prid.",null,null,null,null,null,0,0]
[null,null,2,13,"xvi","b","Idib.",null,null,null,null,null,0,0]
[null,null,2,14,"xv","c","xvi","F",8,"GK","W","CYRILL, Mönch, und METHODIUS, Bischof, Glaubensb. b. d. Slawen, Patr. Europas",0,0,"HdK"]
[null,null,2,15,"xiv","d","xv",null,null,null,null,null,0,0]
[null,null,2,16,"xiii","e","xiv",null,null,null,null,null,0,0]
[null,null,2,17,"xii","f","xiii","g",12,"GK","W","Sieben Gründer des Servitenordens",0,0,"hlM: Ordensl"]
[null,null,2,18,"xi","g","xii",null,null,null,null,null,0,0]
[null,null,2,19,"x","A","xi",null,null,null,null,null,0,0]
[null,null,2,20,"ix","b","x",null,null,null,null,null,0,0]
[null,null,2,21,"viii","c","ix","g",12,"GK","W","Petrus Damiani, Bischof, Kirchenlehrer",0,0,"HdK, KiL"]
[null,null,2,22,"vii","d","viii","F",7,"GK","W","KATHEDRA PETRI",0,0,"Propr"]
[null,null,2,23,"vi","e","vii","G",10,"GK","R","Polykarp, Bischof von Smyrna, Märtyrer",0,0,"Mart, HdK"]
[null,null,2,24,"v","f","vi","F",7,"RK","R","MATTHIAS, Apostel",0,0,"Apostel"]
[null,null,2,25,"iv","g","v","g",12,"RK","W","Walburga, Äbtissin von Heidenheim in Franken",0,0,"hlF: Ordensl"]
[null,null,2,26,"iii","A","iv",null,null,null,null,null,0,0]
[null,null,2,27,"ii","b","iii","g",12,"GK","W","Gregor von Narek, Abt, Kirchenlehrer",0,0,"HdK, hlM: Ordensl"]
[null,null,2,28,"i","c","Prid.",null,null,null,null,null,0,0]
[null,null,2,29,"---","---","---",null,null,null,null,null,0,0]
[null,null,3,1,"*","d","Cal.",null,null,null,null,null,0,0]
[null,null,3,2,"xxix","e","vi",null,null,null,null,null,0,0]
[null,null,3,3,"xxviii","f","v",null,null,null,null,null,0,0]
[null,null,3,4,"xxvii","g","iv","g",12,"GK","W","Kasimir, Königssohn",0,0,"hlM"]
[null,null,3,5,"xxvi","A","iii",null,null,null,null,null,0,0]
[null,null,3,6,"25 xxv","b","Prid.","g",12,"RK","W","Fridolin von Säckingen, Mönch, Glaubensbote",0,0,"hlM: Ordensl, HdK"]
[null,null,3,7,"xxiv","c","Non.","G",10,"GK","R","Perpetua und Felizitas, Märtyrinnen in Karthago",0,0,"Mart"]
[null,null,3,8,"xxiii","d","viii","g",12,"GK","W","Johannes von Gott, Ordensgründer",0,0,"hlM: Ordensl/Nächstenl"]
[null,null,3,9,"xxii","e","vii","g",12,"RK","R","Bruno von Querfurt, Bischof von Magdebg., Glaubensb. b. d. Preußen, Märtyrer",0,0,"Mart, HdK"]
[null,null,3,9,"xxii","e","vii","g",12,"GK","W","Franziska, Witwe, Ordensgründerin in Rom",0,0,"hlF: Ordensl"]
[null,null,3,10,"xxi","f","vi",null,null,null,null,null,0,0]
[null,null,3,11,"xx","g","v",null,null,null,null,null,0,0]
[null,null,3,12,"xix","A","iv",null,null,null,null,null,0,0]
[null,null,3,13,"xviii","b","iii",null,null,null,null,null,0,0]
[null,null,3,14,"xvii","c","Prid.","g",12,"RK","W","Mathilde, Gemahlin König Heinrichs I.",0,0,"Mart"]
[null,null,3,15,"xvi","d","Idib.","g",12,"RK","W","Klemens Maria Hofbauer, Ordenspriester",0,0,"hlM: Ordensl"]
[null,null,3,16,"xv","e","xvii",null,null,null,null,null,0,0]
[null,null,3,17,"xiv","f","xvi","g",12,"RK","W","Gertrud, Äbtissin von Nivelles",0,0,"hlF: Ordensl"]
[null,null,3,17,"xiv","f","xvi","g",12,"GK","W","Patrick, Bischof, Glaubensbote in Irland",0,0,"HdK"]
[null,null,3,18,"xiii","g","xv","g",12,"GK","W","Cyrill, Bischof von Jerusalem, Kirchenlehrer",0,0,"HdK, KiL"]
[null,null,3,19,"xii","A","xiv","H",3,"GK","W","JOSEF, BRÄUTIGAM DER GOTTESMUTTER MARIA",1,0,"hlM"]
[null,null,3,20,"xi","b","xiii",null,null,null,null,null,0,0]
[null,null,3,21,"x","c","xii",null,null,null,null,null,0,0]
[null,null,3,22,"ix","d","xi",null,null,null,null,null,0,0]
[null,null,3,23,"viii","e","x","g",12,"GK","W","Turibio von Mongrovejo, Bischof von Lima",0,0,"HdK"]
[null,null,3,24,"vii","f","ix",null,null,null,null,null,0,0]
[null,null,3,25,"vi","g","viii","H",3,"GK","W","VERKÜNDIGUNG DES HERRN",1,0,"Propr"]
[null,null,3,26,"v","A","vii","g",12,"RK","W","Liudger, Bischof von Münster, Glaubensbote",0,0,"HdK"]
[null,null,3,27,"iv","b","vi",null,null,null,null,null,0,0]
[null,null,3,28,"iii","c","v",null,null,null,null,null,0,0]
[null,null,3,29,"ii","d","iv",null,null,null,null,null,0,0]
[null,null,3,30,"i","e","iii",null,null,null,null,null,0,0]
[null,null,3,31,"*","f","Prid.",null,null,null,null,null,0,0]
[null,null,4,1,"xxix","g","Cal.",null,null,null,null,null,0,0]
[null,null,4,2,"xxviii","A","iv","g",12,"GK","W","Franz von Paola, Einsiedler, Ordensgründer",0,0,"hlM: Ordensl"]
[null,null,4,3,"xxvii","b","iii",null,null,null,null,null,0,0]
[null,null,4,4,"25 xxvi","c","Prid.","g",12,"GK","W","Isidor, Bischof von Sevilla, Kirchenlehrer",0,0,"HdK, KiL"]
[null,null,4,5,"xxv xxiv","d","Non.","g",12,"GK","W","Vinzenz Ferrer, Ordenspriester, Bußprediger",0,0,"HdK"]
[null,null,4,6,"xxiii","e","viii",null,null,null,null,null,0,0]
[null,null,4,7,"xxii","f","vii","G",10,"GK","W","Johannes Baptist de la Salle, Priester, Ordensgründer",0,0,"HdK, hlM: Erz"]
[null,null,4,8,"xxi","g","vi",null,null,null,null,null,0,0]
[null,null,4,9,"xx","A","v",null,null,null,null,null,0,0]
[null,null,4,10,"xix","b","iv",null,null,null,null,null,0,0]
[null,null,4,11,"xviii","c","iii","G",10,"GK","R","Stanislaus, Bischof von Krakau, Märtyrer",0,0,"Mart, HdK"]
[null,null,4,12,"xvii","d","Prid.",null,null,null,null,null,0,0]
[null,null,4,13,"xvi","e","Idib.","g",12,"GK","R","Martin I., Papst, Märtyrer",0,0,"Mart, HdK"]
[null,null,4,14,"xv","f","xviii",null,null,null,null,null,0,0]
[null,null,4,15,"xiv","g","xvii",null,null,null,null,null,0,0]
[null,null,4,16,"xiii","A","xvi",null,null,null,null,null,0,0]
[null,null,4,17,"xii","b","xv",null,null,null,null,null,0,0]
[null,null,4,18,"xi","c","xiv",null,null,null,null,null,0,0]
[null,null,4,19,"x","d","xiii","g",12,"RK","W","Leo IX., Papst",0,0,"HdK"]
[null,null,4,19,"x","d","xiii","g",12,"RK","R","Marcel Callo, Märtyrer",0,0,"Mart"]
[null,null,4,20,"ix","e","xii",null,null,null,null,null,0,0]
[null,null,4,21,"viii","f","xi","g",12,"RK","W","Konrad von Parzham, Ordensbruder in Altötting",0,0,"hlM: Ordensl"]
[null,null,4,21,"viii","f","xi","g",12,"GK","W","Anselm, Bischof von Canterbury, Kirchenlehrer",0,0,"HdK, KiL"]
[null,null,4,22,"vii","g","x",null,null,null,null,null,0,0]
[null,null,4,23,"vi","A","ix","g",12,"RK","R","Adalbert, Bischof von Prag, Glaubensbote bei den Preußen, Märtyrer",0,0,"HdK, Mart"]
[null,null,4,23,"vi","A","ix","g",12,"GK","R","Georg, Märtyrer in Kappadozien",0,0,"Mart"]
[null,null,4,24,"v","b","viii","g",12,"RK","R","Fidelis von Sigmaringen, Ordenspriester, Märtyrer",0,0,"hlM: Ordensl, Mart"]
[null,null,4,25,"iv","c","vii","F",7,"GK","R","MARKUS, Evangelist",0,0,"Apostel"]
[null,null,4,26,"iii","d","vi",null,null,null,null,null,0,0]
[null,null,4,27,"ii","e","v","g",12,"RK","W","Petrus Kanisius, Ordenspriester, Kirchenlehrer",0,0,"HdK, KiL"]
[null,null,4,28,"i","f","iv","g",12,"GK","W","Peter Chanel, Priester, erster Märtyrer in Ozeanien",0,0,"Mart, HdK"]
[null,null,4,28,"i","f","iv","g",12,"GK","W","Ludwig Maria Grignion de Montfort, Priester, Ordensgründer",0,0,"HdK, hlM: Ordensl"]
[null,null,4,29,"*","g","iii","F",7,"GK","W","KATHARINA VON SIENA, Ordensfrau, Kirchenlehrerin, Schutzpatronin Europas",0,0,"Jungf, KiL"]
[null,null,4,30,"xxix","A","Prid.","g",12,"GK","W","Pius V., Papst",0,0,"HdK"]
[null,null,5,1,"xxviii","b","Cal.","g",12,"GK","W","Josef der Arbeiter",0,0,"Hochfest am 19.03."]
[null,null,5,2,"xxvii","c","vi","G",10,"GK","W","Athanasius, Bischof von Alexandrien, Kirchenlehrer",0,0,"HdK, KiL"]
[null,null,5,3,"xxvi","d","v","F",7,"GK","R","PHILIPPUS UND JAKOBUS, Apostel",0,0,"Apostel"]
[null,null,5,4,"25 xxv","e","iv","g",12,"RK","R","Florian und die Märtyrer von Lorch",0,0,"Mart"]
[null,null,5,5,"xxiv","f","iii","g",12,"RK","W","Godehard, Bischof von Hildesheim",0,0,"HdK"]
[null,null,5,6,"xxiii","g","Prid.",null,null,null,null,null,0,0]
[null,null,5,7,"xxii","A","Non.",null,null,null,null,null,0,0]
[null,null,5,8,"xxi","b","viii",null,null,null,null,null,0,0]
[null,null,5,9,"xx","c","vii",null,null,null,null,null,0,0]
[null,null,5,10,"xix","d","vi","g",12,"GK","W","Johannes von Avila, Priester, Kirchenlehrer",0,0,"HdK, KiL"]
[null,null,5,11,"xviii","e","v",null,null,null,null,null,0,0]
[null,null,5,12,"xvii","f","iv","g",12,"GK","R","Nereus und Achilleus, Märtyrer",0,0,"Mart"]
[null,null,5,12,"xvii","f","iv","g",12,"GK","R","Pankratius, Märtyrer",0,0,"Mart"]
[null,null,5,13,"xvi","g","iii","g",12,"GK","W","Unsere Liebe Frau von Fatima",0,0,"Marienf"]
[null,null,5,14,"xv","A","Prid.",null,null,null,null,null,0,0]
[null,null,5,15,"xiv","b","Idib.",null,null,null,null,null,0,0]
[null,null,5,16,"xiii","c","xvii","g",12,"RK","R","Johannes Nepomuk, Priester, Märtyrer",0,0,"HdK, Mart"]
[null,null,5,17,"xii","d","xvi",null,null,null,null,null,0,0]
[null,null,5,18,"xi","e","xv","g",12,"GK","R","Johannes I. Papst, Märtyrer",0,0,"Mart, HdK"]
[null,null,5,19,"x","f","xiv",null,null,null,null,null,0,0]
[null,null,5,20,"ix","g","xiii","g",12,"GK","W","Bernhardin von Siena, Ordenspriester, Volksprediger",0,0,"HdK, hlM: Ordensl"]
[null,null,5,21,"viii","A","xii","G",12,"GK","R","Christophorus Magallanes, Priester, und Gefährten, Märtyrer",0,0,"Mart"]
[null,null,5,21,"viii","A","xii","G",12,"RK","W","Hermann Josef, Ordenspriester, Mystiker",0,0,"hlM: Ordensl"]
[null,null,5,22,"vii","b","xi","g",12,"GK","W","Rita von Cascia, Ordensfrau",0,0,"hlF: Ordensl"]
[null,null,5,23,"vi","c","x",null,null,null,null,null,0,0]
[null,null,5,24,"v","d","ix",null,null,null,null,null,0,0]
[null,null,5,25,"iv","e","viii","g",12,"GK","W","Beda der Ehrwürdige, Ordenspriester, Kirchenlehrer",0,0,"Ki, hlM: Ordensl"]
[null,null,5,25,"iv","e","viii","g",12,"GK","W","Gregor VII., Papst",0,0,"HdK"]
[null,null,5,25,"iv","e","viii","g",12,"GK","W","Maria Magdalena von Pazzi, Ordensfrau",0,0,"Jungf, hlF: Ordensl"]
[null,null,5,26,"iii","f","vii","G",10,"GK","W","Philipp Neri, Priester, Gründer des Oratoriums",0,0,"HdK, hlM: Ordensl"]
[null,null,5,27,"ii","g","vi","g",12,"GK","W","Augustinus, Bischof von Canterbury, Glaubensbote in England",0,0,"HdK"]
[null,null,5,28,"i","A","v",null,null,null,null,null,0,0]
[null,null,5,29,"*","b","iv","g",12,"GK","W","Paul VI., Papst",0,0,"HdK"]
[null,null,5,30,"xxix","c","iii",null,null,null,null,null,0,0]
[null,null,5,31,"xxviii","d","Prid.",null,null,null,null,null,0,0]
[null,null,6,1,"xxvii","e","Cal.","G",10,"GK","R","Justin, Philosoph, Märtyrer",0,0,"Mart"]
[null,null,6,2,"25 xxvi","f","iv","g",12,"GK","R","Marcelinus und Petrus, Mäyrtyrer in Rom",0,0,"Mart"]
[null,null,6,3,"xxv xxiv","g","iii","G",10,"GK","R","Karl Lwanga und Gefährten, Märtyrer in Uganda",0,0,"Mart"]
[null,null,6,4,"xxiii","A","Prid.",null,null,null,null,null,0,0]
[null,null,6,5,"xxii","b","Non.","F",7,"RK","R","BONIFATIUS, Glaubensbote in Deutschland, Märtyrer",0,0,"Mart, HdK"]
[null,null,6,6,"xxi","c","viii","g",12,"RK","W","Norbert von Xanten, Ordensgründer, Bischof von Magdeburg",0,0,"HdK"]
[null,null,6,7,"xx","d","vii",null,null,null,null,null,0,0]
[null,null,6,8,"xix","e","vi",null,null,null,null,null,0,0]
[null,null,6,9,"xviii","f","v","g",12,"GK","W","Ephräm der Syrer, Diakon, Kirchenlehrer",0,0,"KiL"]
[null,null,6,10,"xvii","g","iv"]
[null,null,6,11,"xvi","A","iii","G",10,"GK","R","Barnabas, Apostel",0,0,"Apostel"]
[null,null,6,12,"xv","b","Prid.",null,null,null,null,null,0,0]
[null,null,6,13,"xiv","c","Idib.","G",10,"GK","W","Antonius von Padua, Ordenspriester, Kirchenlehrer",0,0,"HdK, KiL, hlM: Ordensl"]
[null,null,6,14,"xiii","d","xviii",null,null,null,null,null,0,0]
[null,null,6,15,"xii","e","xvii","g",12,"RK","R","Vitus (Veit), Märtyrer in Sizilien",0,0,"Mart"]
[null,null,6,16,"xi","f","xvi","g",12,"RK","W","Benno, Bischof von Meißen",0,0,"HdK"]
[null,null,6,17,"x","g","xv",null,null,null,null,null,0,0]
[null,null,6,18,"ix","A","xiv",null,null,null,null,null,0,0]
[null,null,6,19,"viii","b","xiii","g",12,"GK","W","Romuald, Abt, Ordensgründer",0,0,"hlM: Ordensl"]
[null,null,6,20,"vii","c","xii",null,null,null,null,null,0,0]
[null,null,6,21,"vi","d","xi","G",10,"GK","W","Aloisius Gonzaga, Ordensmann",0,0,"hlM: Ordensl"]
[null,null,6,22,"v","e","x","g",12,"GK","W","Paulinus, Bischof von Nola",0,0,"HdK"]
[null,null,6,22,"v","e","x","g",12,"GK","R","John Fisher, Bischof von Rochester, und Thomas Morus, Lordkanzler, Märtyrer",0,0,"Mart"]
[null,null,6,23,"iv","f","ix",null,null,null,null,null,0,0]
[null,null,6,24,"iii","g","viii","H",3,"GK","W","GEBURT JOHANNES' DES TÄUFERS",1,0,"hlM"]
[null,null,6,25,"ii","A","vii",null,null,null,null,null,0,0]
[null,null,6,26,"i","b","vi","g",12,"GK","W","Josef Maria Escrivá de Balaguer, Priester",0,0,"hlM"]
[null,null,6,27,"*","c","v","g",12,"RK","W","Hemma von Gurk, Stifterin von Gurk und Admont",0,0,"hlF"]
[null,null,6,27,"*","c","v","g",12,"RK","W","Cyrill, Bischof von Alexandrien, Kirchenlehrer",0,0,"HdK, KiL"]
[null,null,6,28,"xxix","d","iv","G",10,"GK","R","Irenäus, Bischof von Lyon, Märtyrer",0,0,"Mart, HdK"]
[null,null,6,29,"xxviii","e","iii","H",3,"GK","R","PETRUS UND PAULUS, Apostel",1,0,"Apostel"]
[null,null,6,30,"xxvii","f","Prid.","g",12,"RK","W","Otto, Bischof von Bamberg, Glaubensbote in Pommern",0,0,"HdK"]
[null,null,6,30,"xxvii","f","Prid.","g",12,"GK","R","Die ersten Märtyrer der Stadt Rom",0,0,"Mart"]
[null,null,7,1,"xxvi","g","Cal.",null,null,null,null,null,0,0]
[null,null,7,2,"25 xxv","A","vi","F",8,"RK","W","MARIÄ HEIMSUCHUNG",0,0,"Marienf"]
[null,null,7,3,"xxiv","b","v","F",7,"GK","R","THOMAS, Apostel",0,0,"Apostel"]
[null,null,7,4,"xxiii","c","iv","g",12,"RK","W","Ulrich, Bischof von Augsburg",0,0,"HdK"]
[null,null,7,4,"xxiii","c","iv","g",12,"GK","W","Elisabeth, Königin von Portugal",0,0,"hlF: Nächstenl"]
[null,null,7,5,"xxii","d","iii","g",12,"GK","W","Antonius, Maria Zaccaria, Priester, Ordensgründer",0,0,"HdK, hlM: Erz/Ordensl",null,null,null,null,null,null,"Eph",2,"19-22",null,null,null,null,null,"Joh",20,"24-29"]
[null,null,7,6,"xxi","e","Prid.","g",12,"GK","R","Maria Goretti, Jungfrau, Märtyrin",0,0,"Mart, Jungf"]
[null,null,7,7,"xx","f","Non.","g",12,"RK","W","Willibald, Bischof von Eichstätt, Glaubensbote",0,0,"HdK"]
[null,null,7,8,"xix","g","viii","g",12,"RK","R","Kilian, Bischof von Würzburg, und Gefährten, Glaubensboten, Märtyrer",0,0,"HdK, Mart"]
[null,null,7,9,"xviii","A","vii","g",12,"GK","R","Augustinus Zhao Rong, Priester, und Gefährten, Märtyrer",0,0,"Mart"]
[null,null,7,10,"xvii","b","vi","g",12,"RK","R","Knud, König von Dänemark, Märtyrer",0,0,"Mart"]
[null,null,7,11,"xvi","c","v","F",7,"GK","W","BENEDIKT VON NURSIA, Vater des abendl. Mönchtums, Patron Europas",0,0,"hlM: Ordensl"]
[null,null,7,12,"xv","d","iv",null,null,null,null,null,0,0]
[null,null,7,13,"xiv","e","iii","g",12,"RK","W","Heinrich II. und Kunigunde, Kaiserpaar",0,0,"hlM, hlF"]
[null,null,7,14,"xiii","f","Prid.","g",12,"GK","W","Kamillus von Lellis, Priester, Ordensgründer",0,0,"hlM: Nächstenl",null,null,null,null,null,null,"Spr",2,"1-9",null,null,null,null,null,"Mt",19,"27-29"]
[null,null,7,15,"xii","g","Idib.","G",10,"GK","W","Bonaventura, Ordensmann, Bischof, Kirchenlehrer",0,0,"HdK, KiL"]
[null,null,7,16,"xi","A","xvii","g",12,"GK","W","Gedenktag Unserer Lieben Frau auf dem Berge Karmel",0,0,"Marienf"]
[null,null,7,17,"x","b","xvi",null,null,null,null,null,0,0]
[null,null,7,18,"ix","c","xv",null,null,null,null,null,0,0]
[null,null,7,19,"viii","d","xiv",null,null,null,null,null,0,0]
[null,null,7,20,"vii","e","xiii","g",12,"RK","R","Margareta, Jungfrau, Märtyrin in Antiochien",0,0,"Jungf, Mart"]
[null,null,7,20,"vii","e","xiii","g",12,"RK","R","Apollinaris, Bischof, Märtyrer",0,0,"HdK, Mart"]
[null,null,7,21,"vi","f","xii","g",12,"RK","W","Laurentius von Brindisi, Ordenspriester, Kirchenlehrer",0,0,"HdK, KiL"]
[null,null,7,22,"v","g","xi","F",7,"GK","W","Maria Magdalena",0,0,"hlF"]
[null,null,7,23,"iv","A","x","F",7,"GK","W","BIRGITTA VON SCHWEDEN, Ordensgründerin, Schutzpatronin Europas",0,0,"hlF: Ordensl"]
[null,null,7,24,"iii","b","ix","g",12,"RK","R","Christophorus, Märtyrer in Kleinasien",0,0,"Mart",null,null,null,null,null,null,"Hld",3,"1-4a",null,null,null,null,null,"Joh",20,"1-2.11-18"]
[null,null,7,24,"iii","b","ix","g",12,"RK","W","Sarbelius Makhuf, Priester",0,0,"HdK"]
[null,null,7,25,"ii","c","viii","F",7,"GK","R","JAKOBUS, Apostel",0,0,"Apostel"]
[null,null,7,26,"i","d","vii","G",10,"GK","W","Joachim und Anna, Eltern der Gottesmutter Maria",0,0,"hlM"]
[null,null,7,27,"*","e","vi",null,null,null,null,null,0,0]
[null,null,7,28,"xxix","f","v",null,null,null,null,null,0,0,null,null,null,null,null,null,null,"2 Kor",4,"7-15",null,null,null,null,null,"Mt",20,"20-28"]
[null,null,7,29,"xxviii","g","iv","G",10,"GK","W","Marta, Maria und Lazarus",0,0,"Propr",null,null,null,null,null,null,"Sir",44,"1.10-15",null,null,null,null,null,"Mt",13,"16-17"]
[null,null,7,30,"xxvii","A","iii","g",12,"GK","W","Petrus Chrysologus, Bischof von Ravenna, Kirchenlehrer",0,0,"HdK, KiL"]
[null,null,7,31,"25 xxvi","b","Prid.","G",10,"GK","W","Ignatius von Loyola, Priester, Ordensgründer",0,0,"HdK, hlM: Ordensl"]
[null,null,8,1,"xxv xxiv","c","Cal.","G",10,"GK","W","Alfons Maria von Liguori, Ordensgründer, Bischof, Kirchenlehrer",0,0,"HdK, KiL",null,null,null,null,null,null,null,null,null,null,null,null,null,null,"Joh",11,"19-27"]
[null,null,8,2,"xxiii","d","iv","g",12,"GK","R","Eusebius, Bischof von Vercelli",0,0,"HdK"]
[null,null,8,2,"xxiii","d","iv","g",12,"GK","W","Peter Julian Eymard, Priester, Ordensgründer",0,0,"hlM: Ordensl, HdK"]
[null,null,8,3,"xxii","e","iii",null,null,null,null,null,0,0]
[null,null,8,4,"xxi","f","Prid.","G",10,"GK","W","Johannes Maria Vianney, Pfarrer von Ars",0,0,"HdK"]
[null,null,8,5,"xx","g","Non.","g",12,"GK","W","Weihetag der Basilika Santa Maria Maggiore in Rom",0,0,"Marienf"]
[null,null,8,6,"xix","A","viii","F",5,"GK","W","VERKLÄRUNG DES HERRN",9,0,"Propr"]
[null,null,8,7,"xviii","b","vii","g",12,"GK","R","Xystus II., Papst, und Gefährten, Märtyrer",0,0,"Mart"]
[null,null,8,7,"xviii","b","vii","g",12,"GK","W","Kajetan, Priester, Ordensgründer",0,0,"HdK, hlM: Ordensl"]
[null,null,8,8,"xvii","c","vi","G",10,"GK","W","Dominikus, Priester, Ordensgründer",0,0,"HdK, hlM: Ordensl",null,null,null,null,null,null,"Dan",7,"9-10.13-14",null,null,null,null,null,"Mt",17,"1-9","LJ B: MK 9,2-10 / LJ C: Lk 9,28b-36"]
[null,null,8,9,"xvi","d","v","F",7,"GK","R","EDITH STEIN (TERESIA BENEDICTA A CRUCE), Ordensfrau, Märtyrin, Schutzpatronin Europas",0,0,"Mart, hlF: Ordensl"]
[null,null,8,10,"xv","e","iv","F",7,"GK","R","LAURENTIUS, Diakon, Märtyrer in Rom",0,0,"Mart"]
[null,null,8,11,"xiv","f","iii","G",10,"GK","W","Klara von Assisi, Jungfrau, Ordensgründerin",0,0,"Jungf, hlM: Ordensl"]
[null,null,8,12,"xiii","g","Prid.","g",12,"GK","W","Johanna Franiska von Chantal, Ordensgründerin",0,0,"hlF: Ordensl"]
[null,null,8,13,"xii","A","Idib.","g",12,"GK","R","Pontianus, Papst, und Hippolyt, Priester, Märtyrer",0,0,"Mart, HdK",null,null,null,null,null,null,"2 Kor",9,"6-10",null,null,null,null,null,"Joh",12,"24-26"]
[null,null,8,14,"xi","b","xix","G",11,"RK","R","Maximilian Kolbe, Ordenspriester, Märtyrer",0,0,"Mart, hlM: Ordensl"]
[null,null,8,15,"x","c","xviii","H",3,"GK","W","MARIÄ AUFNAHME IN DEN HIMMEL",1,0,"Marienf"]
[null,null,8,16,"ix","d","xvii","g",12,"GK","W","Stephan, König von Ungarn",0,0,"hlM"]
[null,null,8,17,"viii","e","xvi",null,null,null,null,null,0,0]
[null,null,8,18,"vii","f","xv",null,null,null,null,null,0,0,null,null,null,null,null,null,null,"Offb",11,"19a; 12,1-6a-10ab",null,"1 Kor",15,"20-27a",null,"Lk",1,"39-56","am Vorabend: 1 Chr 15,3-4.15-16; 16,1-2 / 1 Kor 15,54-57 / Lk 11,27-28"]
[null,null,8,19,"vi","g","xiv","g",12,"GK","W","Johannes Eudes, Priester, Ordensgründer",0,0,"HdK, hlM: Ordensl"]
[null,null,8,20,"v","A","xiii","G",11,"RK","W","Bernhard von Clairvaux, Abt, Kirchenlehrer",0,0,"KiL, hlM: Ordensl"]
[null,null,8,21,"iv","b","xii","G",10,"GK","W","Pius X., Papst",0,0,"HdK"]
[null,null,8,22,"iii","c","xi","G",10,"GK","W","Maria Königin",0,0,"Marienf"]
[null,null,8,23,"ii","d","x","g",12,"GK","W","Rosa von Lima, Jungfrau",0,0,"Jungf, hlF"]
[null,null,8,24,"i","e","ix","F",7,"GK","R","BARTHOLOMÄUS, Apostel",0,0,"Apostel"]
[null,null,8,25,"*","f","viii","g",12,"GK","W","Ludwig, König von Frankreich",0,0,"hlM"]
[null,null,8,25,"*","f","viii","g",12,"GK","W","Josef von Calasanz, Priester, Ordensgründer",0,0,"hlM: Erz, HdK"]
[null,null,8,26,"xxix","g","vii",null,null,null,null,null,0,0]
[null,null,8,27,"xxviii","A","vi","G",10,"GK","W","Monika, Mutter des Augstinus",0,0,"hlF"]
[null,null,8,28,"xxvii","b","v","G",10,"GK","W","Augustinus, Bischof von Hippo, Kirchenlehrer",0,0,"HdK, KiL"]
[null,null,8,29,"xxvi","c","iv","G",10,"GK","R","Enthauptung Johannes' des Täufers",0,0,"Mart"]
[null,null,8,30,"25 xxv","d","iii",null,null,null,null,null,0,0]
[null,null,8,31,"xxiv","e","Prid.","g",12,"RK","R","Paulinus, Bischof von Trier, Märtyrer",0,0,"HdK"]
[null,null,9,1,"xxiii","f","Cal.",null,null,null,null,null,0,0]
[null,null,9,2,"xxii","g","iv",null,null,null,null,null,0,0]
[null,null,9,3,"xxi","A","iii","G",10,"GK","W","Gregor der Große, Papst, Kirchenlehrer",0,0,"HdK, KiL"]
[null,null,9,4,"xx","b","Prid.",null,null,null,null,null,0,0]
[null,null,9,5,"xix","c","Non.",null,null,null,null,null,0,0]
[null,null,9,6,"xviii","d","viii",null,null,null,null,null,0,0]
[null,null,9,7,"xvii","e","vii",null,null,null,null,null,0,0]
[null,null,9,8,"xvi","f","vi","F",7,"GK","W","MARIÄ GEBURT",0,0,"Marienf"]
[null,null,9,9,"xv","g","v","g",12,"GK","W","Peter Claver, Priester",0,0,"HdK"]
[null,null,9,10,"xiv","A","iv",null,null,null,null,null,0,0]
[null,null,9,11,"xiii","b","iii",null,null,null,null,null,0,0]
[null,null,9,12,"xii","c","Prid.","g",12,"GK","W","Mariä Namen",0,0,"Marienf"]
[null,null,9,13,"xi","d","Idib.","G",10,"GK","W","Johannes Chrysostomus, Bischof von Konstantinopel, Kirchenlehrer",0,0,"HdK, KiL"]
[null,null,9,14,"x","e","xviii","F",5,"GK","R","KREUZERHÖHUNG",9,0,"Propr"]
[null,null,9,15,"ix","f","xvii","G",10,"GK","W","Gedächtnis der Schmerzen Mariens",0,0,"Marienf"]
[null,null,9,16,"viii","g","xvi","G",10,"GK","R","Kornelius, Papst, und Cyprian, Bischof von Karthago, Märtyrer",0,0,"Mart, HdK"]
[null,null,9,17,"vii","A","xv","g",12,"GK","W","Hildegard von Bingen, Äbtissin, Jungfrau Kirchenlehrerin, Mystikerin, Gründerin von Rupertsberg und Eibingen",0,0,"Jungfr, hlF: Ordensl"]
[null,null,9,17,"vii","A","xv","g",12,"GK","W","Robert Bellarmin, Ordenspriester, Bischof von Capua, Kirchenlehrer",0,0,"HdK, KiL"]
[null,null,9,18,"vi","b","xiv","g",12,"RK","R","Lambert, Bischof von Maastricht (Tongern), Glaubensb. in Brabant, Märtyrer",0,0,"HdK, Mart"]
[null,null,9,19,"v","c","xiii","g",12,"GK","R","Januarius, Bischof von Neapel, Märtyrer",0,0,"HdK, Mart"]
[null,null,9,20,"iv","d","xii","G",10,"GK","R","Andreas Kim Taegon, Priester, und Paul Chon Hasang und Gefährten, Märtyrer",0,0,"Mart"]
[null,null,9,21,"iii","e","xi","F",7,"GK","R","MATTHÄUS, Apostel und Evangelist",0,0,"Apostel"]
[null,null,9,22,"ii","f","x","g",12,"RK","R","Mauritius und Gefährten, Märtyrer der Thebäischen Legion",0,0,"Mart"]
[null,null,9,23,"i","g","ix","g",12,"GK","W","Pius von Pietrelcina (Padre Pio), Priester, Ordensmann",0,0,"HdK"]
[null,null,9,24,"*","A","viii","g",12,"RK","W","Rupert und Virgil, Bischofe von Salzburg, Glaubensboten",0,0,"HdK"]
[null,null,9,25,"xxix","b","vii","g",12,"RK","W","Niklaus von Flüe, Einsiedler, Friedensstifter",0,0,"hlM"]
[null,null,9,26,"xxviii","c","vi","g",12,"GK","R","Kosmas und Damian, Ärzte, Märtyrer in Kleinasien",0,0,"Mart"]
[null,null,9,27,"xxvii","d","v","G",10,"GK","W","Vinzenz von Paul, Priester, Ordensgründer",0,0,"HdK, hlM: Nächstenl"]
[null,null,9,28,"25 xxvi","e","iv","g",12,"RK","W","Lioba, Äbtissin von Tauberbischofsheim",0,0,"hlF: Ordensl"]
[null,null,9,28,"25 xxvi","e","iv","g",12,"GK","R","Wenzel, Herzog von Böhmen, Märtyrer",0,0,"Mart"]
[null,null,9,28,"25 xxvi","e","iv","g",12,"RK","R","Lorenzo Ruiz und Gefährten, Märtyrer",0,0,"Mart"]
[null,null,9,29,"xxv xxiv","f","iii","F",7,"GK","W","MICHAEL, GABRIEL UND RAFAEL, Erzengel",0,0,"Propr"]
[null,null,9,30,"xxiii","g","Prid.","G",10,"GK","W","Hieronymus, Priester, Kirchenlehrer",0,0,"KiL"]
[null,null,10,1,"xxii","A","Cal.","G",10,"GK","W","Theresia vom Kinde Jesus, Ordensfrau",0,0,"Jungf"]
[null,null,10,2,"xxi","b","vi","G",10,"GK","W","Schutzengel",0,0,"Propr"]
[null,null,10,3,"xx","c","v",null,null,null,null,null,0,0]
[null,null,10,4,"xix","d","iv","G",10,"GK","W","Franz von Assisi, Ordensgründer",0,0,"hlM: Ordensl"]
[null,null,10,5,"xviii","e","iii","g",12,"GK","W","Maria Faustyna Kowalska, Jungfrau, Ordensfrau",0,0,"Jungf"]
[null,null,10,6,"xvii","f","Prid.","g",12,"RK","W","Bruno, Mönch, Einsiedler, Ordensgründer",0,0,"HdK, hlM: Ordensl"]
[null,null,10,7,"xvi","g","Non.","G",10,"GK","W","Gedenktag Unserer Lieben Frau vom Rosenkranz",0,0,"Marienf"]
[null,null,10,8,"xv","A","viii",null,null,null,null,null,0,0]
[null,null,10,9,"xiv","b","vii","g",12,"GK","R","Dionysius, Bischof von Paris, und Gefährten, Märtyrer",0,0,"Mart"]
[null,null,10,9,"xiv","b","vii","g",12,"GK","W","Johannes Leonardi, Priester, Ordensgründer",0,0,"HdK, hlM: Nächstenl"]
[null,null,10,9,"xiv","b","vii","g",12,"GK","W","John Henry Newman, Priester",0,0,"HdK"]
[null,null,10,10,"xiii","c","vi",null,null,null,null,null,0,0]
[null,null,10,11,"xii","d","v","g",12,"GK","W"," Johannes XXIII., Papst",0,0,"HdK"]
[null,null,10,12,"xi","e","iv",null,null,null,null,null,0,0]
[null,null,10,13,"x","f","iii",null,null,null,null,null,0,0]
[null,null,10,14,"ix","g","Prid.","g",12,"GK","R","Kallistus I., Papst, Märtyrer",0,0,"Mart, HdK"]
[null,null,10,15,"viii","A","Idib.","G",10,"GK","W","Theresia von Jesus (von Avila), Ordensfrau, Kirchenlehrerin",0,0,"Jungf, KiL"]
[null,null,10,16,"vii","b","xvii","g",12,"RK","W","Hedwig von Andechs, Herzogin von Schlesien",0,0,"hlF: Nächstenl"]
[null,null,10,16,"vii","b","xvii","g",12,"RK","W","Gallus, Mönch, Einsiedler, Glaubensbote am Bodensee",0,0,"hlM, hlM: Ordensl"]
[null,null,10,16,"vii","b","xvii","g",12,"GK","W","Margareta Maria Alacoque, Ordensfrau",0,0,"Jungf, hlF: Ordensl"]
[null,null,10,17,"vi","c","xvi","G",10,"GK","R","Ignatius, Bischof von Antiochien, Märtyrer",0,0,"Mart, HdK"]
[null,null,10,18,"v","d","xv","F",7,"GK","R","LUKAS, Evangelist",0,0,"Apostel"]
[null,null,10,19,"iv","e","xiv","g",12,"GK","R","Johannes de Brébeuf, Isaa Jogues, Priester, und Gef., Märtyrer in Nordam.",0,0,"Mart, HdK"]
[null,null,10,19,"iv","e","xiv","g",12,"GK","W","Paul vom Kreuz, Priester, Ordensgründer",0,0,"HdK, hlM: Ordensl"]
[null,null,10,20,"iii","f","xiii","g",12,"RK","W","Wendelin, Einsiedler im Saarland",0,0,"hlM"]
[null,null,10,21,"ii","g","xii","g",12,"RK","R","Ursula und Gefährtinnen, Märtyrinnen in Köln",0,0,"Mart, Jungf"]
[null,null,10,22,"i","A","xi","g",12,"GK","W","Johannes Paul II., Papst",0,0,"HdK"]
[null,null,10,23,"*","b","x","g",12,"RK","W","Johannes von Capestrano, Ordenspriester, Wanderpr. in Süddtld. und Österr.",0,0,"HdK"]
[null,null,10,24,"xxix","c","ix","g",12,"GK","W","Antonius Maria Claret, Bischof von Sntiago in Kuba, Ordensgründer",0,0,"HdK"]
[null,null,10,25,"xxviii","d","viii",null,null,null,null,null,0,0]
[null,null,10,26,"xxvii","e","vii",null,null,null,null,null,0,0]
[null,null,10,27,"xxvi","f","vi",null,null,null,null,null,0,0]
[null,null,10,28,"25 xxv","g","v","F",7,"GK","R","SIMON UND JUDAS, Apostel",0,0,"Apostel"]
[null,null,10,29,"xxiv","A","iv",null,null,null,null,null,0,0]
[null,null,10,30,"xxiii","b","iii",null,null,null,null,null,0,0]
[null,null,10,31,"xxii","c","Prid.","g",12,"RK","W","Wolfgang, Bischof von Regensburg",0,0,"HdK"]
[null,null,11,1,"xxi","d","Cal.","H",3,"GK","W","ALLERHEILIGEN",1,0,"Propr"]
[null,null,11,2,"xx","e","iv","H",3,"GK","S","ALLERSEELEN",0,0,"Verstorbene"]
[null,null,11,3,"xix","f","iii","g",12,"RK","W","Hubert, Bischof von Lüttich",0,0,"HdK"]
[null,null,11,3,"xix","f","iii","g",12,"RK","W","Pirmin, Abtbischof, Glaubensbote am Oberrhein",0,0,"HdK"]
[null,null,11,3,"xix","f","iii","g",12,"GK","W","Martin von Porres, Ordensmann",0,0,"hlM: Ordensl"]
[null,null,11,3,"xix","f","iii","g",12,"RK","W","Rupert Mayer, Priester, Ordensmann",0,0,"HdK"]
[null,null,11,4,"xviii","g","Prid.","G",10,"GK","W","Karl Borromäus, Bischof von Mailand",0,0,"HdK"]
[null,null,11,5,"xvii","A","Non.",null,null,null,null,null,0,0]
[null,null,11,6,"xvi","b","viii","g",12,"RK","W","Leonhard, Einsiedler von Limoges",0,0,"hlM: Ordensl"]
[null,null,11,7,"xv","c","vii","g",12,"RK","W","Willibrord, Bischof von Utrecht, Glaubensbote bei den Friesen",0,0,"HdK"]
[null,null,11,8,"xiv","d","vi",null,null,null,null,null,0,0]
[null,null,11,9,"xiii","e","v","F",5,"GK","W","WEIHETAG DER LATERANBASILIKA",9,0,"Kirchweihe"]
[null,null,11,10,"xii","f","iv","G",10,"GK","W","Leo der Große, Papst, Kirchenlehrer",0,0,"HdK, KiL"]
[null,null,11,11,"xi","g","iii","G",10,"GK","W","Martin, Bischof von Tours",0,0,"HdK"]
[null,null,11,12,"x","A","Prid.","G",10,"GK","R","Josaphat, Bischof von Polozk in Weißrußland, Märtyrer",0,0,"Mart, HdK"]
[null,null,11,13,"ix","b","Idib.",null,null,null,null,null,0,0]
[null,null,11,14,"viii","c","xviii",null,null,null,null,null,0,0]
[null,null,11,15,"vii","d","xvii","g",12,"RK","W","Albert der Große, Ordensmann, Kirchenlehrer, Bischof von Regensburg",0,0,"HdK, KiL"]
[null,null,11,15,"vii","d","xvii","g",12,"RK","W","Leopold, Markgraf von Österreich",0,0,"hlM"]
[null,null,11,16,"vi","e","xvi","g",12,"GK","W","Margareta, Königin von Schottland",0,0,"hlF: Nächstenl"]
[null,null,11,17,"v","f","xv","g",12,"RK","W","Gertrud von Helfta, Ordensfrau, Mystikerin",0,0,"Jungf, hlF: Ordensl"]
[null,null,11,18,"iv","g","xiv","g",12,"GK","W","Weihetag der Basiliken St. Peter und St. Paul zu Rom",0,0,"Apostel"]
[null,null,11,19,"iii","A","xiii","G",11,"RK","W","Elisabeth, Landgräfin von Thüringen",0,0,"hlF: Nächstenl"]
[null,null,11,20,"ii","b","xii","g",12,"RK","W","Korbinian, Missionar, Bischof von Freising (728)",0,0,"HdK"]
[null,null,11,21,"i","c","xi","G",10,"GK","W","Gedenktag Unserer Lieben Frau in Jerusalem",0,0,"Marienf"]
[null,null,11,22,"*","d","x","G",10,"GK","R","Cäcilia, Jungfrau, Märtyrin in Rom",0,0,"Mart, Jungf"]
[null,null,11,23,"xxix","e","ix","g",12,"RK","W","Kolumban, Abt von Luceuil und von Bobbio, Glaubensbote im Frankenreich",0,0,"hlM: Ordensl, hlM"]
[null,null,11,23,"xxix","e","ix","g",12,"GK","R","Klemens I., Papst, Märtyrer",0,0,"Mart, HdK"]
[null,null,11,24,"xxviii","f","viii","G",10,"GK","R","Andreas Dung-Lac, Priester, und Gefährten, Märtyrer",0,0,"Mart"]
[null,null,11,25,"xxvii","g","vii","g",12,"GK","R","Katharina von Alexandrien, Märtyrin",0,0,"Mart"]
[null,null,11,26,"25 xxvi","A","vi","g",12,"RK","W","Konrad und Gebhard, Bischöfe von Konstanz",0,0,"HdK"]
[null,null,11,27,"xxv xxiv","b","v",null,null,null,null,null,0,0]
[null,null,11,28,"xxiii","c","iv",null,null,null,null,null,0,0]
[null,null,11,29,"xxii","d","iii",null,null,null,null,null,0,0]
[null,null,11,30,"xxi","e","Prid.","F",7,"GK","R","ANDREAS, Apostel",0,0,"Apostel"]
[null,null,12,1,"xx","f","Cal.",null,null,null,null,null,0,0]
[null,null,12,2,"xix","g","iv","g",12,"RK","R","Luzius, Bischof von Chur, Märtyrer",0,0,"Mart"]
[null,null,12,3,"xviii","A","iii","G",10,"GK","W","Franz Xaver, Ordenspriester, Glaubensbote in Indien und Ostasien",0,0,"HdK"]
[null,null,12,4,"xvii","b","Prid.","g",12,"RK","R","Barbara, Märtyrin in Nikomedien",0,0,"Mart"]
[null,null,12,4,"xvii","b","Prid.","g",12,"GK","W","Johannes von Damaskus, Priester, Kirchenlehrer",0,0,"KiL"]
[null,null,12,4,"xvii","b","Prid.","g",12,"GK","W","Adolph Kolping, Priester",0,0,"HdK"]
[null,null,12,5,"xvi","c","Non.","g",12,"RK","W","Anno, Bischof von Köln, Reichskanzler",0,0,"HdK"]
[null,null,12,6,"xv","d","viii","g",12,"GK","W","Nikolaus, Bischof von Myra",0,0,"HdK"]
[null,null,12,7,"xiv","e","vii","G",10,"GK","W","Ambrosius, Bischof von Mailand, Kirchenlehrer",0,0,"KiL"]
[null,null,12,8,"xiii","f","vi","H",3,"GK","W","HOCHFEST DER OHNE ERBSÜNDE EMPFANGENEN JUNGFRAU  UND GOTTESMUTTER MARIA",1,0,"Marienf"]
[null,null,12,9,"xii","g","v","G",12,"GK","W","Juan Diego (Cuauhtlatohuac), Laienapostel",0,0,"hlM"]
[null,null,12,10,"xi","A","iv","g",12,"GK","W","Unsere Liebe Frau von Loreto",0,0,"Marienf"]
[null,null,12,11,"x","b","iii","g",12,"GK","W","Damasus I., Papst",0,0,"HdK"]
[null,null,12,12,"ix","c","Prid.","g",12,"GK","W","Unsere Liebe Frau von Guadalupe",0,0,"Marienf"]
[null,null,12,13,"viii","d","Idib.","g",12,"RK","W","Odilia, Äbtissin, Gründerin von Odilienberg und Niedermünster im Elsaß",0,0,"hlF: Ordensl"]
[null,null,12,13,"viii","d","Idib.","g",12,"GK","R","Luzia, Jungfrau, Märyrin in Syrakus",0,0,"Mart"]
[null,null,12,14,"vii","e","xix","G",10,"GK","W","Johannes vom Kreuz, Ordenspriester, Kirchenlehrer",0,0,"KiL"]
[null,null,12,15,"vi","f","xviii",null,null,null,null,null,0,0]
[null,null,12,16,"v","g","xvii",null,null,null,null,null,0,0]
[null,null,12,17,"iv","A","xvi",null,null,null,null,null,0,0]
[null,null,12,18,"iii","b","xv",null,null,null,null,null,0,0]
[null,null,12,19,"ii","c","xiv",null,null,null,null,null,0,0]
[null,null,12,20,"i","d","xiii",null,null,null,null,null,0,0]
[null,null,12,21,"*","e","xii",null,null,null,null,null,0,0]
[null,null,12,22,"xxix","f","xi",null,null,null,null,null,0,0]
[null,null,12,23,"xxviii","g","x","g",12,"GK","W","Johannes von Krakau, Priester",0,0,"HdK"]
[null,null,12,24,"xxvii","A","ix",null,null,null,null,null,0,0]
[null,null,12,25,"xxvi","b","viii","H",2,"GK","W","HOCHFEST DER GEBURT DES HERRN – WEIHNACHTEN",1,0,"Propr"]
[null,null,12,26,"xxv","c","vii","F",7,"GK","R","STEPHANUS, Erzmärtyrer",0,0,"Mart"]
[null,null,12,27,"xxiv","d","vi","F",7,"GK","W","JOHANNES, Apostel und Evangelist",0,0,"Apostel"]
[null,null,12,28,"xxiii","e","v","F",7,"GK","R","UNSCHULDIGE KINDER",0,0,"Mart"]
[null,null,12,29,"xxii","f","iv","g",12,"GK","R","Thomas Becket, Bischof von Canterbury, Märtyrer",0,0,"Mart"]
[null,null,12,30,"xxi","g","iii",null,null,null,null,null,0,0]
[null,null,12,31,"19 xx","A","Prid.","g",12,"GK","W","Silvester I. Papst",0,0,"HdK"]

{"sheet":"Pascal","index":3,"n_rows":17,"n_cols":4,"rows_kept":17,"cut":false,"hidden":false,"merged":[[0,0,0,5],[2,0,2,5],[3,0,3,5]]}
["Pascal V1.8"]
[]
["Erstellung eines liturgischen Kalenders"]
["für das deutsche Sprachgebiet"]
[]
[]
["Die Ausgabe erfolgt auf einem vorformatierten, separaten Tabellenblatt \"Ausgabe\"."]
[]
[]
[]
["Bitte Jahr eingeben (JJJJ):",null,null,2023]
[]
[]
[]
[]
[]
[{"$f":"CONCATENATE(\"© by Bernd Schulte, Friedrichstraße 95, 52070 Aachen, 2001-\",YEAR(TODAY()))","v":"© by Bernd Schulte, Friedrichstraße 95, 52070 Aachen, 2001-2022"}]